{"text_format":"1","workbook":"xlsx","n_sheets":12,"sheets":["EMPRESAS ELABORADORAS","CAPA","INFORMAÇÕES GERAIS","LISTA_PATRIMÔNIO","LISTAS","IMÓVEIS","ORÇAMENTO","MANUAL IDE-SISEMA","DEMONSTRATIVO DE VIABILIDADE","CAPACIDADE DE PAGAMENTO","PATRIMÔNIO","REGRAS"],"not_rendered":{"charts":0,"images":13,"macros":1,"external_links":4,"defined_names":112,"comments":1,"pivot_tables":0},"unopened":[],"bounds":{"document_bytes":16777216,"sheet_cells":100000,"rows_first":2000,"rows_last":500,"rows_between":2000,"halvings":0,"cell_chars":16384,"cell_head_chars":4096},"cells_cut":0,"cells_raw":0,"read":"whole","date_system":"1900"}

{"sheet":"EMPRESAS ELABORADORAS","index":0,"n_rows":11,"n_cols":6,"rows_kept":11,"cut":false,"hidden":true,"merged":[]}
["NOME","CNPJ","ENDEREÇO","CIDADE","TELEFONE","EMAIL"]
["AGROMINAS - APA ASSESSORIA E PLANEJAMENTO AGROPECUÁRIO LTDA",7357636000134,"RUA DO BÁLSAMO, Nº 500, BAIRRO CAMPESTRE","SÃO GOTARDO","(34)  3671-3425","AGROMINASSG@YAHOO.COM.BR"]
["AGROSOLUÇÕES - AFA ASSESSORIA PROJETOS E PLANEJAMENTOS LTDA",33478456000110,"AV. RUI BARBOSA, 174A, CENTRO","SÃO GOTARDO","(34) 3671-3334","AGROSOLUCOES@AGROSOLUCOESLTDA.COM.BR"]
["COOPADAP - COOPERATIVA AGROPECUÁRIA DO ALTO PARANAÍBA",86675642000106,"ROD MG 235 KM 89, 443 - GUARDA DOS FERREIROS","SÃO GOTARDO","(34) 3616-1200","DEBORAPRATES@COOPADAP.COM.BR"]
["ÉLCIO EDUARDO URBANO JÚNIOR",7244640692,"RUA CORONEL FONTE BOA - Nº 725 - CENTRO","SÃO GOTARDO","(34) 99823-4210","URBANOELCIO@YAHOO.COM.BR"]
["EMATER-MG",19198118000102,"RUA BENTO FERREIRA DOS SANTOS, 160 S02, CENTRO","SÃO GOTARDO","(34) 3671-1355","SAO.GOTARDO@EMATER.MG.GOV.BR"]
["FORTPLAN - VICTOR SATORU ALVES MUKAEDA 10149154658",41465317000180,"AV. TABELIÃO JOÃO LOPES, Nº 1064, CAMPESTRE","SÃO GOTARDO","(34) 99944-7158","FORTPLAN@OUTLOOK.COM"]
["NIVALDO LUCAS MARTINS",10839110669,"RUA CURITIBA, N° 95, BAIRRO SANTA TEREZINHA","SÃO GOTARDO","(34) 99931-0052","THIAGOFERNANDES@SHIMADAAGRO.COM.BR"]
["NOVA CONSULTORIA - JUSCELINO ALEXANDRINO MACHADO EIRELI",14409336000117,"AV. PRESIDENTE VARGAS, 245, CENTRO","SÃO GOTARDO","(34) 3671-2396","NOVACONSULTORIAEPROJETOS@HOTMAIL.COM"]
["PAULO MITURU YAMAGAMI",97037680834,"AV. RIO TOCANTINS, N° 70, BAIRRO SOL NASCENTE","SÃO GOTARDO","(34) 99983-0655","AGROLOGICA@YMAIL.COM"]
["PROGEO - ISAIAS DE SOUZA SANTOS",29368223000198,"RUA TRISTAO FURTADO, Nº 114, CENTRO","RIO PARANAÍBA","(34) 99961-9993","PROGEORP@GMAIL.COM"]

{"sheet":"CAPA","index":1,"n_rows":42,"n_cols":32,"rows_kept":42,"cut":false,"hidden":false,"merged":[[20,0,21,3],[20,4,21,12],[14,0,15,21],[41,0,41,10],[41,11,41,14],[33,0,33,3],[33,4,33,18],[37,0,37,6],[39,0,39,7],[30,0,31,44],[41,30,41,40],[37,7,37,12],[37,31,37,35],[39,8,39,13],[35,8,35,20],[35,0,35,7],[41,23,41,29],[1,0,1,44],[14,23,15,44],[17,0,18,3],[17,4,18,21],[26,0,27,5],[26,6,27,21],[26,23,27,29],[26,30,27,44],[23,0,24,3],[23,4,24,21],[17,26,18,44],[20,23,21,26],[20,27,21,44],[33,29,33,31],[33,23,33,28],[23,23,24,26],[23,27,24,44],[17,23,18,25],[39,23,39,29],[39,30,39,35],[35,23,35,25],[35,26,35,30],[37,23,37,30]]}
[]
[]
[]
[]
[]
[]
[null,null,null,null,null,null,null,null,null,null,null,null,2]
[]
[]
[]
[]
[]
[]
[]
["EMPRESA ELABORADORA",null,null,null,null,null,null,null,null,null,null,null,null,null,null,null,null,null,null,null,null,null,null,"PROPONENTE"]
[]
[]
["EMPRESA:",null,null,null,{"$f":"IF('INFORMAÇÕES GERAIS'!G9=0,\"-\",UPPER('INFORMAÇÕES GERAIS'!G9))","v":"-"},null,null,null,null,null,null,null,null,null,null,null,null,null,null,null,null,null,null,"NOME:",null,null,{"$f":"IF('INFORMAÇÕES GERAIS'!F19=0,\"-\",UPPER('INFORMAÇÕES GERAIS'!F19))","v":"-"}]
[]
[]
["CPF/CNPJ:",null,null,null,{"$f":"IF('INFORMAÇÕES GERAIS'!AJ9=0,\"-\",'INFORMAÇÕES GERAIS'!AJ9)","v":"-"},null,null,null,null,null,null,null,null,null,null,null,null,null,null,null,null,null,null,"CPF/CNPJ:",null,null,null,{"$f":"IF('INFORMAÇÕES GERAIS'!AJ19=0,\"-\",'INFORMAÇÕES GERAIS'!AJ19)","v":"-"}]
[]
[]
["TELEFONE:",null,null,null,{"$f":"IF('INFORMAÇÕES GERAIS'!F13=\"\",\"-\",'INFORMAÇÕES GERAIS'!F13)","v":"-"},null,null,null,null,null,null,null,null,null,null,null,null,null,null,null,null,null,null,"TELEFONE:",null,null,null,{"$f":"IF('INFORMAÇÕES GERAIS'!T23=\"-\",\"\",'INFORMAÇÕES GERAIS'!T23)","v":0}]
[]
[]
["RESP. TÉCNICO:",null,null,null,null,null,{"$f":"IF('INFORMAÇÕES GERAIS'!H15=0,\"-\",UPPER('INFORMAÇÕES GERAIS'!H15))","v":"-"},null,null,null,null,null,null,null,null,null,null,null,null,null,null,null,null,"CONTA CORRENTE:",null,null,null,null,null,null,{"$f":"IF('INFORMAÇÕES GERAIS'!I23=0,\"-\",'INFORMAÇÕES GERAIS'!I23)","v":"-"}]
[]
[]
[]
["INFORMAÇÕES DO PROJETO"]
[]
[]
["CULTURA:",null,null,null,{"$f":"IF('INFORMAÇÕES GERAIS'!E59=0,\"-\",UPPER(CULTURA))","v":"-"},null,null,null,null,null,null,null,null,null,null,null,null,null,null,null,null,null,null,"TAXA DE JUROS:",null,null,null,null,null,{"$f":"IF(TAXA_JUROS=0,\"-\",TAXA_JUROS)","v":"-"}]
[]
["LINHA DE CRÉDITO:",null,null,null,null,null,null,null,{"$f":"IF(LINHA_CRÉDITO=\"\",\"-\",LINHA_CRÉDITO)","v":"-"},null,null,null,null,null,null,null,null,null,null,null,null,null,null,"PRAZO:",null,null,{"$f":"IF(PRAZO_PROJETO=0,\"-\",PRAZO_PROJETO)","v":"-"}]
[]
["VALOR ORÇADO:",null,null,null,null,null,null,{"$f":"IF(VALOR_ORÇADO=0,\"-\",VALOR_ORÇADO)","v":"-"},null,null,null,null,null,null,null,null,null,null,null,null,null,null,null,"VALOR FINANCIADO:",null,null,null,null,null,null,null,{"$f":"IF(VALOR_FINANCIADO=0,\"-\",VALOR_FINANCIADO)","v":"-"}]
[]
["RECEITA ESTIMADA:",null,null,null,null,null,null,null,{"$f":"IF(RECEITA_ESTIMADA=0,\"-\",RECEITA_ESTIMADA)","v":"-"},null,null,null,null,null,null,null,null,null,null,null,null,null,null,"ÁREA FINANCIADA:",null,null,null,null,null,null,{"$f":"IF(ÁREA_FINANCIADA=0,\"-\",ÁREA_FINANCIADA)","v":"-"}]
[]
["PRODUÇÃO ESTIMADA (ton):",null,null,null,null,null,null,null,null,null,null,{"$f":"IF('INFORMAÇÕES GERAIS'!AM69=\"-\",\"-\",'INFORMAÇÕES GERAIS'!AM69)","v":"-"},null,null,null,null,null,null,null,null,null,null,null,"DATA DO PROJETO:",null,null,null,null,null,null,{"$f":"IF('INFORMAÇÕES GERAIS'!AF55=\"\",\"-\",CONCATENATE(IF('INFORMAÇÕES GERAIS'!AF55<10,CONCATENATE(\"0\",'INFORMAÇÕES GERAIS'!AF55),'INFORMAÇÕES GERAIS'!AF55),\" DE \",'INFORMAÇÕES GERAIS'!AI55,\" DE \",'INFORMAÇÕES GERAIS'!AO55))","v":"-"}]

{"sheet":"INFORMAÇÕES GERAIS","index":2,"n_rows":112,"n_cols":46,"rows_kept":112,"cut":false,"hidden":true,"merged":[[8,0,8,5],[14,30,14,34],[14,35,14,44],[89,0,89,4],[89,5,89,17],[89,18,89,21],[89,22,89,28],[89,29,89,36],[89,37,89,44],[42,0,42,4],[42,5,42,15],[46,0,46,6],[46,7,46,28],[46,29,46,34],[46,35,46,44],[44,0,44,44],[48,0,48,5],[48,6,48,27],[48,33,48,44],[68,10,68,15],[62,0,62,6],[64,14,64,21],[64,37,64,44],[54,34,54,38],[54,40,54,42],[56,0,56,8],[90,22,90,28],[90,29,90,36],[90,37,90,44],[110,0,110,19],[111,0,111,19],[109,25,109,44],[110,25,110,44],[111,25,111,44],[100,0,100,7],[100,8,100,44],[109,0,109,19],[92,0,92,44],[91,0,91,44],[56,23,56,27],[56,28,56,44],[56,9,56,12],[62,35,62,44],[58,23,58,30],[60,0,60,11],[74,23,74,31],[74,32,74,35],[74,0,74,6],[74,7,74,21],[8,31,8,34],[8,35,8,45],[10,0,10,4],[10,29,10,32],[10,33,10,44],[22,14,22,18],[104,0,104,7],[98,0,98,7],[96,0,96,7],[94,0,94,44],[102,8,102,44],[104,8,104,44],[98,8,98,44],[96,8,96,44],[102,0,102,7],[84,0,84,44],[90,0,90,4],[90,5,90,17],[90,18,90,21],[24,0,24,44],[30,35,30,44],[30,7,30,28],[26,0,26,9],[58,31,58,40],[6,0,6,44],[16,0,16,44],[22,26,22,29],[18,0,18,4],[18,35,18,44],[20,0,20,4],[20,29,20,32],[8,6,8,30],[10,5,10,28],[12,5,12,18],[14,7,14,29],[18,5,18,29],[20,5,20,28],[22,19,22,25],[22,30,22,44],[22,0,22,7],[22,8,22,13],[12,0,12,4],[12,19,12,22],[12,23,12,44],[18,30,18,34],[14,0,14,6],[20,33,20,44],[26,10,26,11],[32,0,32,5],[32,6,32,27],[32,33,32,44],[32,28,32,32],[28,0,28,44],[30,0,30,6],[38,7,38,28],[38,29,38,34],[38,35,38,44],[30,29,30,34],[34,0,34,4],[34,5,34,15],[38,0,38,6],[36,0,36,44],[34,16,34,25],[34,26,34,29],[34,30,34,40],[34,41,34,44],[40,0,40,5],[40,6,40,27],[40,33,40,44],[40,28,40,32],[42,16,42,25],[42,26,42,29],[42,30,42,40],[42,41,42,44],[50,16,50,25],[50,26,50,29],[50,30,50,40],[50,41,50,44],[48,28,48,32],[50,5,50,15],[50,0,50,4],[52,0,52,44],[88,22,88,28],[86,22,87,28],[86,18,87,21],[88,18,88,21],[86,5,87,17],[54,31,54,32],[54,23,54,30],[54,0,54,7],[54,8,54,21],[86,0,87,4],[88,0,88,4],[88,5,88,17],[64,23,64,36],[68,23,68,37],[64,0,64,13],[66,32,66,36],[72,0,72,13],[62,7,62,13],[62,23,62,34],[60,42,60,44],[60,23,60,35],[58,0,58,3],[58,4,58,10],[60,13,60,17],[60,19,60,21],[60,36,60,40],[72,23,72,38],[70,32,70,37],[70,0,70,9],[70,23,70,31],[66,23,66,31],[68,0,68,9],[66,0,66,11],[66,12,66,16],[70,10,70,15],[72,14,72,18],[72,39,72,44],[68,38,68,44],[88,29,88,36],[76,32,76,35],[76,8,76,17],[76,0,76,7],[76,23,76,31],[88,37,88,44],[80,0,80,14],[80,15,80,18],[80,23,80,37],[80,38,80,41],[82,41,82,44],[82,0,82,13],[82,14,82,17],[82,23,82,40],[78,23,78,32],[78,33,78,36],[78,18,78,21],[78,0,78,17],[86,29,87,36],[86,37,87,44]]}
[]
[]
[]
[]
[]
[]
["REPONSÁVEL PELA ELABORAÇÃO DO PROJETO",null,null,null,null,null,null,null,null,null,null,null,null,null,null,null,null,null,null,null,null,null,null,null,null,null,null,null,null,null,null,null,null,null,null,null,null,null,null,null,null,null,null,null,null,{"$f":"IF(OR(G9=\"\",AJ9=\"\",F11=\"\",AH11=\"\",F13=\"\",X13=\"\",H15=\"\",AJ15=\"\"),\"AUSENTE\",\"OK\")","v":"AUSENTE"}]
[]
["ELABORADOR:",null,null,null,null,null,null,null,null,null,null,null,null,null,null,null,null,null,null,null,null,null,null,null,null,null,null,null,null,null,null,"CPF/CNPJ:",null,null,null,{"$f":"IFERROR(VLOOKUP(G9,'EMPRESAS ELABORADORAS'!A2:F11,2,0),\"-\")","v":"-"}]
[]
["ENDEREÇO:",null,null,null,null,{"$f":"IFERROR(VLOOKUP(G9,'EMPRESAS ELABORADORAS'!A2:F11,3,0),\"-\")","v":"-"},null,null,null,null,null,null,null,null,null,null,null,null,null,null,null,null,null,null,null,null,null,null,null,"CIDADE:",null,null,null,{"$f":"IFERROR(VLOOKUP(G9,'EMPRESAS ELABORADORAS'!A2:F11,4,0),\"-\")","v":"-"}]
[]
["TELEFONE:",null,null,null,null,{"$f":"IFERROR(VLOOKUP(G9,'EMPRESAS ELABORADORAS'!A2:F11,5,0),\"-\")","v":"-"},null,null,null,null,null,null,null,null,null,null,null,null,null,"EMAIL:",null,null,null,{"$f":"IFERROR(VLOOKUP(G9,'EMPRESAS ELABORADORAS'!A2:F11,6,0),\"-\")","v":"-"}]
[]
["RESP. TÉCNICO:",null,null,null,null,null,null,null,null,null,null,null,null,null,null,null,null,null,null,null,null,null,null,null,null,null,null,null,null,null,"CREA / CFTA:"]
[]
["IDENTIFICAÇÃO DO PROPONENTE",null,null,null,null,null,null,null,null,null,null,null,null,null,null,null,null,null,null,null,null,null,null,null,null,null,null,null,null,null,null,null,null,null,null,null,null,null,null,null,null,null,null,null,null,{"$f":"IF(OR(F19=\"\",AJ19=\"\",F21=\"\",AH21=\"\",I23=\"\",T23=\"\",AE23=\"\"),\"AUSENTE\",\"OK\")","v":"AUSENTE"}]
[]
["NOME:",null,null,null,null,null,null,null,null,null,null,null,null,null,null,null,null,null,null,null,null,null,null,null,null,null,null,null,null,null,"CPF/CNPJ:"]
[]
["ENDEREÇO:",null,null,null,null,null,null,null,null,null,null,null,null,null,null,null,null,null,null,null,null,null,null,null,null,null,null,null,null,"CIDADE:"]
[]
["CONTA CORRENTE:",null,null,null,null,null,null,null,null,null,null,null,null,null,"TELEFONE:",null,null,null,null,null,null,null,null,null,null,null,"EMAIL:"]
[]
["IMÓVEIS DE LOCALIZAÇÃO DO EMPREENDIMENTO"]
[]
["QUANTIDADE DE IMÓVEIS:",null,null,null,null,null,null,null,null,null,1]
[]
["IMÓVEL 1",null,null,null,null,null,null,null,null,null,null,null,null,null,null,null,null,null,null,null,null,null,null,null,null,null,null,null,null,null,null,null,null,null,null,null,null,null,null,null,null,null,null,null,null,{"$f":"IF(OR(H31=\"\",AJ31=\"\",G33=\"\",AH33=\"\",F35=\"\"),\"AUSENTE\",\"OK\")","v":"AUSENTE"}]
[]
["PROPRIEDADE:",null,null,null,null,null,null,null,null,null,null,null,null,null,null,null,null,null,null,null,null,null,null,null,null,null,null,null,null,"MATRÍCULA:"]
[]
["PROPRIETÁRIO:",null,null,null,null,null,null,null,null,null,null,null,null,null,null,null,null,null,null,null,null,null,null,null,null,null,null,null,"CPF/CNPJ:"]
[]
["MUNICÍPIO:",null,null,null,null,null,null,null,null,null,null,null,null,null,null,null,"ÁREA TOTAL IMÓVEL (ha):",null,null,null,null,null,null,null,null,null,null,null,null,null,"ÁREA A SER BENEFICIADA (ha):"]
[]
["IMÓVEL 2",null,null,null,null,null,null,null,null,null,null,null,null,null,null,null,null,null,null,null,null,null,null,null,null,null,null,null,null,null,null,null,null,null,null,null,null,null,null,null,null,null,null,null,null,{"$f":"IF(OR(H39=\"\",AJ39=\"\",G41=\"\",AH41=\"\",F43=\"\"),\"AUSENTE\",\"OK\")","v":"AUSENTE"}]
[]
["PROPRIEDADE:",null,null,null,null,null,null,null,null,null,null,null,null,null,null,null,null,null,null,null,null,null,null,null,null,null,null,null,null,"MATRÍCULA:"]
[]
["PROPRIETÁRIO:",null,null,null,null,null,null,null,null,null,null,null,null,null,null,null,null,null,null,null,null,null,null,null,null,null,null,null,"CPF/CNPJ:"]
[]
["MUNICÍPIO:",null,null,null,null,null,null,null,null,null,null,null,null,null,null,null,"ÁREA TOTAL IMÓVEL (ha):",null,null,null,null,null,null,null,null,null,null,null,null,null,"ÁREA A SER BENEFICIADA (ha):"]
[]
["IMÓVEL 3",null,null,null,null,null,null,null,null,null,null,null,null,null,null,null,null,null,null,null,null,null,null,null,null,null,null,null,null,null,null,null,null,null,null,null,null,null,null,null,null,null,null,null,null,{"$f":"IF(OR(H47=\"\",AJ47=\"\",G49=\"\",AH49=\"\",F51=\"\"),\"AUSENTE\",\"OK\")","v":"AUSENTE"}]
[]
["PROPRIEDADE:",null,null,null,null,null,null,null,null,null,null,null,null,null,null,null,null,null,null,null,null,null,null,null,null,null,null,null,null,"MATRÍCULA:"]
[]
["PROPRIETÁRIO:",null,null,null,null,null,null,null,null,null,null,null,null,null,null,null,null,null,null,null,null,null,null,null,null,null,null,null,"CPF/CNPJ:"]
[]
["MUNICÍPIO:",null,null,null,null,null,null,null,null,null,null,null,null,null,null,null,"ÁREA TOTAL IMÓVEL (ha):",null,null,null,null,null,null,null,null,null,null,null,null,null,"ÁREA A SER BENEFICIADA (ha):"]
[]
["EMPREENDIMENTO",null,null,null,null,null,null,null,null,null,null,null,null,null,null,null,null,null,null,null,null,null,null,null,null,null,null,null,null,null,null,null,null,null,null,null,null,null,null,null,null,null,null,null,null,{"$f":"IF(OR(LINHA_CRÉDITO=\"\",CULTURA=\"\",N61=\"\",T61=\"\",PRAZO_PROJETO=\"\",O65=\"\",M67=\"\",K69=\"\",K71=\"\",TAXA_JUROS=\"\",O73=\"\",H75=\"\",I77=\"\",H75=\"\",I77=\"\",S79=\"\",P81=\"\",O83=\"\",AF55=\"\",AI55=\"\",AO55=\"\",PORTE_PRODUTOR=\"\",AK61=\"\",AQ61=\"\",AJ63=\"\",AL65=\"\",ÁREA_FINANCIADA=\"\",AM69=\"\",RECEITA_ESTIMADA=\"\",AC57=\"\",CUSTO_ARRENDAMENTO=\"\",AG75=\"\",AG77=\"\",AH79=\"\",AM81=\"\",AP83=\"\"),\"AUSENTE\",\"OK\")","v":"AUSENTE"}]
[]
["LINHA DE CRÉDITO:",null,null,null,null,null,null,null,null,null,null,null,null,null,null,null,null,null,null,null,null,null,null,"DATA DO PROJETO:",null,null,null,null,null,null,null,null,null,"/",null,null,null,null,null,"/",null,null,null,null,null,{"$f":"IF(CULTURA<>\"CAFÉ\",\"CULTURA_12MESES\",\"CULTURA_14MESES\")","v":"CULTURA_12MESES"}]
[]
["TAXA DE JUROS (a.a):",null,null,null,null,null,null,null,null,null,null,null,null,null,null,null,null,null,null,null,null,null,null,"GARANTIAS:"]
[]
["CULTURA:",null,null,null,null,null,null,null,null,null,null,null,null,null,null,null,null,null,null,null,null,null,null,"PORTE DO PRODUTOR:"]
[]
["PREVISÃO DO INICIO DO PLANTIO:",null,null,null,null,null,null,null,null,null,null,null,null,null,null,null,null,null,"/",null,null,null,null,"PREVISÃO DO TÉRMINO DA COLHEITA:",null,null,null,null,null,null,null,null,null,null,null,null,null,null,null,null,null,"/"]
[]
["PRAZO DO CUSTEIO:",null,null,null,null,null,null,null,null,null,null,null,null,null,null,null,null,null,null,null,null,null,null,"PERIODICIDADE DO REEMBOLSO:"]
[]
["VALOR ORÇADO TOTAL DO PROJETO (R$):",null,null,null,null,null,null,null,null,null,null,null,null,null,{"$f":"IF(VALOR_ORÇADO=0,\"-\",VALOR_ORÇADO)","v":"-"},null,null,null,null,null,null,null,null,"VALOR A SER FINANCIADO NO PROJETO:",null,null,null,null,null,null,null,null,null,null,null,null,null,{"$f":"IF(VALOR_FINANCIADO=0,\"-\",VALOR_FINANCIADO)","v":"-"}]
[]
["ÁREA TOTAL DA LAVOURA (ha):",null,null,null,null,null,null,null,null,null,null,null,null,null,null,null,null,null,null,null,null,null,null,"ÁREA FINANCIADA (ha):"]
[]
["PRODUTIVIDADE (kg/ha):",null,null,null,null,null,null,null,null,null,null,null,null,null,null,null,null,null,null,null,null,null,null,"PRODUÇÃO DA ÁREA FINANCIADA (ton): ",null,null,null,null,null,null,null,null,null,null,null,null,null,null,{"$f":"IF((K69*ÁREA_FINANCIADA)/1000=0,\"-\",(K69*ÁREA_FINANCIADA)/1000)","v":"-"}]
[]
["PREÇO ESTIMADO (R$/kg):",null,null,null,null,null,null,null,null,null,null,null,null,null,null,null,null,null,null,null,null,null,null,"RECEITA PREVISTA (R$):",null,null,null,null,null,null,null,null,{"$f":"IF(K71*K69*ÁREA_FINANCIADA=0,\"-\",K71*K69*ÁREA_FINANCIADA)","v":"-"}]
[]
["ÁREA BENEFICIADA ARRENDADA (ha):",null,null,null,null,null,null,null,null,null,null,null,null,null,null,null,null,null,null,null,null,null,null,"CUSTO MENSAL DO ARRENDAMENTO (por ha):"]
[]
["ASSISTÊNCIA TÉC.:",null,null,null,null,null,null,null,null,null,null,null,null,null,null,null,null,null,null,null,null,null,null,"MAQUINÁRIO PRÓPRIO:"]
[]
["SISTEMA DE PLANTIO:",null,null,null,null,null,null,null,null,null,null,null,null,null,null,null,null,null,null,null,null,null,null,"ÁREA COM IRRIGAÇÃO:"]
[]
["RESERVA LEGAL , APP OU PLANO DE RECUPERAÇÃO:",null,null,null,null,null,null,null,null,null,null,null,null,null,null,null,null,null,null,null,null,null,null,"ZONEAMENTO AGRÍCOLA:"]
[]
["SEGURO AGRÍCOLA, EXCETO PROAGRO:",null,null,null,null,null,null,null,null,null,null,null,null,null,null,null,null,null,null,null,null,null,null,"CONTRATOS FUTUROS OU DE OPÇÕES:"]
[]
["SISTEMA ORGÂNICO DE PRODUÇÃO:",null,null,null,null,null,null,null,null,null,null,null,null,null,null,null,null,null,null,null,null,null,null,"PARTICIPA DO SAPI E CERTIFICAÇÃO DO INMETRO:"]
[]
["HISTÓRICO DE PRODUTIVIDADE"]
[]
["ANO",null,null,null,null,"CULTURA",null,null,null,null,null,null,null,null,null,null,null,null,"ÁREA\n(ha)",null,null,null,"PRODUÇÃO\n(kg/ha)",null,null,null,null,null,null,"PREÇO MÉDIO UNITÁRIO (R$/kg)",null,null,null,null,null,null,null,"RECEITA TOTAL (R$)"]
[]
[null,null,null,null,null,null,null,null,null,null,null,null,null,null,null,null,null,null,null,null,null,null,null,null,null,null,null,null,null,null,null,null,null,null,null,null,null,{"$f":"IF(OR(S89=\"\",W89=\"\",AD89=\"\"),\"-\",AD89*W89*S89)","v":"-"}]
[null,null,null,null,null,null,null,null,null,null,null,null,null,null,null,null,null,null,null,null,null,null,null,null,null,null,null,null,null,null,null,null,null,null,null,null,null,{"$f":"IF(OR(S90=\"\",W90=\"\",AD90=\"\"),\"-\",AD90*W90*S90)","v":"-"}]
[null,null,null,null,null,null,null,null,null,null,null,null,null,null,null,null,null,null,null,null,null,null,null,null,null,null,null,null,null,null,null,null,null,null,null,null,null,{"$f":"IF(OR(S91=\"\",W91=\"\",AD91=\"\"),\"-\",AD91*W91*S91)","v":"-"}]
["OBSERVAÇÕES:"]
[]
[]
["INFORMAÇÕES COMPLEMENTARES (OPCIONAIS)",null,null,null,null,null,null,null,null,null,null,null,null,null,null,null,null,null,null,null,null,null,null,null,null,null,null,null,null,null,null,null,null,null,null,null,null,null,null,null,null,null,null,null,null,{"$f":"IF(AND(EMPREENDIMENTO_INFO=\"\",EMPREENDIMENTO_INFO1=\"\",EMPREENDIMENTO_INFO2=\"\",EMPREENDIMENTO_INFO3=\"\",EMPREENDIMENTO_INFO4=\"\"),0,1)","v":0}]
[]
["SOBRE O PRODUTOR:"]
[]
["SOBRE A PRODUÇÃO:"]
[]
["SOBRE A ÁREA:"]
[]
["SOBRE A ESTRUTURA:"]
[]
["SOBRE O MAQUINÁRIO E EQUIPAMENTOS:"]
[]
[]
[]
[]
["________________________________________",null,null,null,null,null,null,null,null,null,null,null,null,null,null,null,null,null,null,null,null,null,null,null,null,"________________________________________"]
[{"$f":"UPPER('INFORMAÇÕES GERAIS'!F19)","v":""},null,null,null,null,null,null,null,null,null,null,null,null,null,null,null,null,null,null,null,null,null,null,null,null,{"$f":"UPPER('INFORMAÇÕES GERAIS'!H15)","v":""}]
["Proponente",null,null,null,null,null,null,null,null,null,null,null,null,null,null,null,null,null,null,null,null,null,null,null,null,"Responsável Técnico"]

{"sheet":"LISTA_PATRIMÔNIO","index":3,"n_rows":21,"n_cols":11,"rows_kept":21,"cut":false,"hidden":true,"merged":[]}
["LOCALIZAÇÃO","TIPO USO","TIPO BEM","TIPO BEM",null,null,null,null,"TIPO_SEMOVENTES",null,"REF"]
["URBANO","RESIDENCIAL","CASA","VEÍCULO",null,null,null,null,"SUÍNOS",null,1]
["RURAL","COMERCIAL","APARTAMENTO","MÁQUINA",null,null,null,null,"BUBALINOS",null,2]
[" ","INDUSTRIAL","PRÉDIO","EQUIPAMENTO",null,null,null,null,"EQUINOS",null,3]
[null,"RURAL","TERRENO",null,null,null,null,null,"OVINOS",null,4]
[null,null,"PRÉDIO",null,null,null,null,null,"APICULTURA",null,5]
[null,null,"TERRENO",null,null,null,null,null,"ASININOS",null,6]
[null,null,"LOJA",null,null,null,null,null,"AVICULTURA",null,7]
[null,null,"SALA",null,null,null,null,null,"CANINOS",null,8]
[null,null,"GALPÃO",null,null,null,null,null,"CAPRINOS",null,9]
[null,null,"PRÉDIO",null,null,null,null,null,"PISCICULTURA",null,10]
[null,null,"TERRENO",null,null,null,null,null,"RANICULTURA",null,11]
[null,null,"FAZENDA",null,null,null,null,null,"SERICICULTURA",null,12]
[null,null,"SÍTIO",null,null,null,null,null,null,null,13]
[null,null,"RANCHO",null,null,null,null,null,null,null,14]
[null,null,"CHÁCARA",null,null,null,null,null,null,null,15]
[null,null,"ESTÂNCIA",null,null,null,null,null,null,null,16]
[null,null,"OUTRO",null,null,null,null,null,null,null,17]
[null,null,null,null,null,null,null,null,null,null,18]
[null,null,null,null,null,null,null,null,null,null,19]
[null,null,null,null,null,null,null,null,null,null,20]

{"sheet":"LISTAS","index":4,"n_rows":33,"n_cols":25,"rows_kept":33,"cut":false,"hidden":true,"merged":[]}
["CULTURAS","UNIDADES","DIA","MÊS","ANO","ASSISTENCIA TÉCNICA","CULTURA","GARANTIA","PERIODICIDADE","PRAZO DO PROJETO",null,{"$f":"YEAR(TODAY())","v":2022},"PRODUTOR",null,null,null,null,null,null,null,null,"BEZERRA","BEZERRA","0 a 6",{"$f":"YEAR(TODAY())-1","v":2021}]
[null,"UN",1,"JANEIRO",2020,"ELABORAÇÃO DO PROJETO","ABACATE","PENHOR DA SAFRA","MENSAL","14 MESES",14,{"$f":"L1-1","v":2021},"PEQUENO PRODUTOR",null,null,null,null,null,null,null,null,"BEZERRO","BEZERRA","7 a 12",{"$f":"Y1-1","v":2020}]
[null,"KG",2,"FEVEREIRO",2021,"PROJETO + ASSISTÊNCIA TÉCNICA","ALHO","PENHOR DA SAFRA E GARANTIA FIDEJUSSÓRIA","SEMESTRAL","13 MESES",13,{"$f":"L2-1","v":2020},"MÉDIO PRODUTOR",null,null,null,null,null,null,null,null,"NOVILHA","BEZERRO","0 a 6",2019]
[null,"TON",3,"MARÇO",2022,null,"BANANA","PENHOR DA SAFRA E GARANTIA REAL","ANUAL","12 MESES ",12,{"$f":"L3-1","v":2019},"GRANDE PRODUTOR",null,null,null,null,null,null,null,null,"NOVILHO","BEZERRO","7 a 12",2018]
[null,"GR",4,"ABRIL",2023,null,"BATATA",null,null,"11 MESES",11,{"$f":"L4-1","v":2018},null,null,null,null,null,null,null,null,null,"VACA","BOI","25 a 30",2017]
[null,"m",5,"MAIO",2024,null,"BETERRABA",null,null,"10 MESES ",10,2017,null,null,null,null,null,null,null,null,null,"BOI","BOI","30 a 36",2016]
[null,"m²",6,"JUNHO",2025,null,"CAFÉ",null,null,"9 MESES ",9,2016,null,null,null,null,null,null,null,null,null,null,"BOI",{"$f":"TEXT(\"+ de 36\",1)","v":"+ de 36"},2015]
[null,"m³",7,"JULHO",2026,null,"CANA-DE-AÇUCAR",null,null,"8 MESES ",8,2015,null,null,null,null,null,null,null,null,null,null,"NOVILHA","13 a 18",2014]
[null,"DIÁRIA",8,"AGOSTO",2027,null,"CEBOLA",null,null,"7 MESES ",7,2014,null,null,null,null,null,null,null,null,null,null,"NOVILHA","19 a 24"]
[null,"HORA",9,"SETEMBRO",2028,null,"CENOURA",null,null,"6 MESES ",6,2013,null,null,null,null,null,null,null,null,null,null,"NOVILHA","25 a 30"]
[null,"L",10,"OUTUBRO",2029,null,"FEIJÃO",null,null,"5 MESES ",5,2012,null,null,null,null,null,null,null,null,null,null,"NOVILHO","19 a 24"]
[null,"ml",11,"NOVEMBRO",2030,null,"LARANJA",null,null,"4 MESES ",4,2011,null,null,null,null,null,null,null,null,null,null,"NOVILHO","13 a 18"]
[null,null,12,"DEZEMBRO",2031,null,"LICHIA (LECHIA)",null,null,"3 MESES ",3,null,null,null,null,null,null,null,null,null,null,null,"NOVILHO","25 a 30"]
[null,null,null,null,null,null,"MANDIOCA"]
[null,null,13,null,null,null,"MANGA",null,null,"2 MESES ",2,null,null,null,null,null,null,null,null,null,null,null,"VACA","25 a 30"]
[null,null,14,null,null,null,"MARACUJÁ",null,null,"1 MÊS",1,null,null,null,null,null,null,null,null,null,null,null,"VACA","30 a 36"]
[null,null,15,null,null,null,"MILHO",null,null,null,null,null,null,null,null,null,null,null,null,null,null,null,"VACA",{"$f":"TEXT(\"+ de 36\",1)","v":"+ de 36"}]
[null,null,16,null,null,null,"MILHO SAFRINHA"]
[null,null,17,null,null,null,"MORANGO"]
[null,null,18,null,null,null,"PASTAGEM"]
[null,null,19,null,null,null,"PIMENTÃO"]
[null,null,20,null,null,null,"REPOLHO"]
[null,null,21,null,null,null,"SOJA"]
[null,null,22,null,null,null,"SORGO"]
[null,null,23,null,null,null,"TRIGO"]
[null,null,24,null,null,null,"UVA"]
[null,null,25]
[null,null,26]
[null,null,27]
[null,null,28]
[null,null,29]
[null,null,30]
[null,null,31]

{"sheet":"IMÓVEIS","index":5,"n_rows":285,"n_cols":57,"rows_kept":285,"cut":false,"hidden":true,"merged":[[283,22,283,39],[283,40,283,57],[284,22,284,39],[284,40,284,57],[262,0,262,58],[277,0,277,40],[278,0,278,58],[279,0,279,40],[280,0,280,40],[282,22,282,39],[282,40,282,57],[261,30,261,33],[261,35,261,38],[261,40,261,43],[261,46,261,49],[261,51,261,54],[261,56,261,58],[261,0,261,3],[261,5,261,8],[261,10,261,12],[261,15,261,18],[261,20,261,23],[261,25,261,27],[260,30,260,33],[260,35,260,38],[260,40,260,43],[260,46,260,49],[260,51,260,54],[260,56,260,58],[260,0,260,3],[260,5,260,8],[260,10,260,12],[260,15,260,18],[260,20,260,23],[260,25,260,27],[258,30,258,33],[258,35,258,38],[258,40,258,43],[258,46,258,49],[258,51,258,54],[258,56,258,58],[258,0,258,3],[258,5,258,8],[258,10,258,12],[258,15,258,18],[258,20,258,23],[258,25,258,27],[257,30,257,33],[257,35,257,38],[257,40,257,43],[257,46,257,49],[257,51,257,54],[257,56,257,58],[257,0,257,3],[257,5,257,8],[257,10,257,12],[257,15,257,18],[257,20,257,23],[257,25,257,27],[256,30,256,33],[256,35,256,38],[256,40,256,43],[256,46,256,49],[256,51,256,54],[256,56,256,58],[256,0,256,3],[256,5,256,8],[256,10,256,12],[256,15,256,18],[256,20,256,23],[256,25,256,27],[255,30,255,33],[255,35,255,38],[255,40,255,43],[255,46,255,49],[255,51,255,54],[255,56,255,58],[255,0,255,3],[255,5,255,8],[255,10,255,12],[255,15,255,18],[255,20,255,23],[255,25,255,27],[254,30,254,33],[254,35,254,38],[254,40,254,43],[254,46,254,49],[254,51,254,54],[254,56,254,58],[253,40,253,43],[253,46,253,49],[253,51,253,54],[253,56,253,58],[254,0,254,3],[254,5,254,8],[254,10,254,12],[254,15,254,18],[254,20,254,23],[254,25,254,27],[229,56,229,58],[230,0,230,58],[253,0,253,3],[253,5,253,8],[253,10,253,12],[253,15,253,18],[253,20,253,23],[253,25,253,27],[253,30,253,33],[253,35,253,38],[229,25,229,27],[229,30,229,33],[229,35,229,38],[229,40,229,43],[229,46,229,49],[229,51,229,54],[228,35,228,38],[228,40,228,43],[228,46,228,49],[228,51,228,54],[228,56,228,58],[229,0,229,3],[229,5,229,8],[229,10,229,12],[229,15,229,18],[229,20,229,23],[227,46,227,49],[227,51,227,54],[227,56,227,58],[228,0,228,3],[228,5,228,8],[228,10,228,12],[228,15,228,18],[228,20,228,23],[228,25,228,27],[228,30,228,33],[226,56,226,58],[227,0,227,3],[227,5,227,8],[227,10,227,12],[227,15,227,18],[227,20,227,23],[227,25,227,27],[227,30,227,33],[227,35,227,38],[227,40,227,43],[226,25,226,27],[226,30,226,33],[226,35,226,38],[226,40,226,43],[226,46,226,49],[226,51,226,54],[225,35,225,38],[225,40,225,43],[225,46,225,49],[225,51,225,54],[225,56,225,58],[226,0,226,3],[226,5,226,8],[226,10,226,12],[226,15,226,18],[226,20,226,23],[224,46,224,49],[224,51,224,54],[224,56,224,58],[225,0,225,3],[225,5,225,8],[225,10,225,12],[225,15,225,18],[225,20,225,23],[225,25,225,27],[225,30,225,33],[223,56,223,58],[224,0,224,3],[224,5,224,8],[224,10,224,12],[224,15,224,18],[224,20,224,23],[224,25,224,27],[224,30,224,33],[224,35,224,38],[224,40,224,43],[223,25,223,27],[223,30,223,33],[223,35,223,38],[223,40,223,43],[223,46,223,49],[223,51,223,54],[222,35,222,38],[222,40,222,43],[222,46,222,49],[222,51,222,54],[222,56,222,58],[223,0,223,3],[223,5,223,8],[223,10,223,12],[223,15,223,18],[223,20,223,23],[221,46,221,49],[221,51,221,54],[221,56,221,58],[222,0,222,3],[222,5,222,8],[222,10,222,12],[222,15,222,18],[222,20,222,23],[222,25,222,27],[222,30,222,33],[220,56,220,58],[221,0,221,3],[221,5,221,8],[221,10,221,12],[221,15,221,18],[221,20,221,23],[221,25,221,27],[221,30,221,33],[221,35,221,38],[221,40,221,43],[220,25,220,27],[220,30,220,33],[220,35,220,38],[220,40,220,43],[220,46,220,49],[220,51,220,54],[219,35,219,38],[219,40,219,43],[219,46,219,49],[219,51,219,54],[219,56,219,58],[220,0,220,3],[220,5,220,8],[220,10,220,12],[220,15,220,18],[220,20,220,23],[218,46,218,49],[218,51,218,54],[218,56,218,58],[219,0,219,3],[219,5,219,8],[219,10,219,12],[219,15,219,18],[219,20,219,23],[219,25,219,27],[219,30,219,33],[217,56,217,58],[218,0,218,3],[218,5,218,8],[218,10,218,12],[218,15,218,18],[218,20,218,23],[218,25,218,27],[218,30,218,33],[218,35,218,38],[218,40,218,43],[217,25,217,27],[217,30,217,33],[217,35,217,38],[217,40,217,43],[217,46,217,49],[217,51,217,54],[216,35,216,38],[216,40,216,43],[216,46,216,49],[216,51,216,54],[216,56,216,58],[217,0,217,3],[217,5,217,8],[217,10,217,12],[217,15,217,18],[217,20,217,23],[215,46,215,49],[215,51,215,54],[215,56,215,58],[216,0,216,3],[216,5,216,8],[216,10,216,12],[216,15,216,18],[216,20,216,23],[216,25,216,27],[216,30,216,33],[214,56,214,58],[215,0,215,3],[215,5,215,8],[215,10,215,12],[215,15,215,18],[215,20,215,23],[215,25,215,27],[215,30,215,33],[215,35,215,38],[215,40,215,43],[214,25,214,27],[214,30,214,33],[214,35,214,38],[214,40,214,43],[214,46,214,49],[214,51,214,54],[213,35,213,38],[213,40,213,43],[213,46,213,49],[213,51,213,54],[213,56,213,58],[214,0,214,3],[214,5,214,8],[214,10,214,12],[214,15,214,18],[214,20,214,23],[212,46,212,49],[212,51,212,54],[212,56,212,58],[213,0,213,3],[213,5,213,8],[213,10,213,12],[213,15,213,18],[213,20,213,23],[213,25,213,27],[213,30,213,33],[211,56,211,58],[212,0,212,3],[212,5,212,8],[212,10,212,12],[212,15,212,18],[212,20,212,23],[212,25,212,27],[212,30,212,33],[212,35,212,38],[212,40,212,43],[211,25,211,27],[211,30,211,33],[211,35,211,38],[211,40,211,43],[211,46,211,49],[211,51,211,54],[210,35,210,38],[210,40,210,43],[210,46,210,49],[210,51,210,54],[210,56,210,58],[211,0,211,3],[211,5,211,8],[211,10,211,12],[211,15,211,18],[211,20,211,23],[209,46,209,49],[209,51,209,54],[209,56,209,58],[210,0,210,3],[210,5,210,8],[210,10,210,12],[210,15,210,18],[210,20,210,23],[210,25,210,27],[210,30,210,33],[208,56,208,58],[209,0,209,3],[209,5,209,8],[209,10,209,12],[209,15,209,18],[209,20,209,23],[209,25,209,27],[209,30,209,33],[209,35,209,38],[209,40,209,43],[208,25,208,27],[208,30,208,33],[208,35,208,38],[208,40,208,43],[208,46,208,49],[208,51,208,54],[207,35,207,38],[207,40,207,43],[207,46,207,49],[207,51,207,54],[207,56,207,58],[208,0,208,3],[208,5,208,8],[208,10,208,12],[208,15,208,18],[208,20,208,23],[206,46,206,49],[206,51,206,54],[206,56,206,58],[207,0,207,3],[207,5,207,8],[207,10,207,12],[207,15,207,18],[207,20,207,23],[207,25,207,27],[207,30,207,33],[205,56,205,58],[206,0,206,3],[206,5,206,8],[206,10,206,12],[206,15,206,18],[206,20,206,23],[206,25,206,27],[206,30,206,33],[206,35,206,38],[206,40,206,43],[205,25,205,27],[205,30,205,33],[205,35,205,38],[205,40,205,43],[205,46,205,49],[205,51,205,54],[204,35,204,38],[204,40,204,43],[204,46,204,49],[204,51,204,54],[204,56,204,58],[205,0,205,3],[205,5,205,8],[205,10,205,12],[205,15,205,18],[205,20,205,23],[203,46,203,49],[203,51,203,54],[203,56,203,58],[204,0,204,3],[204,5,204,8],[204,10,204,12],[204,15,204,18],[204,20,204,23],[204,25,204,27],[204,30,204,33],[202,56,202,58],[203,0,203,3],[203,5,203,8],[203,10,203,12],[203,15,203,18],[203,20,203,23],[203,25,203,27],[203,30,203,33],[203,35,203,38],[203,40,203,43],[202,25,202,27],[202,30,202,33],[202,35,202,38],[202,40,202,43],[202,46,202,49],[202,51,202,54],[200,35,201,38],[200,40,201,43],[200,46,201,49],[200,51,201,54],[200,56,201,58],[202,0,202,3],[202,5,202,8],[202,10,202,12],[202,15,202,18],[202,20,202,23],[196,7,196,58],[198,0,198,15],[198,16,198,19],[200,0,201,3],[200,5,201,8],[200,10,201,12],[200,15,201,18],[200,20,201,23],[200,25,201,27],[200,30,201,33],[190,22,190,39],[190,40,190,57],[191,22,191,39],[191,40,191,57],[192,0,192,58],[194,0,194,5],[194,6,194,27],[194,28,194,33],[194,34,194,40],[169,0,169,58],[184,0,184,40],[185,0,185,58],[186,0,186,40],[187,0,187,40],[189,22,189,39],[189,40,189,57],[168,30,168,33],[168,35,168,38],[168,40,168,43],[168,46,168,49],[168,51,168,54],[168,56,168,58],[168,0,168,3],[168,5,168,8],[168,10,168,12],[168,15,168,18],[168,20,168,23],[168,25,168,27],[167,30,167,33],[167,35,167,38],[167,40,167,43],[167,46,167,49],[167,51,167,54],[167,56,167,58],[167,0,167,3],[167,5,167,8],[167,10,167,12],[167,15,167,18],[167,20,167,23],[167,25,167,27],[165,30,165,33],[165,35,165,38],[165,40,165,43],[165,46,165,49],[165,51,165,54],[165,56,165,58],[165,0,165,3],[165,5,165,8],[165,10,165,12],[165,15,165,18],[165,20,165,23],[165,25,165,27],[164,30,164,33],[164,35,164,38],[164,40,164,43],[164,46,164,49],[164,51,164,54],[164,56,164,58],[164,0,164,3],[164,5,164,8],[164,10,164,12],[164,15,164,18],[164,20,164,23],[164,25,164,27],[163,30,163,33],[163,35,163,38],[163,40,163,43],[163,46,163,49],[163,51,163,54],[163,56,163,58],[163,0,163,3],[163,5,163,8],[163,10,163,12],[163,15,163,18],[163,20,163,23],[163,25,163,27],[162,30,162,33],[162,35,162,38],[162,40,162,43],[162,46,162,49],[162,51,162,54],[162,56,162,58],[162,0,162,3],[162,5,162,8],[162,10,162,12],[162,15,162,18],[162,20,162,23],[162,25,162,27],[161,30,161,33],[161,35,161,38],[161,40,161,43],[161,46,161,49],[161,51,161,54],[161,56,161,58],[160,40,160,43],[160,46,160,49],[160,51,160,54],[160,56,160,58],[161,0,161,3],[161,5,161,8],[161,10,161,12],[161,15,161,18],[161,20,161,23],[161,25,161,27],[136,56,136,58],[137,0,137,58],[160,0,160,3],[160,5,160,8],[160,10,160,12],[160,15,160,18],[160,20,160,23],[160,25,160,27],[160,30,160,33],[160,35,160,38],[136,25,136,27],[136,30,136,33],[136,35,136,38],[136,40,136,43],[136,46,136,49],[136,51,136,54],[135,35,135,38],[135,40,135,43],[135,46,135,49],[135,51,135,54],[135,56,135,58],[136,0,136,3],[136,5,136,8],[136,10,136,12],[136,15,136,18],[136,20,136,23],[134,46,134,49],[134,51,134,54],[134,56,134,58],[135,0,135,3],[135,5,135,8],[135,10,135,12],[135,15,135,18],[135,20,135,23],[135,25,135,27],[135,30,135,33],[133,56,133,58],[134,0,134,3],[134,5,134,8],[134,10,134,12],[134,15,134,18],[134,20,134,23],[134,25,134,27],[134,30,134,33],[134,35,134,38],[134,40,134,43],[133,25,133,27],[133,30,133,33],[133,35,133,38],[133,40,133,43],[133,46,133,49],[133,51,133,54],[132,35,132,38],[132,40,132,43],[132,46,132,49],[132,51,132,54],[132,56,132,58],[133,0,133,3],[133,5,133,8],[133,10,133,12],[133,15,133,18],[133,20,133,23],[131,46,131,49],[131,51,131,54],[131,56,131,58],[132,0,132,3],[132,5,132,8],[132,10,132,12],[132,15,132,18],[132,20,132,23],[132,25,132,27],[132,30,132,33],[130,56,130,58],[131,0,131,3],[131,5,131,8],[131,10,131,12],[131,15,131,18],[131,20,131,23],[131,25,131,27],[131,30,131,33],[131,35,131,38],[131,40,131,43],[130,25,130,27],[130,30,130,33],[130,35,130,38],[130,40,130,43],[130,46,130,49],[130,51,130,54],[129,35,129,38],[129,40,129,43],[129,46,129,49],[129,51,129,54],[129,56,129,58],[130,0,130,3],[130,5,130,8],[130,10,130,12],[130,15,130,18],[130,20,130,23],[128,46,128,49],[128,51,128,54],[128,56,128,58],[129,0,129,3],[129,5,129,8],[129,10,129,12],[129,15,129,18],[129,20,129,23],[129,25,129,27],[129,30,129,33],[127,56,127,58],[128,0,128,3],[128,5,128,8],[128,10,128,12],[128,15,128,18],[128,20,128,23],[128,25,128,27],[128,30,128,33],[128,35,128,38],[128,40,128,43],[127,25,127,27],[127,30,127,33],[127,35,127,38],[127,40,127,43],[127,46,127,49],[127,51,127,54],[126,35,126,38],[126,40,126,43],[126,46,126,49],[126,51,126,54],[126,56,126,58],[127,0,127,3],[127,5,127,8],[127,10,127,12],[127,15,127,18],[127,20,127,23],[125,46,125,49],[125,51,125,54],[125,56,125,58],[126,0,126,3],[126,5,126,8],[126,10,126,12],[126,15,126,18],[126,20,126,23],[126,25,126,27],[126,30,126,33],[124,56,124,58],[125,0,125,3],[125,5,125,8],[125,10,125,12],[125,15,125,18],[125,20,125,23],[125,25,125,27],[125,30,125,33],[125,35,125,38],[125,40,125,43],[124,25,124,27],[124,30,124,33],[124,35,124,38],[124,40,124,43],[124,46,124,49],[124,51,124,54],[123,35,123,38],[123,40,123,43],[123,46,123,49],[123,51,123,54],[123,56,123,58],[124,0,124,3],[124,5,124,8],[124,10,124,12],[124,15,124,18],[124,20,124,23],[122,46,122,49],[122,51,122,54],[122,56,122,58],[123,0,123,3],[123,5,123,8],[123,10,123,12],[123,15,123,18],[123,20,123,23],[123,25,123,27],[123,30,123,33],[121,56,121,58],[122,0,122,3],[122,5,122,8],[122,10,122,12],[122,15,122,18],[122,20,122,23],[122,25,122,27],[122,30,122,33],[122,35,122,38],[122,40,122,43],[121,25,121,27],[121,30,121,33],[121,35,121,38],[121,40,121,43],[121,46,121,49],[121,51,121,54],[120,35,120,38],[120,40,120,43],[120,46,120,49],[120,51,120,54],[120,56,120,58],[121,0,121,3],[121,5,121,8],[121,10,121,12],[121,15,121,18],[121,20,121,23],[119,46,119,49],[119,51,119,54],[119,56,119,58],[120,0,120,3],[120,5,120,8],[120,10,120,12],[120,15,120,18],[120,20,120,23],[120,25,120,27],[120,30,120,33],[118,56,118,58],[119,0,119,3],[119,5,119,8],[119,10,119,12],[119,15,119,18],[119,20,119,23],[119,25,119,27],[119,30,119,33],[119,35,119,38],[119,40,119,43],[118,25,118,27],[118,30,118,33],[118,35,118,38],[118,40,118,43],[118,46,118,49],[118,51,118,54],[117,35,117,38],[117,40,117,43],[117,46,117,49],[117,51,117,54],[117,56,117,58],[118,0,118,3],[118,5,118,8],[118,10,118,12],[118,15,118,18],[118,20,118,23],[116,46,116,49],[116,51,116,54],[116,56,116,58],[117,0,117,3],[117,5,117,8],[117,10,117,12],[117,15,117,18],[117,20,117,23],[117,25,117,27],[117,30,117,33],[115,56,115,58],[116,0,116,3],[116,5,116,8],[116,10,116,12],[116,15,116,18],[116,20,116,23],[116,25,116,27],[116,30,116,33],[116,35,116,38],[116,40,116,43],[115,25,115,27],[115,30,115,33],[115,35,115,38],[115,40,115,43],[115,46,115,49],[115,51,115,54],[114,35,114,38],[114,40,114,43],[114,46,114,49],[114,51,114,54],[114,56,114,58],[115,0,115,3],[115,5,115,8],[115,10,115,12],[115,15,115,18],[115,20,115,23],[113,46,113,49],[113,51,113,54],[113,56,113,58],[114,0,114,3],[114,5,114,8],[114,10,114,12],[114,15,114,18],[114,20,114,23],[114,25,114,27],[114,30,114,33],[112,56,112,58],[113,0,113,3],[113,5,113,8],[113,10,113,12],[113,15,113,18],[113,20,113,23],[113,25,113,27],[113,30,113,33],[113,35,113,38],[113,40,113,43],[112,25,112,27],[112,30,112,33],[112,35,112,38],[112,40,112,43],[112,46,112,49],[112,51,112,54],[111,35,111,38],[111,40,111,43],[111,46,111,49],[111,51,111,54],[111,56,111,58],[112,0,112,3],[112,5,112,8],[112,10,112,12],[112,15,112,18],[112,20,112,23],[110,46,110,49],[110,51,110,54],[110,56,110,58],[111,0,111,3],[111,5,111,8],[111,10,111,12],[111,15,111,18],[111,20,111,23],[111,25,111,27],[111,30,111,33],[109,56,109,58],[110,0,110,3],[110,5,110,8],[110,10,110,12],[110,15,110,18],[110,20,110,23],[110,25,110,27],[110,30,110,33],[110,35,110,38],[110,40,110,43],[109,25,109,27],[109,30,109,33],[109,35,109,38],[109,40,109,43],[109,46,109,49],[109,51,109,54],[107,35,108,38],[107,40,108,43],[107,46,108,49],[107,51,108,54],[107,56,108,58],[109,0,109,3],[109,5,109,8],[109,10,109,12],[109,15,109,18],[109,20,109,23],[103,7,103,58],[105,0,105,15],[105,16,105,19],[107,0,108,3],[107,5,108,8],[107,10,108,12],[107,15,108,18],[107,20,108,23],[107,25,108,27],[107,30,108,33],[97,22,97,39],[97,40,97,57],[98,22,98,39],[98,40,98,57],[99,0,99,58],[101,0,101,5],[101,6,101,27],[101,28,101,33],[101,34,101,40],[91,0,91,40],[92,0,92,58],[93,0,93,40],[94,0,94,40],[96,22,96,39],[96,40,96,57],[75,35,75,38],[75,40,75,43],[75,46,75,49],[75,51,75,54],[75,56,75,58],[76,0,76,58],[74,46,74,49],[74,51,74,54],[74,56,74,58],[75,0,75,3],[75,5,75,8],[75,10,75,12],[75,15,75,18],[75,20,75,23],[75,25,75,27],[75,30,75,33],[73,56,73,58],[74,0,74,3],[74,5,74,8],[74,10,74,12],[74,15,74,18],[74,20,74,23],[74,25,74,27],[74,30,74,33],[74,35,74,38],[74,40,74,43],[73,25,73,27],[73,30,73,33],[73,35,73,38],[73,40,73,43],[73,46,73,49],[73,51,73,54],[72,35,72,38],[72,40,72,43],[72,46,72,49],[72,51,72,54],[72,56,72,58],[73,0,73,3],[73,5,73,8],[73,10,73,12],[73,15,73,18],[73,20,73,23],[70,46,70,49],[70,51,70,54],[70,56,70,58],[72,0,72,3],[72,5,72,8],[72,10,72,12],[72,15,72,18],[72,20,72,23],[72,25,72,27],[72,30,72,33],[69,56,69,58],[70,0,70,3],[70,5,70,8],[70,10,70,12],[70,15,70,18],[70,20,70,23],[70,25,70,27],[70,30,70,33],[70,35,70,38],[70,40,70,43]],"merged_total":1392,"flags":["merged_cut"]}
[]
[]
[]
[]
[]
[]
["IMÓVEL 1"]
[]
["PROPRIEDADE:",null,null,null,null,null,{"$f":"IF('INFORMAÇÕES GERAIS'!H31=\"\",\"-\",'INFORMAÇÕES GERAIS'!H31)","v":"-"},null,null,null,null,null,null,null,null,null,null,null,null,null,null,null,null,null,null,null,null,null,"MATRÍCULA:",null,null,null,null,null,{"$f":"IF('INFORMAÇÕES GERAIS'!AJ31=\"\",\"-\",'INFORMAÇÕES GERAIS'!AJ31)","v":"-"}]
[]
["ROTEIRO DE ACESSO:"]
[]
["COORDENADAS ENVIADAS PELO APLICATIVO:",null,null,null,null,null,null,null,null,null,null,null,null,null,null,null,"SIM"]
[]
["LATITUDE",null,null,null,null,"LONGITUDE",null,null,null,null,"ALT. (m)",null,null,null,null,"LATITUDE",null,null,null,null,"LONGITUDE",null,null,null,null,"ALT. (m)",null,null,null,null,"LATITUDE",null,null,null,null,"LONGITUDE",null,null,null,null,"ALT. (m)",null,null,null,null,null,"LATITUDE",null,null,null,null,"LONGITUDE",null,null,null,null,"ALT. (m)"]
[]
[]
[]
[]
[]
[]
[]
[]
[]
[]
[]
[]
[]
[]
[]
[]
[]
[]
[]
[]
[]
[]
[]
[]
[]
[]
[]
[]
[]
["IMAGEM DA PROPRIEDADE"]
[]
[]
[]
[]
[]
[]
[]
[]
[]
[]
[]
[]
[]
[]
[]
[]
[]
[]
[]
[]
[]
[]
[]
[]
[]
[]
[]
[]
[]
[]
[]
["CONSULTA GEOESPACIAL"]
[]
[]
[]
[]
[]
[]
[]
[]
[]
[]
[]
[]
[]
[]
["Declaro para os devidos fins que:"]
[{"$f":" \"- Realizei as consultas geoespaciais através da ferramenta IDE-SISEMA e não foram encontradas irregularidades que impeçam a utilização da área mencionada acima.\"","v":"- Realizei as consultas geoespaciais através da ferramenta IDE-SISEMA e não foram encontradas irregularidades que impeçam a utilização da área mencionada acima."}]
[{"$f":"\"- Conferi as documentações que atestam a Regularidade Ambiental e estão em conformidade com as exigências.\"","v":"- Conferi as documentações que atestam a Regularidade Ambiental e estão em conformidade com as exigências."}]
[{"$f":"\"- Conferi as documentações que atestam o uso legal dos Recursos Hídricos e estão em conformidade com as exigências.\"","v":"- Conferi as documentações que atestam o uso legal dos Recursos Hídricos e estão em conformidade com as exigências."}]
[]
[null,null,null,null,null,null,null,null,null,null,null,null,null,null,null,null,null,null,null,null,null,null,"________________________________________",null,null,null,null,null,null,null,null,null,null,null,null,null,null,null,null,null,"________________________________________"]
[null,null,null,null,null,null,null,null,null,null,null,null,null,null,null,null,null,null,null,null,null,null,{"$f":"UPPER(NOME_PROPONENTE)","v":""},null,null,null,null,null,null,null,null,null,null,null,null,null,null,null,null,null,{"$f":"UPPER(RESP_TECNICO)","v":""}]
[null,null,null,null,null,null,null,null,null,null,null,null,null,null,null,null,null,null,null,null,null,null,"Proponente",null,null,null,null,null,null,null,null,null,null,null,null,null,null,null,null,null,"Responsável Técnico"]
["IMÓVEL 2"]
[]
["PROPRIEDADE:",null,null,null,null,null,{"$f":"IF('INFORMAÇÕES GERAIS'!H39=\"\",\"-\",'INFORMAÇÕES GERAIS'!H39)","v":"-"},null,null,null,null,null,null,null,null,null,null,null,null,null,null,null,null,null,null,null,null,null,"MATRÍCULA:",null,null,null,null,null,{"$f":"IF('INFORMAÇÕES GERAIS'!AJ39=\"\",\"-\",'INFORMAÇÕES GERAIS'!AJ39)","v":"-"}]
[]
["ROTEIRO DE ACESSO:"]
[]
["COORDENADAS ENVIADAS PELO APLICATIVO:",null,null,null,null,null,null,null,null,null,null,null,null,null,null,null,"SIM"]
[]
["LATITUDE",null,null,null,null,"LONGITUDE",null,null,null,null,"ALT. (m)",null,null,null,null,"LATITUDE",null,null,null,null,"LONGITUDE",null,null,null,null,"ALT. (m)",null,null,null,null,"LATITUDE",null,null,null,null,"LONGITUDE",null,null,null,null,"ALT. (m)",null,null,null,null,null,"LATITUDE",null,null,null,null,"LONGITUDE",null,null,null,null,"ALT. (m)"]
[]
[]
[]
[]
[]
[]
[]
[]
[]
[]
[]
[]
[]
[]
[]
[]
[]
[]
[]
[]
[]
[]
[]
[]
[]
[]
[]
[]
[]
["IMAGEM DA PROPRIEDADE"]
[]
[]
[]
[]
[]
[]
[]
[]
[]
[]
[]
[]
[]
[]
[]
[]
[]
[]
[]
[]
[]
[]
[]
[]
[]
[]
[]
[]
[]
[]
[]
["CONSULTA GEOESPACIAL"]
[]
[]
[]
[]
[]
[]
[]
[]
[]
[]
[]
[]
[]
[]
["Declaro para os devidos fins que:"]
[{"$f":" \"- Realizei as consultas geoespaciais através da ferramenta IDE-SISEMA e não foram encontradas irregularidades que impeçam a utilização da área mencionada acima.\"","v":"- Realizei as consultas geoespaciais através da ferramenta IDE-SISEMA e não foram encontradas irregularidades que impeçam a utilização da área mencionada acima."}]
[{"$f":"\"- Conferi as documentações que atestam a Regularidade Ambiental e estão em conformidade com as exigências.\"","v":"- Conferi as documentações que atestam a Regularidade Ambiental e estão em conformidade com as exigências."}]
[{"$f":"\"- Conferi as documentações que atestam o uso legal dos Recursos Hídricos e estão em conformidade com as exigências.\"","v":"- Conferi as documentações que atestam o uso legal dos Recursos Hídricos e estão em conformidade com as exigências."}]
[]
[null,null,null,null,null,null,null,null,null,null,null,null,null,null,null,null,null,null,null,null,null,null,"________________________________________",null,null,null,null,null,null,null,null,null,null,null,null,null,null,null,null,null,"________________________________________"]
[null,null,null,null,null,null,null,null,null,null,null,null,null,null,null,null,null,null,null,null,null,null,{"$f":"UPPER(NOME_PROPONENTE)","v":""},null,null,null,null,null,null,null,null,null,null,null,null,null,null,null,null,null,{"$f":"UPPER(RESP_TECNICO)","v":""}]
[null,null,null,null,null,null,null,null,null,null,null,null,null,null,null,null,null,null,null,null,null,null,"Proponente",null,null,null,null,null,null,null,null,null,null,null,null,null,null,null,null,null,"Responsável Técnico"]
["IMÓVEL 3"]
[]
["PROPRIEDADE:",null,null,null,null,null,{"$f":"IF('INFORMAÇÕES GERAIS'!H47=\"\",\"-\",'INFORMAÇÕES GERAIS'!H47)","v":"-"},null,null,null,null,null,null,null,null,null,null,null,null,null,null,null,null,null,null,null,null,null,"MATRÍCULA:",null,null,null,null,null,{"$f":"IF('INFORMAÇÕES GERAIS'!AJ47=\"\",\"-\",'INFORMAÇÕES GERAIS'!AJ47)","v":"-"}]
[]
["ROTEIRO DE ACESSO:"]
[]
["COORDENADAS ENVIADAS PELO APLICATIVO:",null,null,null,null,null,null,null,null,null,null,null,null,null,null,null,"SIM"]
[]
["LATITUDE",null,null,null,null,"LONGITUDE",null,null,null,null,"ALT. (m)",null,null,null,null,"LATITUDE",null,null,null,null,"LONGITUDE",null,null,null,null,"ALT. (m)",null,null,null,null,"LATITUDE",null,null,null,null,"LONGITUDE",null,null,null,null,"ALT. (m)",null,null,null,null,null,"LATITUDE",null,null,null,null,"LONGITUDE",null,null,null,null,"ALT. (m)"]
[]
[]
[]
[]
[]
[]
[]
[]
[]
[]
[]
[]
[]
[]
[]
[]
[]
[]
[]
[]
[]
[]
[]
[]
[]
[]
[]
[]
[]
["IMAGEM DA PROPRIEDADE"]
[]
[]
[]
[]
[]
[]
[]
[]
[]
[]
[]
[]
[]
[]
[]
[]
[]
[]
[]
[]
[]
[]
[]
[]
[]
[]
[]
[]
[]
[]
[]
["CONSULTA GEOESPACIAL"]
[]
[]
[]
[]
[]
[]
[]
[]
[]
[]
[]
[]
[]
[]
["Declaro para os devidos fins que:"]
[{"$f":" \"- Realizei as consultas geoespaciais através da ferramenta IDE-SISEMA e não foram encontradas irregularidades que impeçam a utilização da área mencionada acima.\"","v":"- Realizei as consultas geoespaciais através da ferramenta IDE-SISEMA e não foram encontradas irregularidades que impeçam a utilização da área mencionada acima."}]
[{"$f":"\"- Conferi as documentações que atestam a Regularidade Ambiental e estão em conformidade com as exigências legais.\"","v":"- Conferi as documentações que atestam a Regularidade Ambiental e estão em conformidade com as exigências legais."}]
[{"$f":"\"- Conferi as documentações que atestam o uso legal dos Recursos Hídricos e estão em conformidade com as exigências legais.\"","v":"- Conferi as documentações que atestam o uso legal dos Recursos Hídricos e estão em conformidade com as exigências legais."}]
[]
[null,null,null,null,null,null,null,null,null,null,null,null,null,null,null,null,null,null,null,null,null,null,"________________________________________",null,null,null,null,null,null,null,null,null,null,null,null,null,null,null,null,null,"________________________________________"]
[null,null,null,null,null,null,null,null,null,null,null,null,null,null,null,null,null,null,null,null,null,null,{"$f":"UPPER(NOME_PROPONENTE)","v":""},null,null,null,null,null,null,null,null,null,null,null,null,null,null,null,null,null,{"$f":"UPPER(RESP_TECNICO)","v":""}]
[null,null,null,null,null,null,null,null,null,null,null,null,null,null,null,null,null,null,null,null,null,null,"Proponente",null,null,null,null,null,null,null,null,null,null,null,null,null,null,null,null,null,"Responsável Técnico"]

{"sheet":"ORÇAMENTO","index":6,"n_rows":53,"n_cols":10,"rows_kept":53,"cut":false,"hidden":true,"merged":[[50,4,50,8],[51,4,51,8],[6,0,6,6],[7,0,7,8],[8,0,8,8],[13,0,13,8],[18,0,18,8],[19,0,19,8],[24,0,24,8],[29,0,29,8],[30,0,30,8],[35,0,35,8],[52,4,52,8],[17,0,17,8],[12,0,12,8],[23,0,23,8],[28,0,28,8],[34,0,34,8],[39,0,39,8],[45,1,45,3],[40,1,40,8],[41,1,41,3],[42,1,42,3],[43,1,43,3],[44,1,44,3],[50,0,50,3],[51,0,51,3],[52,0,52,3]]}
[]
[]
[]
[]
[]
[" "]
[" "]
["I - PREPARO DO SOLO"]
["INSUMOS"]
[".","UN","QTD\n(POR HA)","QTD\n(TOTAL)","CUSTO UN.\n(R$)","CUSTO P/ HA\n(R$)","CUSTO TOTAL\n(R$)","FINANCIADO\n (R$)","INICIO DA\nUTILIZAÇÃO","EM BRANCO"]
[null,null,null,{"$f":"IF((Tabela1[[#This Row],[QTD\n(POR HA)]]*ÁREA_FINANCIADA)=0,\"-\",(Tabela1[[#This Row],[QTD\n(POR HA)]]*ÁREA_FINANCIADA))","v":"-"},null,{"$f":"IF((Tabela1[[#This Row],[CUSTO UN.\n(R$)]]*Tabela1[[#This Row],[QTD\n(POR HA)]])=0,\"-\",(Tabela1[[#This Row],[CUSTO UN.\n(R$)]]*Tabela1[[#This Row],[QTD\n(POR HA)]]))","v":"-"},{"$f":"IFERROR(Tabela1[[#This Row],[CUSTO UN.\n(R$)]]*Tabela1[[#This Row],[QTD\n(TOTAL)]],\"-\")","v":"-"},null,null,{"$f":"IF(AND(OR(Tabela1[[#This Row],[.]]=\"\",Tabela1[[#This Row],[UN]]=\"\",Tabela1[[#This Row],[QTD\n(POR HA)]]=\"\",Tabela1[[#This Row],[CUSTO UN.\n(R$)]]=\"\",Tabela1[[#This Row],[FINANCIADO\n (R$)]]=\"\",Tabela1[[#This Row],[INICIO DA\nUTILIZAÇÃO]]=\"\"),OR(Tabela1[[#This Row],[.]]<>\"\",Tabela1[[#This Row],[UN]]<>\"\",Tabela1[[#This Row],[QTD\n(POR HA)]]<>\"\",Tabela1[[#This Row],[CUSTO UN.\n(R$)]]<>\"\",Tabela1[[#This Row],[FINANCIADO\n (R$)]]<>\"\",Tabela1[[#This Row],[INICIO DA\nUTILIZAÇÃO]]<>\"\")),1,0)","v":0}]
["Total",null,null,null,null,{"$f":"IF(SUBTOTAL(109,Tabela1[CUSTO P/ HA\n(R$)])=0,0,SUBTOTAL(109,Tabela1[CUSTO P/ HA\n(R$)]))","v":0},{"$f":"IF(SUBTOTAL(109,Tabela1[CUSTO TOTAL\n(R$)])=0,0,SUBTOTAL(109,Tabela1[CUSTO TOTAL\n(R$)]))","v":0},{"$f":"IF(SUBTOTAL(109,Tabela1[FINANCIADO\n (R$)])=0,0,SUBTOTAL(109,Tabela1[FINANCIADO\n (R$)]))","v":0},null,{"$f":"SUBTOTAL(109,Tabela1[EM BRANCO])","v":0}]
["  "]
["SERVIÇOS"]
["ESPECIFICAÇÃO","UN","QTD\n(POR HA)","QTD\n(TOTAL)","CUSTO UN.\n(R$)","CUSTO P/ HA\n(R$)","CUSTO TOTAL\n(R$)","FINANCIADO\n (R$)","INICIO DA\nUTILIZAÇÃO","EM BRANCO"]
[null,null,null,{"$f":"IF((Tabela116[[#This Row],[QTD\n(POR HA)]]*ÁREA_FINANCIADA)=0,\"-\",(Tabela116[[#This Row],[QTD\n(POR HA)]]*ÁREA_FINANCIADA))","v":"-"},null,{"$f":"IF((Tabela116[[#This Row],[CUSTO UN.\n(R$)]]*Tabela116[[#This Row],[QTD\n(POR HA)]])=0,\"-\",(Tabela116[[#This Row],[CUSTO UN.\n(R$)]]*Tabela116[[#This Row],[QTD\n(POR HA)]]))","v":"-"},{"$f":"IFERROR(Tabela116[[#This Row],[CUSTO UN.\n(R$)]]*Tabela116[[#This Row],[QTD\n(TOTAL)]],\"-\")","v":"-"},null,null,{"$f":"IF(AND(OR(Tabela116[[#This Row],[ESPECIFICAÇÃO]]=\"\",Tabela116[[#This Row],[UN]]=\"\",Tabela116[[#This Row],[QTD\n(POR HA)]]=\"\",Tabela116[[#This Row],[CUSTO UN.\n(R$)]]=\"\",Tabela116[[#This Row],[FINANCIADO\n (R$)]]=\"\",Tabela116[[#This Row],[INICIO DA\nUTILIZAÇÃO]]=\"\"),OR(Tabela116[[#This Row],[ESPECIFICAÇÃO]]<>\"\",Tabela116[[#This Row],[UN]]<>\"\",Tabela116[[#This Row],[QTD\n(POR HA)]]<>\"\",Tabela116[[#This Row],[CUSTO UN.\n(R$)]]<>\"\",Tabela116[[#This Row],[FINANCIADO\n (R$)]]<>\"\",Tabela116[[#This Row],[INICIO DA\nUTILIZAÇÃO]]<>\"\")),1,0)","v":0}]
["Total",null,null,null,null,{"$f":"IF(SUBTOTAL(109,Tabela116[CUSTO P/ HA\n(R$)])=0,0,SUBTOTAL(109,Tabela116[CUSTO P/ HA\n(R$)]))","v":0},{"$f":"IF(SUBTOTAL(109,Tabela116[CUSTO TOTAL\n(R$)])=0,0,SUBTOTAL(109,Tabela116[CUSTO TOTAL\n(R$)]))","v":0},{"$f":"IF(SUBTOTAL(109,Tabela116[FINANCIADO\n (R$)])=0,0,SUBTOTAL(109,Tabela116[FINANCIADO\n (R$)]))","v":0},null,{"$f":"SUBTOTAL(109,Tabela116[EM BRANCO])","v":0}]
["   "]
["II - TRATOS CULTURAIS"]
["INSUMOS"]
["ESPECIFICAÇÃO","UN","QTD\n(POR HA)","QTD\n(TOTAL)","CUSTO UN.\n(R$)","CUSTO P/ HA\n(R$)","CUSTO TOTAL\n(R$)","FINANCIADO\n (R$)","INICIO DA\nUTILIZAÇÃO","EM BRANCO"]
[null,null,null,{"$f":"IF((Tabela11617[[#This Row],[QTD\n(POR HA)]]*ÁREA_FINANCIADA)=0,\"-\",(Tabela11617[[#This Row],[QTD\n(POR HA)]]*ÁREA_FINANCIADA))","v":"-"},null,{"$f":"IF((Tabela11617[[#This Row],[CUSTO UN.\n(R$)]]*Tabela11617[[#This Row],[QTD\n(POR HA)]])=0,\"-\",(Tabela11617[[#This Row],[CUSTO UN.\n(R$)]]*Tabela11617[[#This Row],[QTD\n(POR HA)]]))","v":"-"},{"$f":"IFERROR(Tabela11617[[#This Row],[CUSTO UN.\n(R$)]]*Tabela11617[[#This Row],[QTD\n(TOTAL)]],\"-\")","v":"-"},null,null,{"$f":"IF(AND(OR(Tabela11617[[#This Row],[ESPECIFICAÇÃO]]=\"\",Tabela11617[[#This Row],[UN]]=\"\",Tabela11617[[#This Row],[QTD\n(POR HA)]]=\"\",Tabela11617[[#This Row],[CUSTO UN.\n(R$)]]=\"\",Tabela11617[[#This Row],[FINANCIADO\n (R$)]]=\"\",Tabela11617[[#This Row],[INICIO DA\nUTILIZAÇÃO]]=\"\"),OR(Tabela11617[[#This Row],[ESPECIFICAÇÃO]]<>\"\",Tabela11617[[#This Row],[UN]]<>\"\",Tabela11617[[#This Row],[QTD\n(POR HA)]]<>\"\",Tabela11617[[#This Row],[CUSTO UN.\n(R$)]]<>\"\",Tabela11617[[#This Row],[FINANCIADO\n (R$)]]<>\"\",Tabela11617[[#This Row],[INICIO DA\nUTILIZAÇÃO]]<>\"\")),1,0)","v":0}]
["Total",null,null,null,null,{"$f":"IF(SUBTOTAL(109,Tabela11617[CUSTO P/ HA\n(R$)])=0,0,SUBTOTAL(109,Tabela11617[CUSTO P/ HA\n(R$)]))","v":0},{"$f":"IF(SUBTOTAL(109,Tabela11617[CUSTO TOTAL\n(R$)])=0,0,SUBTOTAL(109,Tabela11617[CUSTO TOTAL\n(R$)]))","v":0},{"$f":"IF(SUBTOTAL(109,Tabela11617[FINANCIADO\n (R$)])=0,0,SUBTOTAL(109,Tabela11617[FINANCIADO\n (R$)]))","v":0},null,{"$f":"SUBTOTAL(109,Tabela11617[EM BRANCO])","v":0}]
["   "]
["SERVIÇOS"]
["ESPECIFICAÇÃO","UN","QTD\n(POR HA)","QTD\n(TOTAL)","CUSTO UN.\n(R$)","CUSTO P/ HA\n(R$)","CUSTO TOTAL\n(R$)","FINANCIADO\n (R$)","INICIO DA\nUTILIZAÇÃO","EM BRANCO"]
[null,null,null,{"$f":"IF((Tabela1161718[[#This Row],[QTD\n(POR HA)]]*ÁREA_FINANCIADA)=0,\"-\",(Tabela1161718[[#This Row],[QTD\n(POR HA)]]*ÁREA_FINANCIADA))","v":"-"},null,{"$f":"IF((Tabela1161718[[#This Row],[CUSTO UN.\n(R$)]]*Tabela1161718[[#This Row],[QTD\n(POR HA)]])=0,\"-\",(Tabela1161718[[#This Row],[CUSTO UN.\n(R$)]]*Tabela1161718[[#This Row],[QTD\n(POR HA)]]))","v":"-"},{"$f":"IFERROR(Tabela1161718[[#This Row],[CUSTO UN.\n(R$)]]*Tabela1161718[[#This Row],[QTD\n(TOTAL)]],\"-\")","v":"-"},null,null,{"$f":"IF(AND(OR(Tabela1161718[[#This Row],[ESPECIFICAÇÃO]]=\"\",Tabela1161718[[#This Row],[UN]]=\"\",Tabela1161718[[#This Row],[QTD\n(POR HA)]]=\"\",Tabela1161718[[#This Row],[CUSTO UN.\n(R$)]]=\"\",Tabela1161718[[#This Row],[FINANCIADO\n (R$)]]=\"\",Tabela1161718[[#This Row],[INICIO DA\nUTILIZAÇÃO]]=\"\"),OR(Tabela1161718[[#This Row],[ESPECIFICAÇÃO]]<>\"\",Tabela1161718[[#This Row],[UN]]<>\"\",Tabela1161718[[#This Row],[QTD\n(POR HA)]]<>\"\",Tabela1161718[[#This Row],[CUSTO UN.\n(R$)]]<>\"\",Tabela1161718[[#This Row],[FINANCIADO\n (R$)]]<>\"\",Tabela1161718[[#This Row],[INICIO DA\nUTILIZAÇÃO]]<>\"\")),1,0)","v":0}]
["Total",null,null,null,null,{"$f":"IF(SUBTOTAL(109,Tabela1161718[CUSTO P/ HA\n(R$)])=0,0,SUBTOTAL(109,Tabela1161718[CUSTO P/ HA\n(R$)]))","v":0},{"$f":"IF(SUBTOTAL(109,Tabela1161718[CUSTO TOTAL\n(R$)])=0,0,SUBTOTAL(109,Tabela1161718[CUSTO TOTAL\n(R$)]))","v":0},{"$f":"IF(SUBTOTAL(109,Tabela1161718[FINANCIADO\n (R$)])=0,0,SUBTOTAL(109,Tabela1161718[FINANCIADO\n (R$)]))","v":0},null,{"$f":"SUBTOTAL(109,Tabela1161718[EM BRANCO])","v":0}]
["   "]
["III - COLHEITA"]
["INSUMOS"]
["ESPECIFICAÇÃO","UN","QTD\n(POR HA)","QTD\n(TOTAL)","CUSTO UN.\n(R$)","CUSTO P/ HA\n(R$)","CUSTO TOTAL\n(R$)","FINANCIADO\n (R$)","INICIO DA\nUTILIZAÇÃO","EM BRANCO"]
[null,null,null,{"$f":"IF((Tabela116171821[[#This Row],[QTD\n(POR HA)]]*ÁREA_FINANCIADA)=0,\"-\",(Tabela116171821[[#This Row],[QTD\n(POR HA)]]*ÁREA_FINANCIADA))","v":"-"},null,{"$f":"IF((Tabela116171821[[#This Row],[CUSTO UN.\n(R$)]]*Tabela116171821[[#This Row],[QTD\n(POR HA)]])=0,\"-\",(Tabela116171821[[#This Row],[CUSTO UN.\n(R$)]]*Tabela116171821[[#This Row],[QTD\n(POR HA)]]))","v":"-"},{"$f":"IFERROR(Tabela116171821[[#This Row],[CUSTO UN.\n(R$)]]*Tabela116171821[[#This Row],[QTD\n(TOTAL)]],\"-\")","v":"-"},null,null,{"$f":"IF(AND(OR(Tabela116171821[[#This Row],[ESPECIFICAÇÃO]]=\"\",Tabela116171821[[#This Row],[UN]]=\"\",Tabela116171821[[#This Row],[QTD\n(POR HA)]]=\"\",Tabela116171821[[#This Row],[CUSTO UN.\n(R$)]]=\"\",Tabela116171821[[#This Row],[FINANCIADO\n (R$)]]=\"\",Tabela116171821[[#This Row],[INICIO DA\nUTILIZAÇÃO]]=\"\"),OR(Tabela116171821[[#This Row],[ESPECIFICAÇÃO]]<>\"\",Tabela116171821[[#This Row],[UN]]<>\"\",Tabela116171821[[#This Row],[QTD\n(POR HA)]]<>\"\",Tabela116171821[[#This Row],[CUSTO UN.\n(R$)]]<>\"\",Tabela116171821[[#This Row],[FINANCIADO\n (R$)]]<>\"\",Tabela116171821[[#This Row],[INICIO DA\nUTILIZAÇÃO]]<>\"\")),1,0)","v":0}]
["Total",null,null,null,null,{"$f":"IF(SUBTOTAL(109,Tabela116171821[CUSTO P/ HA\n(R$)])=0,0,SUBTOTAL(109,Tabela116171821[CUSTO P/ HA\n(R$)]))","v":0},{"$f":"IF(SUBTOTAL(109,Tabela116171821[CUSTO TOTAL\n(R$)])=0,0,SUBTOTAL(109,Tabela116171821[CUSTO TOTAL\n(R$)]))","v":0},{"$f":"SUBTOTAL(109,Tabela116171821[FINANCIADO\n (R$)])","v":0},null,{"$f":"SUBTOTAL(109,Tabela116171821[EM BRANCO])","v":0}]
["   "]
["SERVIÇOS"]
["ESPECIFICAÇÃO","UN","QTD\n(POR HA)","QTD\n(TOTAL)","CUSTO UN.\n(R$)","CUSTO P/ HA\n(R$)","CUSTO TOTAL\n(R$)","FINANCIADO\n (R$)","INICIO DA\nUTILIZAÇÃO","EM BRANCO"]
[null,null,null,{"$f":"IF((Tabela11617182122[[#This Row],[QTD\n(POR HA)]]*ÁREA_FINANCIADA)=0,\"-\",(Tabela11617182122[[#This Row],[QTD\n(POR HA)]]*ÁREA_FINANCIADA))","v":"-"},null,{"$f":"IF((Tabela11617182122[[#This Row],[CUSTO UN.\n(R$)]]*Tabela11617182122[[#This Row],[QTD\n(POR HA)]])=0,\"-\",(Tabela11617182122[[#This Row],[CUSTO UN.\n(R$)]]*Tabela11617182122[[#This Row],[QTD\n(POR HA)]]))","v":"-"},{"$f":"IFERROR(Tabela11617182122[[#This Row],[CUSTO UN.\n(R$)]]*Tabela11617182122[[#This Row],[QTD\n(TOTAL)]],\"-\")","v":"-"},null,null,{"$f":"IF(AND(OR(Tabela11617182122[[#This Row],[ESPECIFICAÇÃO]]=\"\",Tabela11617182122[[#This Row],[UN]]=\"\",Tabela11617182122[[#This Row],[QTD\n(POR HA)]]=\"\",Tabela11617182122[[#This Row],[CUSTO UN.\n(R$)]]=\"\",Tabela11617182122[[#This Row],[FINANCIADO\n (R$)]]=\"\",Tabela11617182122[[#This Row],[INICIO DA\nUTILIZAÇÃO]]=\"\"),OR(Tabela11617182122[[#This Row],[ESPECIFICAÇÃO]]<>\"\",Tabela11617182122[[#This Row],[UN]]<>\"\",Tabela11617182122[[#This Row],[QTD\n(POR HA)]]<>\"\",Tabela11617182122[[#This Row],[CUSTO UN.\n(R$)]]<>\"\",Tabela11617182122[[#This Row],[FINANCIADO\n (R$)]]<>\"\",Tabela11617182122[[#This Row],[INICIO DA\nUTILIZAÇÃO]]<>\"\")),1,0)","v":0}]
["Total",null,null,null,null,{"$f":"IF(SUBTOTAL(109,Tabela11617182122[CUSTO P/ HA\n(R$)])=0,0,SUBTOTAL(109,Tabela11617182122[CUSTO P/ HA\n(R$)]))","v":0},{"$f":"IF(SUBTOTAL(109,Tabela11617182122[CUSTO TOTAL\n(R$)])=0,0,SUBTOTAL(109,Tabela11617182122[CUSTO TOTAL\n(R$)]))","v":0},{"$f":"IF(SUBTOTAL(109,Tabela11617182122[FINANCIADO\n (R$)])=0,0,SUBTOTAL(109,Tabela11617182122[FINANCIADO\n (R$)]))","v":0},null,{"$f":"SUBTOTAL(109,Tabela11617182122[EM BRANCO])","v":0}]
["   "]
[null,"TOTAL"]
[null,"ESPECIFICAÇÃO",null,null,"ORÇAMENTO\n(POR HA)","FINANCIADO\n(POR HA)","ORÇAMENTO\nTOTAL","FINANCIADO\nTOTAL","RECURSOS\nPRÓPRIOS"]
[null,"I - PREPARO DO SOLO",null,null,{"$f":"IFERROR(Tabela1[[#Totals],[CUSTO P/ HA\n(R$)]]+Tabela116[[#Totals],[CUSTO P/ HA\n(R$)]],0)","v":0},{"$f":"IFERROR((Tabela1[[#Totals],[FINANCIADO\n (R$)]]+Tabela116[[#Totals],[FINANCIADO\n (R$)]])/ÁREA_FINANCIADA,0)","v":0},{"$f":"IFERROR(Tabela1[[#Totals],[CUSTO TOTAL\n(R$)]]+Tabela116[[#Totals],[CUSTO TOTAL\n(R$)]],0)","v":0},{"$f":"IFERROR(Tabela1[[#Totals],[FINANCIADO\n (R$)]]+Tabela116[[#Totals],[FINANCIADO\n (R$)]],0)","v":0},{"$f":"IFERROR(G43-H43,0)","v":0}]
[null,"II - TRATOS CULTURAIS",null,null,{"$f":"IFERROR(Tabela11617[[#Totals],[CUSTO P/ HA\n(R$)]]+Tabela1161718[[#Totals],[CUSTO P/ HA\n(R$)]],0)","v":0},{"$f":"IFERROR((Tabela11617[[#Totals],[FINANCIADO\n (R$)]]+Tabela1161718[[#Totals],[FINANCIADO\n (R$)]])/ÁREA_FINANCIADA,0)","v":0},{"$f":"IFERROR(Tabela1161718[[#Totals],[CUSTO TOTAL\n(R$)]]+Tabela11617[[#Totals],[CUSTO TOTAL\n(R$)]],0)","v":0},{"$f":"IFERROR(Tabela11617[[#Totals],[FINANCIADO\n (R$)]]+Tabela1161718[[#Totals],[FINANCIADO\n (R$)]],0)","v":0},{"$f":"IFERROR(G44-H44,0)","v":0}]
[null,"III - COLHEITA",null,null,{"$f":"IFERROR(Tabela116171821[[#Totals],[CUSTO P/ HA\n(R$)]]+Tabela11617182122[[#Totals],[CUSTO P/ HA\n(R$)]],0)","v":0},{"$f":"IFERROR((Tabela11617182122[[#Totals],[FINANCIADO\n (R$)]]+Tabela116171821[[#Totals],[FINANCIADO\n (R$)]])/ÁREA_FINANCIADA,0)","v":0},{"$f":"IFERROR(Tabela116171821[[#Totals],[CUSTO TOTAL\n(R$)]]+Tabela11617182122[[#Totals],[CUSTO TOTAL\n(R$)]],0)","v":0},{"$f":"IFERROR(Tabela116171821[[#Totals],[FINANCIADO\n (R$)]]+Tabela11617182122[[#Totals],[FINANCIADO\n (R$)]],0)","v":0},{"$f":"IFERROR(G45-H45,0)","v":0}]
[null,"Total",null,null,{"$f":"IF(SUM(E43:E45)=0,0,SUM(E43:E45))","v":0},{"$f":"IFERROR(F45+F44+F43,0)","v":0},{"$f":"IFERROR(G45+G44+G43,0)","v":0},{"$f":"IF(SUM(H43:H45)=0,0,SUM(H43:H45))","v":0},{"$f":"IF(SUM(I43:I45)=0,0,SUM(I43:I45))","v":0}]
[]
[]
[]
[]
["________________________________________",null,null,null,"________________________________________"]
[{"$f":"UPPER('INFORMAÇÕES GERAIS'!F19)","v":""},null,null,null,{"$f":"UPPER('INFORMAÇÕES GERAIS'!H15)","v":""}]
["Proponente",null,null,null,"Responsável Técnico"]

{"sheet":"MANUAL IDE-SISEMA","index":7,"n_rows":159,"n_cols":1,"rows_kept":159,"cut":false,"hidden":true,"merged":[[158,0,158,17],[0,0,3,17],[5,0,5,17],[6,0,6,17],[8,0,8,17],[42,0,42,17],[76,0,76,17],[110,0,110,17],[123,0,123,17],[125,0,125,17],[156,0,156,17],[157,0,157,17]]}
[]
[]
[]
[]
[]
["Acessar a plataforma IDE-SISEMA pelo link abaixo:"]
["http://idesisema.meioambiente.mg.gov.br/"]
[]
["Abrir o site importar o KML do empreendimento, conforme indicação setas amarelas na imagem abaixo:"]
[]
[]
[]
[]
[]
[]
[]
[]
[]
[]
[]
[]
[]
[]
[]
[]
[]
[]
[]
[]
[]
[]
[]
[]
[]
[]
[]
[]
[]
[]
[]
[]
[]
["Abaixo, a imagem demonstra o processo de anexar o arquivo KML."]
[]
[]
[]
[]
[]
[]
[]
[]
[]
[]
[]
[]
[]
[]
[]
[]
[]
[]
[]
[]
[]
[]
[]
[]
[]
[]
[]
[]
[]
[]
[]
[]
[]
["Ao final da inclusão, a área do empreendimento deve ficar demarcada como a imagem a abaixo:"]
[]
[]
[]
[]
[]
[]
[]
[]
[]
[]
[]
[]
[]
[]
[]
[]
[]
[]
[]
[]
[]
[]
[]
[]
[]
[]
[]
[]
[]
[]
[]
[]
[]
["Em seguida, clicar em CAMADAS, e selecionar a lista de camadas abaixo:"]
[]
["Restrição Ambiental / Terras Indígenas (FUNAI) / Terras Indígenas"]
["Restrição Ambiental / Quilombolas (Fundação Palmares INCRA) / Quilombolas"]
["Restrição Ambiental / Áreas Protegidas (IEF/ICMbio) / Propriedades Cadastradas em Áreas de Conservação"]
["Restrição Ambiental / Áreas Protegidas (IEF/ICMbio) / Unidade de Conservação Federal"]
["Restrição Ambiental / Áreas Protegidas (IEF/ICMbio) / Unidade de Conservação Estadual"]
["Restrição Ambiental / Áreas Protegidas (IEF/ICMbio) / Unidade de Conservação Municipal"]
["Restrição Ambiental / Áreas Protegidas (IEF/ICMbio) / Reserva Particular do Patrimônio Natural"]
["Restrição Ambiental / Áreas Protegidas (IEF/ICMbio) / Áreas prioritárias para criação de Unidades de Conservação"]
["Restrição Ambiental / Corredores ecológicos legalmente instituídos / Corredores Ecológicos"]
[]
[]
["Nesse momento, há que se observar se a área não se sobrepões em nenhuma das camadas, o que inviabilizaria a utilização da área."]
[]
["A imagem abaixo ilustra o procedimento:"]
[]
[]
[]
[]
[]
[]
[]
[]
[]
[]
[]
[]
[]
[]
[]
[]
[]
[]
[]
[]
[]
[]
[]
[]
[]
[]
[]
[]
[]
[]
["Em seguida, colocar o mouse sobre a área do empreendimento, de forma que as coordenadas fiquem visíveis no canto inferior da tela."]
[]
["Capturar a parte da tela, indicada pelo quadro abaixo utilizando alguma ferramenta (Print Screen, Ferramenta de Captura, etc...) depois inserir o arquivo da imagem capturada no projeto."]

{"sheet":"DEMONSTRATIVO DE VIABILIDADE","index":8,"n_rows":24,"n_cols":7,"rows_kept":24,"cut":false,"hidden":true,"merged":[[22,1,22,2],[23,1,23,2],[21,5,21,6],[22,5,22,6],[23,5,23,6],[6,1,6,2],[6,5,6,6],[11,5,11,6],[0,1,0,6],[21,1,21,2]]}
[]
[]
[]
[]
[]
[]
[null,"CUSTOS DE PRODUÇÃO",null,null,null,"RECEITA PREVISTA"]
[null,"ESPECIFICAÇÃO","VALOR",null,null,"ESPECIFICAÇÃO","VALOR"]
[null,"ESTE FINANCIAMENTO",{"$f":"VALOR_FINANCIADO","v":0},null,null,"RECEITA ESTIMADA",{"$f":"RECEITA_ESTIMADA","v":"-"}]
[null,"RECURSOS PRÓPRIOS",{"$f":"IFERROR(VALOR_ORÇADO-VALOR_FINANCIADO,\"-\")","v":0},null,null,"Total",{"$f":"SUBTOTAL(109,Tabela1319[VALOR])","v":0}]
[null,"JUROS DESTE FINANCIAMENTO",{"$f":"IFERROR(((TAXA_JUROS)^1/12)*VLOOKUP(PRAZO_PROJETO,LISTAS!J1:K19,2,0)*C9,0)","v":0},null,null," "]
[null,"ARRENDAMENTO",{"$f":"IFERROR(CUSTO_ARRENDAMENTO*AREA_ARRENDADA*VLOOKUP(PRAZO_PROJETO,LISTAS!J1:K16,2,0),0)","v":0},null,null,"RENTABILIDADE"]
[null,"ASSISTÊNCIA TÉCNICA",0,null,null,"ESPECIFICAÇÃO","VALOR"]
[null,"OUTRAS DESPESAS:",null,null,null,"RECEITA - DESPESA",{"$f":"IFERROR(Tabela1319[[#Totals],[VALOR]]-Tabela13[[#Totals],[VALOR]],\"-\")","v":0}]
[null,null,null,null,null,"RENTABILIDADE ",{"$f":"IFERROR(Tabela1319[[#Totals],[VALOR]]/Tabela13[[#Totals],[VALOR]],1)-1","v":0}]
[]
[]
[null,"Total",{"$f":"SUBTOTAL(109,Tabela13[VALOR])","v":0}]
[]
[]
[]
[null,"________________________________________",null,null,null,"________________________________________"]
[null,{"$f":"UPPER('INFORMAÇÕES GERAIS'!F19)","v":""},null,null,null,{"$f":"UPPER('INFORMAÇÕES GERAIS'!H15)","v":""}]
[null,"Proponente",null,null,null,"Responsável Técnico"]

{"sheet":"CAPACIDADE DE PAGAMENTO","index":9,"n_rows":120,"n_cols":15,"rows_kept":120,"cut":false,"hidden":true,"merged":[[6,1,6,8],[0,1,0,8],[106,1,106,4],[105,1,105,3],[29,1,29,8],[98,1,98,8],[99,5,99,8],[99,1,99,4],[102,5,102,7],[103,5,103,7],[52,1,52,8],[119,5,119,8],[118,1,118,4],[119,1,119,4],[100,5,100,7],[101,5,101,7],[105,5,105,7],[100,1,100,3],[101,1,101,3],[104,5,104,7],[104,1,104,3],[110,5,110,7],[110,1,110,3],[107,5,107,7],[117,5,117,8],[117,1,117,4],[112,1,112,3],[118,5,118,8],[112,5,112,7],[108,1,108,3],[109,1,109,3],[108,5,108,7],[109,5,109,7],[7,12,7,13],[107,1,107,3],[106,5,106,8],[53,1,53,8],[75,1,75,8],[7,1,7,8]]}
[]
[]
[]
[]
[]
[]
[null,"ATIVIDADE AGRÍCOLAS"]
[null,"RECEITAS PREVISTAS"]
[0,"CULTURA","EMPRESA / GRUPO","PARTICIPAÇÃO\n(%)","ÁREA\n(ha)","PRODUTIVIDADE (kg/ha)","RECEITA\n(R$/kg)","RECEITA TOTAL\n(R$)","RECEITA PART. \n(R$)",null,{"$f":"SUM(L10:L29)","v":1},null,{"$f":"SUM(N10:N29)","v":0},null,"Os que estão em amarelo, são contadores. O primeiro é um controle de quantas linhas estão inseridas. O segundo é um controle de quantas linhas estão completamente preenchidas. Se eles estiverem diferente, significa que existe linha sem todos os dados preenchidos."]
[null,"CAFÉ",null,null,null,null,null,{"$f":"IFERROR(IF(G10=\"\",\"\",G10*F10*E10),\"\")","v":""},{"$f":"IFERROR(IF(G10=\"\",\"\",D10*H10),\" \")","v":""},null,null,1,{"$f":"IF(AND(I10<>\"\",OR(H10<>\"\",G10<>\"\",F10<>\"\",E10<>\"\",D10<>\"\",C10<>\"\",B10<>\"\")),1,0)","v":0},{"$f":"M10*L10","v":0}]
[null,null,null,null,null,null,null,{"$f":"IFERROR(IF(G11=\"\",\"\",G11*F11*E11),\"\")","v":""},{"$f":"IFERROR(IF(G11=\"\",\"\",D11*H11),\"\")","v":""},null,null,null,0,{"$f":"M11*L11","v":0}]
[null,null,null,null,null,null,null,{"$f":"IFERROR(IF(G12=\"\",\"\",G12*F12*E12),\"\")","v":""},"",null,null,null,0,0]
[null,null,null,null,null,null,null,"","",null,null,null,0,0]
[null,null,null,null,null,null,null,"","",null,null,null,0,0]
[null,null,null,null,null,null,null,"","",null,null,null,0,0]
[null,null,null,null,null,null,null,"","",null,null,null,0,0]
[null,null,null,null,null,null,null,"","",null,null,null,0,0]
[null,null,null,null,null,null,null,"","",null,null,null,0,0]
[null,null,null,null,null,null,null,"","",null,null,null,0,0]
[null,null,null,null,null,null,null,"","",null,null,null,0,0]
[null,null,null,null,null,null,null,"","",null,null,null,0,0]
[null,null,null,null,null,null,null,"","",null,null,null,0,0]
[null,null,null,null,null,null,null,"","",null,null,null,0,0]
[null,null,null,null,null,null,null,"","",null,null,null,0,0]
[null,null,null,null,null,null,null,"","",null,null,null,0,0]
[null,null,null,null,null,null,null,"","",null,null,null,0,0]
[null,null,null,null,null,null,null,"","",null,null,null,0,0]
[null,null,null,null,null,null,null,"","",null,null,null,0,0]
[null,null,null,null,null,null,null,"","",null,null,null,0,0]
[null,"CUSTOS DE PRODUÇÃO"]
[null,"CULTURA","EMPRESA / GRUPO","PARTICIPAÇÃO\n(%)","ÁREA\n(ha)","PRODUTIVIDADE (kg/ha)","CUSTO\n(R$/kg)","CUSTO TOTAL\n (R$)","CUSTO PART.\n (R$)",null,{"$f":"SUM(L32:L51)","v":1},null,{"$f":"SUM(N32:N51)","v":0}]
[null,{"$f":"IF(B10=\"\",\"\",B10)","v":"CAFÉ"},{"$f":"IF(C10=\"\",\"\",C10)","v":""},{"$f":"IF(D10=\"\",\"\",D10)","v":""},{"$f":"IF(E10=\"\",\"\",E10)","v":""},{"$f":"IF(F10=\"\",\"\",F10)","v":""},null,{"$f":"IFERROR(IF(G32=\"\",\"\",G32*F32*E32),\"\")","v":""},{"$f":"IFERROR(IF(G32=\"\",\"\",D32*H32),\"\")","v":""},null,null,1,{"$f":"IF(AND(I32<>\"\",OR(H32<>\"\",G32<>\"\",F32<>\"\",E32<>\"\",D32<>\"\",C32<>\"\",B32<>\"\")),1,0)","v":0},{"$f":"M32*L32","v":0}]
[null,{"$f":"IF(B11=\"\",\"\",B11)","v":""},{"$f":"IF(C11=\"\",\"\",C11)","v":""},"","","",null,{"$f":"IFERROR(IF(G33=\"\",\"\",G33*F33*E33),\"\")","v":""},{"$f":"IFERROR(IF(G33=\"\",\"\",D33*H33),\"\")","v":""},null,null,null,{"$f":"IF(AND(I33<>\"\",OR(H33<>\"\",G33<>\"\",F33<>\"\",E33<>\"\",D33<>\"\",C33<>\"\",B33<>\"\")),1,0)","v":0},{"$f":"M33*L33","v":0}]
[null,{"$f":"IF(B12=\"\",\"\",B12)","v":""},"","","","",null,"","",null,null,null,0,0]
[null,{"$f":"IF(B13=\"\",\"\",B13)","v":""},"","","","",null,"","",null,null,null,0,0]
[null,{"$f":"IF(B14=\"\",\"\",B14)","v":""},"","","","",null,"","",null,null,null,0,0]
[null,{"$f":"IF(B15=\"\",\"\",B15)","v":""},"","","","",null,"","",null,null,null,0,0]
[null,{"$f":"IF(B16=\"\",\"\",B16)","v":""},"","","","",null,"","",null,null,null,0,0]
[null,{"$f":"IF(B17=\"\",\"\",B17)","v":""},"","","","",null,"","",null,null,null,0,0]
[null,{"$f":"IF(B18=\"\",\"\",B18)","v":""},"","","","",null,"","",null,null,null,0,0]
[null,{"$f":"IF(B19=\"\",\"\",B19)","v":""},"","","","",null,"","",null,null,null,0,0]
[null,{"$f":"IF(B20=\"\",\"\",B20)","v":""},"","","","",null,"","",null,null,null,0,0]
[null,{"$f":"IF(B21=\"\",\"\",B21)","v":""},"","","","",null,"","",null,null,null,0,0]
[null,{"$f":"IF(B22=\"\",\"\",B22)","v":""},"","","","",null,"","",null,null,null,0,0]
[null,{"$f":"IF(B23=\"\",\"\",B23)","v":""},"","","","",null,"","",null,null,null,0,0]
[null,{"$f":"IF(B24=\"\",\"\",B24)","v":""},"","","","",null,"","",null,null,null,0,0]
[null,{"$f":"IF(B25=\"\",\"\",B25)","v":""},"","","","",null,"","",null,null,null,0,0]
[null,{"$f":"IF(B26=\"\",\"\",B26)","v":""},"","","","",null,"","",null,null,null,0,0]
[null,{"$f":"IF(B27=\"\",\"\",B27)","v":""},"","","","",null,"","",null,null,null,0,0]
[null,{"$f":"IF(B28=\"\",\"\",B28)","v":""},"","","","",null,"","",null,null,null,0,0]
[null,{"$f":"IF(B29=\"\",\"\",B29)","v":""},"","","","",null,{"$f":"IFERROR(IF(G51=\"\",\"\",G51*F51*E51),\"\")","v":""},{"$f":"IFERROR(IF(G51=\"\",\"\",D51*H51),\"\")","v":""},null,null,null,0,0]
[null," ",null,null," "]
[null,"ATIVIDADES PECUÁRIAS"]
[null,"RECEITAS PREVISTAS"]
[null,"ATIVIDADE","EMPRESA / GRUPO","PARTICIPAÇÃO\n(%)","UNIDADE DE PRODUÇÃO","PRODUTIVIDADE","RECEITA\n(R$/UN)","RECEITA TOTAL\n(R$)","RECEITA PART. \n(R$)",null,{"$f":"SUM(L56:L75)","v":1},null,{"$f":"SUM(N56:N75)","v":0}]
[null,null,null,null,{"$f":"IF(B56=\"LEITE\",\"LITROS\",IF(B56=\"\",\"\",\"CABEÇAS\"))","v":""},null,null,{"$f":"IF(G56=\"\",\"\",G56*F56)","v":""},{"$f":"IF(G56=\"\",\"\",H56*D56)","v":""},null,null,1,{"$f":"IF(AND(I56<>\"\",OR(H56<>\"\",G56<>\"\",F56<>\"\",E56<>\"\",D56<>\"\",C56<>\"\",B56<>\"\")),1,0)","v":0},{"$f":"M56*L56","v":0}]
[null,null,null,null,{"$f":"IF(B57=\"LEITE\",\"LITROS\",IF(B57=\"\",\"\",\"CABEÇAS\"))","v":""},null,null,{"$f":"IF(G57=\"\",\"\",G57*F57)","v":""},{"$f":"IF(G57=\"\",\"\",H57*D57)","v":""},null,null,null,{"$f":"IF(AND(I57<>\"\",OR(H57<>\"\",G57<>\"\",F57<>\"\",E57<>\"\",D57<>\"\",C57<>\"\",B57<>\"\")),1,0)","v":0},{"$f":"M57*L57","v":0}]
[null,null,null,null,"",null,null,{"$f":"IF(G58=\"\",\"\",G58*F58)","v":""},{"$f":"IF(G58=\"\",\"\",H58*D58)","v":""},null,null,null,0,0]
[null,null,null,null,{"$f":"IF(B59=\"LEITE\",\"LITROS\",IF(B59=\"\",\"\",\"CABEÇAS\"))","v":""},null,null,{"$f":"IF(G59=\"\",\"\",G59*F59)","v":""},{"$f":"IF(G59=\"\",\"\",H59*D59)","v":""},null,null,null,0,0]
[null,null,null,null,"",null,null,"","",null,null,null,0,0]
[null,null,null,null,"",null,null,"","",null,null,null,0,0]
[null,null,null,null,"",null,null,"","",null,null,null,0,0]
[null,null,null,null,"",null,null,"","",null,null,null,0,0]
[null,null,null,null,"",null,null,"","",null,null,null,0,0]
[null,null,null,null,"",null,null,"","",null,null,null,0,0]
[null,null,null,null,"",null,null,"","",null,null,null,0,0]
[null,null,null,null,"",null,null,"","",null,null,null,0,0]
[null,null,null,null,"",null,null,"","",null,null,null,0,0]
[null,null,null,null,"",null,null,"","",null,null,null,0,0]
[null,null,null,null,{"$f":"IF(B70=\"LEITE\",\"LITROS\",IF(B70=\"\",\"\",\"CABEÇAS\"))","v":""},null,null,{"$f":"IF(G70=\"\",\"\",G70*F70)","v":""},{"$f":"IF(G70=\"\",\"\",H70*D70)","v":""},null,null,null,0,0]
[null,null,null,null,"",null,null,"","",null,null,null,0,0]
[null,null,null,null,"",null,null,"","",null,null,null,0,0]
[null,null,null,null,"",null,null,"","",null,null,null,0,0]
[null,null,null,null,"",null,null,"","",null,null,null,0,0]
[null,null,null,null,"",null,null,"","",null,null,null,0,0]
[null,"CUSTOS DE PRODUÇÃO"]
[null,"ATIVIDADE","EMPRESA / GRUPO","PARTICIPAÇÃO\n(%)","UNIDADE DE PRODUÇÃO","PRODUTIVIDADE","CUSTO \n(R$/U.A)","CUSTO TOTAL\n (R$)","CUSTO PART.\n (R$)",null,{"$f":"SUM(L78:L97)","v":1},null,{"$f":"SUM(N78:N97)","v":0}]
[null,{"$f":"IF(B56=\"\",\"\",B56)","v":""},"","","","",null,{"$f":"IF(G78=\"\",\"\",G78*F78)","v":""},{"$f":"IF(G78=\"\",\"\",H78*D78)","v":""},null,null,1,{"$f":"IF(AND(I78<>\"\",OR(H78<>\"\",G78<>\"\",F78<>\"\",E78<>\"\",D78<>\"\",C78<>\"\",B78<>\"\")),1,0)","v":0},{"$f":"M78*L78","v":0}]
[null,"","","","","",null,{"$f":"IF(G79=\"\",\"\",G79*F79)","v":""},{"$f":"IF(G79=\"\",\"\",H79*D79)","v":""},null,null,null,{"$f":"IF(AND(I79<>\"\",OR(H79<>\"\",G79<>\"\",F79<>\"\",E79<>\"\",D79<>\"\",C79<>\"\",B79<>\"\")),1,0)","v":0},{"$f":"M79*L79","v":0}]
[null,"","","","","",null,{"$f":"IF(G80=\"\",\"\",G80*F80)","v":""},{"$f":"IF(G80=\"\",\"\",H80*D80)","v":""},null,null,null,0,0]
[null,{"$f":"IF(B59=\"\",\"\",B59)","v":""},"","","","",null,{"$f":"IF(G81=\"\",\"\",G81*F81)","v":""},{"$f":"IF(G81=\"\",\"\",H81*D81)","v":""},null,null,null,0,0]
[null,"","","","","",null,"","",null,null,null,0,0]
[null,"","","","","",null,"","",null,null,null,0,0]
[null,"","","","","",null,"","",null,null,null,0,0]
[null,"","","","","",null,"","",null,null,null,0,0]
[null,"","","","","",null,"","",null,null,null,0,0]
[null,"","","","","",null,"","",null,null,null,0,0]
[null,"","","","","",null,"","",null,null,null,0,0]
[null,"","","","","",null,"","",null,null,null,0,0]
[null,"","","","","",null,"","",null,null,null,0,0]
[null,"","","","","",null,"","",null,null,null,0,0]
[null,"","","","","",null,"","",null,null,null,0,0]
[null,"","","","","",null,"","",null,null,null,0,0]
[null,"","","","","",null,"","",null,null,null,0,0]
[null,"","","","","",null,"","",null,null,null,0,0]
[null,"","","","","",null,"","",null,null,null,0,0]
[null,"","","","","",null,"","",null,null,null,0,0]
[]
[null,"CAPACIDADE DE PAGAMENTO"]
[null,"RECEITAS",null,null,null,"DESPESAS"]
[null,"RECEITA PREVISTA ATIVIDADES AGRÍCOLAS",null,null,{"$f":"SUM(I10:I29)","v":0},"CUSTO PREVISTO ATIVIDADES AGRÍCOLAS",null,null,{"$f":"SUM(I32:I51)","v":0}]
[null,"RECEITA PREVISTA ATIVIDADES PECUÁRIAS",null,null,{"$f":"SUM(I56:I75)","v":0},"CUSTO PREVISTO ATIVIDADES PECUÁRIAS",null,null,{"$f":"SUM(I78:I97)","v":0}]
[null,null,null,null,null,"OUTROS ARRENDAMENTOS"]
[null,null,null,null,null,"JUROS DE OUTROS FINANCIAMENTOS"]
[null,null,null,null,null,"MANUTENÇÃO DE MAQUINÁRIO"]
[null,null,null,null,null,"MANUTENÇÃO FAMILIAR MENSAL"]
[null,"OUTRAS RECEITAS PREVISTAS:",null,null,null,"OUTRAS DESPESAS PREVISTAS:"]
[]
[]
[]
[null,"TOTAL RECEITAS:",null,null,{"$f":"IF(SUM(E101:E104,E108:E110)=0,\"-\",SUM(E101:E104,E108:E110))","v":"-"},"TOTAL DESPESAS:",null,null,{"$f":"IF((SUM(I101:I110)+(I106*11))=0,\"-\",(SUM(I101:I110)+(I106*(VLOOKUP(PRAZO_PROJETO,LISTAS!J:K,2,0)-1))))","v":"-"}]
[]
[null,"RESULTADO (RECEITAS - DESPESAS): ",null,null,{"$f":"IFERROR(E111-I111,\"-\")","v":"-"},"RENTABILIDADE (RESULTADO/DESPESAS):",null,null,{"$f":"IFERROR(((E111-I111)/I111),\"-\")","v":"-"}]
[]
[]
[]
[]
[null,"________________________________________",null,null,null,"________________________________________"]
[null,{"$f":"UPPER('INFORMAÇÕES GERAIS'!F19)","v":""},null,null,null,{"$f":"UPPER('INFORMAÇÕES GERAIS'!H15)","v":""}]
[null,"Proponente",null,null,null,"Responsável Técnico"]

{"sheet":"PATRIMÔNIO","index":10,"n_rows":496,"n_cols":58,"rows_kept":496,"cut":false,"hidden":true,"merged":[[0,46,0,47],[493,0,493,19],[493,25,493,44],[461,0,461,6],[461,7,461,29],[461,30,461,32],[461,33,461,38],[462,0,462,6],[462,7,462,29],[462,30,462,32],[462,33,462,38],[459,0,459,6],[459,7,459,29],[459,30,459,32],[459,33,459,38],[460,0,460,6],[427,0,427,6],[427,7,427,29],[8,5,8,32],[9,5,9,32],[30,5,30,32],[420,0,420,6],[420,7,420,12],[420,13,420,18],[420,19,420,25],[420,26,420,32],[420,33,420,38],[382,7,382,12],[418,33,418,38],[383,0,383,6],[383,7,383,12],[383,13,383,18],[419,0,419,6],[417,0,417,6],[460,7,460,29],[460,30,460,32],[460,33,460,38],[468,0,468,6],[468,7,468,29],[468,30,468,32],[468,33,468,38],[467,33,467,38],[378,19,378,25],[378,26,378,32],[378,33,378,38],[378,39,378,44],[379,0,379,6],[379,7,379,12],[379,13,379,18],[379,19,379,25],[379,26,379,32],[379,33,379,38],[379,39,379,44],[380,0,380,6],[380,7,380,12],[380,13,380,18],[380,19,380,25],[380,26,380,32],[380,33,380,38],[380,39,380,44],[465,30,465,32],[465,33,465,38],[425,30,425,32],[425,7,425,29],[375,26,375,32],[375,33,375,38],[375,39,375,44],[376,0,376,6],[376,7,376,12],[376,13,376,18],[376,19,376,25],[376,26,376,32],[376,33,376,38],[376,39,376,44],[171,33,171,38],[166,33,166,38],[170,33,170,38],[174,0,174,5],[167,33,167,38],[168,33,168,38],[166,0,166,5],[169,33,169,38],[167,0,167,5],[168,0,168,5],[169,0,169,5],[373,39,373,44],[366,39,366,44],[364,39,364,44],[365,33,365,38],[366,33,366,38],[375,0,375,6],[173,0,173,5],[172,33,172,38],[173,33,173,38],[172,0,172,5],[175,0,175,5],[495,0,495,19],[496,0,496,19],[424,30,424,32],[6,0,6,44],[494,0,494,19],[180,39,180,44],[179,39,179,44],[177,39,177,44],[178,39,178,44],[174,33,174,38],[178,33,178,38],[170,39,170,44],[151,0,151,4],[151,5,151,28],[151,29,151,32],[177,33,177,38],[176,0,176,5],[181,33,181,38],[155,33,155,38],[155,39,155,44],[156,0,156,4],[156,5,156,28],[156,29,156,32],[156,33,156,38],[156,39,156,44],[157,0,157,4],[157,5,157,28],[157,29,157,32],[157,33,157,38],[157,39,157,44],[158,33,158,38],[158,39,158,44],[377,0,377,6],[482,28,482,33],[383,19,383,25],[383,26,383,32],[383,33,383,38],[383,39,383,44],[384,0,384,6],[384,7,384,12],[384,13,384,18],[384,19,384,25],[384,26,384,32],[384,33,384,38],[418,13,418,18],[418,19,418,25],[418,26,418,32],[365,39,365,44],[364,33,364,38],[371,0,371,6],[371,7,371,12],[371,13,371,18],[371,19,371,25],[371,26,371,32],[371,33,371,38],[371,39,371,44],[369,0,369,44],[375,19,375,25],[472,33,472,38],[469,30,469,32],[421,26,421,32],[421,33,421,38],[465,0,465,6],[465,7,465,29],[486,28,486,33],[474,0,474,6],[473,33,473,38],[466,33,466,38],[485,11,485,27],[485,28,485,33],[474,33,474,38],[474,39,474,44],[466,0,466,6],[466,7,466,29],[466,30,466,32],[467,0,467,6],[473,0,473,6],[471,0,471,6],[471,7,471,29],[471,30,471,32],[471,33,471,38],[472,0,472,6],[472,7,472,29],[470,0,470,6],[470,7,470,29],[470,30,470,32],[470,33,470,38],[469,0,469,6],[469,7,469,29],[469,33,469,38],[175,33,175,38],[167,30,167,32],[167,6,167,29],[168,6,168,29],[168,30,168,32],[169,6,169,29],[169,30,169,32],[170,6,170,29],[170,30,170,32],[171,6,171,29],[171,30,171,32],[489,11,489,27],[477,11,477,33],[478,11,478,27],[486,11,486,27],[474,7,474,29],[474,30,474,32],[489,28,489,33],[482,11,482,27],[478,28,478,33],[467,7,467,29],[467,30,467,32],[473,7,473,29],[473,30,473,32],[487,11,487,27],[487,28,487,33],[488,11,488,27],[463,0,463,6],[421,0,421,6],[421,7,421,12],[421,13,421,18],[421,19,421,25],[464,0,464,6],[464,7,464,29],[464,30,464,32],[464,33,464,38],[424,0,424,6],[425,0,425,6],[426,0,426,6],[424,7,424,29],[426,30,426,32],[426,33,426,38],[425,33,425,38],[427,30,427,32],[427,33,427,38],[458,0,458,6],[458,7,458,29],[458,30,458,32],[458,33,458,38],[424,33,424,38],[443,0,443,6],[443,33,443,38],[444,0,444,6],[444,33,444,38],[443,7,443,29],[443,30,443,32],[444,7,444,29],[444,30,444,32],[445,7,445,29],[445,30,445,32],[446,7,446,29],[446,30,446,32],[430,0,430,6],[430,7,430,29],[182,6,182,29],[182,30,182,32],[183,6,183,29],[183,30,183,32],[364,6,364,29],[364,30,364,32],[365,6,365,29],[160,33,160,38],[426,7,426,29],[418,0,418,6],[418,7,418,12],[415,13,415,18],[415,19,415,25],[415,26,415,32],[415,33,415,38],[416,0,416,6],[416,7,416,12],[416,13,416,18],[416,19,416,25],[416,26,416,32],[416,33,416,38],[417,7,417,12],[417,13,417,18],[417,19,417,25],[164,0,164,44],[173,39,173,44],[175,39,175,44],[171,0,171,5],[167,39,167,44],[168,39,168,44],[166,39,166,44],[169,39,169,44],[154,33,154,38],[154,39,154,44],[113,33,113,38],[113,39,113,44],[150,33,150,38],[150,39,150,44],[114,33,114,38],[114,39,114,44],[137,29,137,32],[7,0,7,44],[110,0,110,44],[111,29,111,32],[111,33,111,38],[111,39,111,44],[101,36,101,39],[102,33,102,35],[102,36,102,39],[103,33,103,35],[103,36,103,39],[101,33,101,35],[112,33,112,38],[112,39,112,44],[8,40,8,44],[9,40,9,44],[30,40,30,44],[31,40,31,44],[32,40,32,44],[33,5,33,32],[37,5,37,32],[41,5,41,32],[46,5,46,32],[47,5,47,32],[159,0,159,4],[149,0,149,4],[160,0,160,4],[161,0,161,4],[166,6,166,29],[155,5,155,28],[155,29,155,32],[158,0,158,4],[158,5,158,28],[158,29,158,32],[113,0,113,4],[113,5,113,28],[113,29,113,32],[150,5,150,28],[114,29,114,32],[137,0,137,4],[150,29,150,32],[152,29,152,32],[122,0,122,4],[122,5,122,28],[122,29,122,32],[129,0,129,4],[130,0,130,4],[129,5,129,28],[153,29,153,32],[123,0,123,4],[124,0,124,4],[123,5,123,28],[123,29,123,32],[127,0,127,4],[128,0,128,4],[127,5,127,28],[48,40,48,44],[16,40,16,44],[8,36,8,39],[9,36,9,39],[9,33,9,35],[8,33,8,35],[30,33,30,35],[30,36,30,39],[31,36,31,39],[32,33,32,35],[32,36,32,39],[16,33,16,35],[16,36,16,39],[176,33,176,38],[178,0,178,5],[183,39,183,44],[183,33,183,38],[178,6,178,29],[178,30,178,32],[179,6,179,29],[179,30,179,32],[180,6,180,29],[180,30,180,32],[181,6,181,29],[181,30,181,32],[177,0,177,5],[49,0,49,1],[49,2,49,4],[149,5,149,28],[114,0,114,4],[31,0,31,1],[111,0,111,4],[365,30,365,32],[366,6,366,29],[382,13,382,18],[382,19,382,25],[382,26,382,32],[382,33,382,38],[374,0,374,6],[374,7,374,12],[374,13,374,18],[374,19,374,25],[374,26,374,32],[374,33,374,38],[375,7,375,12],[375,13,375,18],[381,0,381,6],[374,39,374,44],[373,0,373,6],[373,7,373,12],[382,0,382,6],[370,0,370,44],[373,13,373,18],[373,19,373,25],[373,26,373,32],[373,33,373,38],[377,7,377,12],[377,13,377,18],[377,19,377,25],[377,26,377,32],[377,33,377,38],[377,39,377,44],[378,0,378,6],[378,7,378,12],[378,13,378,18],[171,39,171,44],[172,39,172,44],[165,0,165,44],[372,0,372,6],[372,7,372,12],[372,13,372,18],[372,19,372,25],[372,26,372,32],[372,33,372,38],[372,39,372,44],[181,39,181,44],[182,39,182,44],[182,33,182,38],[366,30,366,32],[179,0,179,5],[179,33,179,38],[180,0,180,5],[180,33,180,38],[181,0,181,5],[182,0,182,5],[176,6,176,29],[176,30,176,32],[176,39,176,44],[350,6,350,29],[350,30,350,32],[350,33,350,38],[350,39,350,44],[351,6,351,29],[351,30,351,32],[351,33,351,38],[351,39,351,44],[496,25,496,44],[495,25,495,44],[494,25,494,44],[381,39,381,44],[381,33,381,38],[381,26,381,32],[381,19,381,25],[381,13,381,18],[381,7,381,12],[382,39,382,44],[479,11,479,27],[481,11,481,27],[479,28,479,33],[481,28,481,33],[483,11,483,27],[483,28,483,33],[484,11,484,27],[484,28,484,33],[419,7,419,12],[419,13,419,18],[419,19,419,25],[419,26,419,32],[419,33,419,38],[384,39,384,44],[415,7,415,12],[463,33,463,38],[463,30,463,32],[463,7,463,29],[488,28,488,33],[480,11,480,27],[480,28,480,33],[472,30,472,32],[10,0,10,1],[10,2,10,4],[37,0,37,1],[37,2,37,4],[41,0,41,1],[41,2,41,4],[46,0,46,1],[46,2,46,4],[47,2,47,4],[103,5,103,32],[104,5,104,32],[105,5,105,32],[137,5,137,28],[106,5,106,32],[107,5,107,32],[108,5,108,32],[112,0,112,4],[112,5,112,28],[111,5,111,28],[75,5,75,32],[101,5,101,32],[102,5,102,32],[112,29,112,32],[118,29,118,32],[31,5,31,32],[32,5,32,32],[48,5,48,32],[49,5,49,32],[61,5,61,32],[53,0,53,1],[53,2,53,4],[54,0,54,1],[48,36,48,39],[70,36,70,39],[71,33,71,35],[71,36,71,39],[72,33,72,35],[72,36,72,39],[70,33,70,35],[73,36,73,39],[73,33,73,35],[48,33,48,35],[49,33,49,35],[49,36,49,39],[49,40,49,44],[104,33,104,35],[74,33,74,35],[74,36,74,39],[8,0,8,1],[9,0,9,1],[30,0,30,1],[32,0,32,1],[48,0,48,1],[8,2,8,4],[9,2,9,4],[30,2,30,4],[31,2,31,4],[32,2,32,4],[48,2,48,4],[17,0,17,1],[17,2,17,4],[19,0,19,1],[19,2,19,4],[21,0,21,1],[10,5,10,32],[10,33,10,35],[10,36,10,39],[10,40,10,44],[177,6,177,29],[177,30,177,32],[115,0,115,4],[136,0,136,4],[115,5,115,28],[115,29,115,32],[149,29,149,32],[161,5,161,28],[161,29,161,32],[160,29,160,32],[152,0,152,4],[152,5,152,28],[153,0,153,4],[153,5,153,28],[154,0,154,4],[154,5,154,28],[155,0,155,4],[159,5,159,28],[159,29,159,32],[160,5,160,28],[138,0,138,4],[138,5,138,28],[138,29,138,32],[136,29,136,32],[138,33,138,38],[138,39,138,44],[33,0,33,1],[33,2,33,4],[33,33,33,35],[33,36,33,39],[33,40,33,44],[34,0,34,1],[34,2,34,4],[34,5,34,32],[34,33,34,35],[34,36,34,39],[34,40,34,44],[11,0,11,1],[11,2,11,4],[11,5,11,32],[11,33,11,35],[11,36,11,39],[11,40,11,44],[12,0,12,1],[12,2,12,4],[12,5,12,32],[12,33,12,35],[12,36,12,39],[12,40,12,44],[31,33,31,35],[29,0,29,1],[29,2,29,4],[29,5,29,32],[29,33,29,35],[29,36,29,39],[29,40,29,44],[17,33,17,35],[17,36,17,39],[17,40,17,44],[18,0,18,1],[37,33,37,35],[37,36,37,39],[37,40,37,44],[38,0,38,1],[38,2,38,4],[38,5,38,32],[38,33,38,35],[38,36,38,39],[38,40,38,44],[35,0,35,1],[35,2,35,4],[35,5,35,32],[35,33,35,35],[35,36,35,39],[35,40,35,44],[36,0,36,1],[36,2,36,4],[36,5,36,32],[36,33,36,35],[36,36,36,39],[36,40,36,44],[41,33,41,35],[41,36,41,39],[41,40,41,44],[42,0,42,1],[42,2,42,4],[42,5,42,32],[42,33,42,35],[42,36,42,39],[42,40,42,44],[39,0,39,1],[39,2,39,4],[39,5,39,32],[39,33,39,35],[39,36,39,39],[39,40,39,44],[40,0,40,1],[40,2,40,4],[40,5,40,32],[40,33,40,35],[40,36,40,39],[40,40,40,44],[46,33,46,35],[46,36,46,39],[46,40,46,44],[43,0,43,1],[43,2,43,4],[43,5,43,32],[43,33,43,35],[43,36,43,39],[43,40,43,44],[44,0,44,1],[44,2,44,4],[44,5,44,32],[44,33,44,35],[44,36,44,39],[44,40,44,44],[53,36,53,39],[54,5,54,32],[54,33,54,35],[54,36,54,39],[51,5,51,32],[51,33,51,35],[51,36,51,39],[52,5,52,32],[52,33,52,35],[52,36,52,39],[50,0,50,1],[50,2,50,4],[50,5,50,32],[50,33,50,35],[50,36,50,39],[50,40,50,44],[47,0,47,1],[47,40,47,44],[45,0,45,1],[45,2,45,4],[45,5,45,32],[45,33,45,35],[45,36,45,39],[45,40,45,44],[51,0,51,1],[51,2,51,4],[51,40,51,44],[52,0,52,1],[52,2,52,4],[52,40,52,44],[69,5,69,32],[69,33,69,35],[69,36,69,39],[67,5,67,32],[68,5,68,32],[68,33,68,35],[68,36,68,39],[65,5,65,32],[65,33,65,35],[65,36,65,39],[66,5,66,32],[66,33,66,35],[66,36,66,39],[63,5,63,32],[63,33,63,35],[63,36,63,39],[64,5,64,32],[64,33,64,35],[64,36,64,39],[57,5,57,32],[57,33,57,35],[57,36,57,39],[58,5,58,32],[58,33,58,35],[58,36,58,39],[55,5,55,32],[55,33,55,35],[55,36,55,39],[56,5,56,32],[56,33,56,35],[56,36,56,39],[53,5,53,32],[53,33,53,35],[57,0,57,1],[57,2,57,4],[57,40,57,44],[58,0,58,1],[58,2,58,4],[58,40,58,44],[55,0,55,1],[55,2,55,4],[55,40,55,44],[56,0,56,1],[56,2,56,4],[56,40,56,44],[53,40,53,44],[54,2,54,4],[54,40,54,44],[61,0,61,1],[61,2,61,4],[61,40,61,44],[62,0,62,1],[62,2,62,4],[62,40,62,44],[59,0,59,1],[59,2,59,4],[59,40,59,44],[60,0,60,1],[60,2,60,4],[60,40,60,44],[59,33,59,35],[59,36,59,39],[60,5,60,32],[60,33,60,35],[60,36,60,39],[61,33,61,35],[61,36,61,39],[62,5,62,32],[62,33,62,35],[62,36,62,39],[59,5,59,32],[67,0,67,1],[67,2,67,4],[67,40,67,44],[68,0,68,1],[68,2,68,4],[68,40,68,44],[65,0,65,1],[65,2,65,4],[65,40,65,44],[66,0,66,1],[66,2,66,4],[66,40,66,44],[63,0,63,1],[63,2,63,4],[63,40,63,44],[64,0,64,1],[64,2,64,4],[64,40,64,44],[73,0,73,1],[73,2,73,4],[73,40,73,44],[74,0,74,1],[74,2,74,4],[74,40,74,44],[71,0,71,1],[71,2,71,4],[71,40,71,44],[72,0,72,1],[72,2,72,4],[72,40,72,44],[75,33,75,35],[75,36,75,39],[69,0,69,1],[69,2,69,4],[69,40,69,44],[70,0,70,1],[70,2,70,4],[70,40,70,44],[70,5,70,32],[71,5,71,32],[72,5,72,32],[73,5,73,32],[74,5,74,32],[77,0,77,1],[77,2,77,4],[77,5,77,32],[77,33,77,35],[77,36,77,39],[77,40,77,44],[78,0,78,1],[78,2,78,4],[78,5,78,32],[78,33,78,35],[78,36,78,39],[78,40,78,44],[75,0,75,1],[75,2,75,4],[75,40,75,44],[76,0,76,1],[76,2,76,4],[76,5,76,32],[76,33,76,35],[76,36,76,39],[76,40,76,44],[81,0,81,1],[81,2,81,4],[81,5,81,32],[81,33,81,35],[81,36,81,39],[81,40,81,44],[82,0,82,1],[82,2,82,4],[82,5,82,32],[82,33,82,35],[82,36,82,39],[82,40,82,44],[79,0,79,1],[79,2,79,4],[79,5,79,32],[79,33,79,35],[79,36,79,39],[79,40,79,44],[80,0,80,1],[80,2,80,4],[80,5,80,32],[80,33,80,35],[80,36,80,39],[80,40,80,44],[85,0,85,1],[85,2,85,4],[85,5,85,32],[85,33,85,35],[85,36,85,39],[85,40,85,44],[86,0,86,1],[86,2,86,4],[86,5,86,32],[86,33,86,35],[86,36,86,39],[86,40,86,44],[83,0,83,1],[83,2,83,4],[83,5,83,32],[83,33,83,35],[83,36,83,39],[83,40,83,44],[84,0,84,1],[84,2,84,4],[84,5,84,32],[84,33,84,35],[84,36,84,39],[84,40,84,44],[89,0,89,1],[89,2,89,4],[89,5,89,32],[89,33,89,35],[89,36,89,39],[89,40,89,44],[90,0,90,1],[90,2,90,4],[90,5,90,32],[90,33,90,35],[90,36,90,39],[90,40,90,44],[87,0,87,1],[87,2,87,4],[87,5,87,32],[87,33,87,35],[87,36,87,39],[87,40,87,44],[88,0,88,1],[88,2,88,4],[88,5,88,32],[88,33,88,35],[88,36,88,39],[88,40,88,44],[93,0,93,1],[93,2,93,4],[93,5,93,32],[93,33,93,35],[93,36,93,39],[93,40,93,44],[94,0,94,1],[94,2,94,4],[94,5,94,32],[94,33,94,35],[94,36,94,39],[94,40,94,44],[91,0,91,1],[91,2,91,4],[91,5,91,32],[91,33,91,35],[91,36,91,39],[91,40,91,44],[92,0,92,1],[92,2,92,4],[92,5,92,32],[92,40,92,44],[97,2,97,4],[97,5,97,32],[97,33,97,35],[97,36,97,39],[97,40,97,44],[98,0,98,1],[98,2,98,4],[98,5,98,32],[98,33,98,35],[98,36,98,39],[98,40,98,44],[95,0,95,1],[95,2,95,4],[95,5,95,32],[95,33,95,35],[95,36,95,39],[95,40,95,44],[96,0,96,1],[96,2,96,4],[96,5,96,32],[96,33,96,35],[96,36,96,39],[96,40,96,44],[97,0,97,1],[124,5,124,28],[124,29,124,32],[124,33,124,38],[124,39,124,44],[99,40,99,44],[100,0,100,1],[100,2,100,4],[100,5,100,32],[100,33,100,35],[100,36,100,39],[100,40,100,44],[104,36,104,39],[105,33,105,35],[105,36,105,39],[106,33,106,35],[106,36,106,39],[114,5,114,28],[115,33,115,38],[115,39,115,44],[122,33,122,38],[122,39,122,44],[121,5,121,28],[121,29,121,32],[121,33,121,38],[121,39,121,44],[116,0,116,4],[101,0,101,1],[101,2,101,4],[101,40,101,44],[103,0,103,1],[103,2,103,4],[103,40,103,44],[127,29,127,32],[127,33,127,38],[127,39,127,44],[128,5,128,28],[128,29,128,32],[128,33,128,38],[128,39,128,44],[107,0,107,1],[107,2,107,4],[107,40,107,44],[108,0,108,1],[108,2,108,4],[108,40,108,44],[105,0,105,1],[105,2,105,4],[105,40,105,44],[106,0,106,1],[106,2,106,4],[106,40,106,44],[125,0,125,4],[126,0,126,4],[125,5,125,28],[125,29,125,32],[125,33,125,38],[125,39,125,44],[126,5,126,28]],"merged_total":2527,"flags":["merged_cut"]}
[null,null,null,null,null,null,null,null,null,null,null,null,null,null,null,null,null,null,null,null,null,null,null,null,null,null,null,null,null,null,null,null,null,null,null,null,null,null,null,null,null,null,null,null,null,null,"SINALIZADORES DE INCLUSÃO E EXCLUSÃO (IMPORTANTES)!!!!"]
[]
[]
[]
[]
[]
["I - BENS IMÓVEIS"]
["IMÓVEIS RURAIS E URBANOS"]
["REF",null,"TIPO",null,null,"DESCRIÇÃO",null,null,null,null,null,null,null,null,null,null,null,null,null,null,null,null,null,null,null,null,null,null,null,null,null,null,null,"PART.\n%",null,null,"VALOR BEM\n (R$)",null,null,null,"VALOR %\n(R$)"]
[{"$f":"IF(C10<>\"\",1,\"\")","v":""},null,null,null,null,null,null,null,null,null,null,null,null,null,null,null,null,null,null,null,null,null,null,null,null,null,null,null,null,null,null,null,null,null,null,null,null,null,null,null,{"$f":"IF(OR(AH10=\"\",AK10=\"\"),\"\",AK10*AH10)","v":""},null,null,null,null,null,{"$f":"SUM(AV10:AV109)","v":1},1,null,null,null,null,null,null,null,null,{"$f":"_xlfn.CONCAT(\"IMÓVEL \",A10)","v":"IMÓVEL "},{"$f":"_xlfn.CONCAT(\"Be10:Be\"&(9+LARGE(A10:C109,1)))","v":{"$error":"#NUM!"}}]
[{"$f":"IF(C11<>\"\",1+A10,\"\")","v":""},null,null,null,null,null,null,null,null,null,null,null,null,null,null,null,null,null,null,null,null,null,null,null,null,null,null,null,null,null,null,null,null,null,null,null,null,null,null,null,{"$f":"IF(OR(AH11=\"\",AK11=\"\"),\"\",AK11*AH11)","v":""},null,null,null,null,null,null,null,null,null,null,null,null,null,null,null,{"$f":"_xlfn.CONCAT(\"IMÓVEL \",A11)","v":"IMÓVEL "}]
[{"$f":"IF(C12<>\"\",1+A11,\"\")","v":""},null,null,null,null,null,null,null,null,null,null,null,null,null,null,null,null,null,null,null,null,null,null,null,null,null,null,null,null,null,null,null,null,null,null,null,null,null,null,null,"",null,null,null,null,null,null,null,null,null,null,null,null,null,null,null,"IMÓVEL "]
["",null,null,null,null,null,null,null,null,null,null,null,null,null,null,null,null,null,null,null,null,null,null,null,null,null,null,null,null,null,null,null,null,null,null,null,null,null,null,null,{"$f":"IF(OR(AH13=\"\",AK13=\"\"),\"\",AK13*AH13)","v":""},null,null,null,null,null,null,null,null,null,null,null,null,null,null,null,"IMÓVEL "]
["",null,null,null,null,null,null,null,null,null,null,null,null,null,null,null,null,null,null,null,null,null,null,null,null,null,null,null,null,null,null,null,null,null,null,null,null,null,null,null,"",null,null,null,null,null,null,null,null,null,null,null,null,null,null,null,"IMÓVEL "]
["",null,null,null,null,null,null,null,null,null,null,null,null,null,null,null,null,null,null,null,null,null,null,null,null,null,null,null,null,null,null,null,null,null,null,null,null,null,null,null,"",null,null,null,null,null,null,null,null,null,null,null,null,null,null,null,"IMÓVEL "]
["",null,null,null,null,null,null,null,null,null,null,null,null,null,null,null,null,null,null,null,null,null,null,null,null,null,null,null,null,null,null,null,null,null,null,null,null,null,null,null,"",null,null,null,null,null,null,null,null,null,null,null,null,null,null,null,"IMÓVEL "]
["",null,null,null,null,null,null,null,null,null,null,null,null,null,null,null,null,null,null,null,null,null,null,null,null,null,null,null,null,null,null,null,null,null,null,null,null,null,null,null,"",null,null,null,null,null,null,null,null,null,null,null,null,null,null,null,"IMÓVEL "]
["",null,null,null,null,null,null,null,null,null,null,null,null,null,null,null,null,null,null,null,null,null,null,null,null,null,null,null,null,null,null,null,null,null,null,null,null,null,null,null,"",null,null,null,null,null,null,null,null,null,null,null,null,null,null,null,"IMÓVEL "]
["",null,null,null,null,null,null,null,null,null,null,null,null,null,null,null,null,null,null,null,null,null,null,null,null,null,null,null,null,null,null,null,null,null,null,null,null,null,null,null,"",null,null,null,null,null,null,null,null,null,null,null,null,null,null,null,"IMÓVEL "]
["",null,null,null,null,null,null,null,null,null,null,null,null,null,null,null,null,null,null,null,null,null,null,null,null,null,null,null,null,null,null,null,null,null,null,null,null,null,null,null,"",null,null,null,null,null,null,null,null,null,null,null,null,null,null,null,"IMÓVEL "]
["",null,null,null,null,null,null,null,null,null,null,null,null,null,null,null,null,null,null,null,null,null,null,null,null,null,null,null,null,null,null,null,null,null,null,null,null,null,null,null,"",null,null,null,null,null,null,null,null,null,null,null,null,null,null,null,"IMÓVEL "]
["",null,null,null,null,null,null,null,null,null,null,null,null,null,null,null,null,null,null,null,null,null,null,null,null,null,null,null,null,null,null,null,null,null,null,null,null,null,null,null,"",null,null,null,null,null,null,null,null,null,null,null,null,null,null,null,"IMÓVEL "]
["",null,null,null,null,null,null,null,null,null,null,null,null,null,null,null,null,null,null,null,null,null,null,null,null,null,null,null,null,null,null,null,null,null,null,null,null,null,null,null,"",null,null,null,null,null,null,null,null,null,null,null,null,null,null,null,"IMÓVEL "]
["",null,null,null,null,null,null,null,null,null,null,null,null,null,null,null,null,null,null,null,null,null,null,null,null,null,null,null,null,null,null,null,null,null,null,null,null,null,null,null,"",null,null,null,null,null,null,null,null,null,null,null,null,null,null,null,"IMÓVEL "]
["",null,null,null,null,null,null,null,null,null,null,null,null,null,null,null,null,null,null,null,null,null,null,null,null,null,null,null,null,null,null,null,null,null,null,null,null,null,null,null,"",null,null,null,null,null,null,null,null,null,null,null,null,null,null,null,"IMÓVEL "]
["",null,null,null,null,null,null,null,null,null,null,null,null,null,null,null,null,null,null,null,null,null,null,null,null,null,null,null,null,null,null,null,null,null,null,null,null,null,null,null,"",null,null,null,null,null,null,null,null,null,null,null,null,null,null,null,"IMÓVEL "]
["",null,null,null,null,null,null,null,null,null,null,null,null,null,null,null,null,null,null,null,null,null,null,null,null,null,null,null,null,null,null,null,null,null,null,null,null,null,null,null,"",null,null,null,null,null,null,null,null,null,null,null,null,null,null,null,"IMÓVEL "]
["",null,null,null,null,null,null,null,null,null,null,null,null,null,null,null,null,null,null,null,null,null,null,null,null,null,null,null,null,null,null,null,null,null,null,null,null,null,null,null,"",null,null,null,null,null,null,null,null,null,null,null,null,null,null,null,"IMÓVEL "]
["",null,null,null,null,null,null,null,null,null,null,null,null,null,null,null,null,null,null,null,null,null,null,null,null,null,null,null,null,null,null,null,null,null,null,null,null,null,null,null,"",null,null,null,null,null,null,null,null,null,null,null,null,null,null,null,"IMÓVEL "]
["",null,null,null,null,null,null,null,null,null,null,null,null,null,null,null,null,null,null,null,null,null,null,null,null,null,null,null,null,null,null,null,null,null,null,null,null,null,null,null,"",null,null,null,null,null,null,null,null,null,null,null,null,null,null,null,"IMÓVEL "]
["",null,null,null,null,null,null,null,null,null,null,null,null,null,null,null,null,null,null,null,null,null,null,null,null,null,null,null,null,null,null,null,null,null,null,null,null,null,null,null,"",null,null,null,null,null,null,null,null,null,null,null,null,null,null,null,"IMÓVEL "]
["",null,null,null,null,null,null,null,null,null,null,null,null,null,null,null,null,null,null,null,null,null,null,null,null,null,null,null,null,null,null,null,null,null,null,null,null,null,null,null,"",null,null,null,null,null,null,null,null,null,null,null,null,null,null,null,"IMÓVEL "]
["",null,null,null,null,null,null,null,null,null,null,null,null,null,null,null,null,null,null,null,null,null,null,null,null,null,null,null,null,null,null,null,null,null,null,null,null,null,null,null,"",null,null,null,null,null,null,null,null,null,null,null,null,null,null,null,"IMÓVEL "]
["",null,null,null,null,null,null,null,null,null,null,null,null,null,null,null,null,null,null,null,null,null,null,null,null,null,null,null,null,null,null,null,null,null,null,null,null,null,null,null,"",null,null,null,null,null,null,null,null,null,null,null,null,null,null,null,{"$f":"_xlfn.CONCAT(\"IMÓVEL \",A34)","v":"IMÓVEL "}]
["",null,null,null,null,null,null,null,null,null,null,null,null,null,null,null,null,null,null,null,null,null,null,null,null,null,null,null,null,null,null,null,null,null,null,null,null,null,null,null,"",null,null,null,null,null,null,null,null,null,null,null,null,null,null,null,"IMÓVEL "]
["",null,null,null,null,null,null,null,null,null,null,null,null,null,null,null,null,null,null,null,null,null,null,null,null,null,null,null,null,null,null,null,null,null,null,null,null,null,null,null,"",null,null,null,null,null,null,null,null,null,null,null,null,null,null,null,"IMÓVEL "]
["",null,null,null,null,null,null,null,null,null,null,null,null,null,null,null,null,null,null,null,null,null,null,null,null,null,null,null,null,null,null,null,null,null,null,null,null,null,null,null,"",null,null,null,null,null,null,null,null,null,null,null,null,null,null,null,"IMÓVEL "]
["",null,null,null,null,null,null,null,null,null,null,null,null,null,null,null,null,null,null,null,null,null,null,null,null,null,null,null,null,null,null,null,null,null,null,null,null,null,null,null,"",null,null,null,null,null,null,null,null,null,null,null,null,null,null,null,"IMÓVEL "]
["",null,null,null,null,null,null,null,null,null,null,null,null,null,null,null,null,null,null,null,null,null,null,null,null,null,null,null,null,null,null,null,null,null,null,null,null,null,null,null,"",null,null,null,null,null,null,null,null,null,null,null,null,null,null,null,"IMÓVEL "]
["",null,null,null,null,null,null,null,null,null,null,null,null,null,null,null,null,null,null,null,null,null,null,null,null,null,null,null,null,null,null,null,null,null,null,null,null,null,null,null,"",null,null,null,null,null,null,null,null,null,null,null,null,null,null,null,"IMÓVEL "]
["",null,null,null,null,null,null,null,null,null,null,null,null,null,null,null,null,null,null,null,null,null,null,null,null,null,null,null,null,null,null,null,null,null,null,null,null,null,null,null,"",null,null,null,null,null,null,null,null,null,null,null,null,null,null,null,"IMÓVEL "]
["",null,null,null,null,null,null,null,null,null,null,null,null,null,null,null,null,null,null,null,null,null,null,null,null,null,null,null,null,null,null,null,null,null,null,null,null,null,null,null,"",null,null,null,null,null,null,null,null,null,null,null,null,null,null,null,"IMÓVEL "]
["",null,null,null,null,null,null,null,null,null,null,null,null,null,null,null,null,null,null,null,null,null,null,null,null,null,null,null,null,null,null,null,null,null,null,null,null,null,null,null,"",null,null,null,null,null,null,null,null,null,null,null,null,null,null,null,"IMÓVEL "]
["",null,null,null,null,null,null,null,null,null,null,null,null,null,null,null,null,null,null,null,null,null,null,null,null,null,null,null,null,null,null,null,null,null,null,null,null,null,null,null,"",null,null,null,null,null,null,null,null,null,null,null,null,null,null,null,"IMÓVEL "]
["",null,null,null,null,null,null,null,null,null,null,null,null,null,null,null,null,null,null,null,null,null,null,null,null,null,null,null,null,null,null,null,null,null,null,null,null,null,null,null,"",null,null,null,null,null,null,null,null,null,null,null,null,null,null,null,"IMÓVEL "]
["",null,null,null,null,null,null,null,null,null,null,null,null,null,null,null,null,null,null,null,null,null,null,null,null,null,null,null,null,null,null,null,null,null,null,null,null,null,null,null,"",null,null,null,null,null,null,null,null,null,null,null,null,null,null,null,"IMÓVEL "]
["",null,null,null,null,null,null,null,null,null,null,null,null,null,null,null,null,null,null,null,null,null,null,null,null,null,null,null,null,null,null,null,null,null,null,null,null,null,null,null,"",null,null,null,null,null,null,null,null,null,null,null,null,null,null,null,"IMÓVEL "]
["",null,null,null,null,null,null,null,null,null,null,null,null,null,null,null,null,null,null,null,null,null,null,null,null,null,null,null,null,null,null,null,null,null,null,null,null,null,null,null,"",null,null,null,null,null,null,null,null,null,null,null,null,null,null,null,"IMÓVEL "]
["",null,null,null,null,null,null,null,null,null,null,null,null,null,null,null,null,null,null,null,null,null,null,null,null,null,null,null,null,null,null,null,null,null,null,null,null,null,null,null,"",null,null,null,null,null,null,null,null,null,null,null,null,null,null,null,"IMÓVEL "]
["",null,null,null,null,null,null,null,null,null,null,null,null,null,null,null,null,null,null,null,null,null,null,null,null,null,null,null,null,null,null,null,null,null,null,null,null,null,null,null,"",null,null,null,null,null,null,null,null,null,null,null,null,null,null,null,{"$f":"_xlfn.CONCAT(\"IMÓVEL \",A50)","v":"IMÓVEL "}]
["",null,null,null,null,null,null,null,null,null,null,null,null,null,null,null,null,null,null,null,null,null,null,null,null,null,null,null,null,null,null,null,null,null,null,null,null,null,null,null,"",null,null,null,null,null,null,null,null,null,null,null,null,null,null,null,"IMÓVEL "]
["",null,null,null,null,null,null,null,null,null,null,null,null,null,null,null,null,null,null,null,null,null,null,null,null,null,null,null,null,null,null,null,null,null,null,null,null,null,null,null,"",null,null,null,null,null,null,null,null,null,null,null,null,null,null,null,"IMÓVEL "]
["",null,null,null,null,null,null,null,null,null,null,null,null,null,null,null,null,null,null,null,null,null,null,null,null,null,null,null,null,null,null,null,null,null,null,null,null,null,null,null,"",null,null,null,null,null,null,null,null,null,null,null,null,null,null,null,"IMÓVEL "]
["",null,null,null,null,null,null,null,null,null,null,null,null,null,null,null,null,null,null,null,null,null,null,null,null,null,null,null,null,null,null,null,null,null,null,null,null,null,null,null,"",null,null,null,null,null,null,null,null,null,null,null,null,null,null,null,"IMÓVEL "]
["",null,null,null,null,null,null,null,null,null,null,null,null,null,null,null,null,null,null,null,null,null,null,null,null,null,null,null,null,null,null,null,null,null,null,null,null,null,null,null,"",null,null,null,null,null,null,null,null,null,null,null,null,null,null,null,"IMÓVEL "]
["",null,null,null,null,null,null,null,null,null,null,null,null,null,null,null,null,null,null,null,null,null,null,null,null,null,null,null,null,null,null,null,null,null,null,null,null,null,null,null,"",null,null,null,null,null,null,null,null,null,null,null,null,null,null,null,"IMÓVEL "]
["",null,null,null,null,null,null,null,null,null,null,null,null,null,null,null,null,null,null,null,null,null,null,null,null,null,null,null,null,null,null,null,null,null,null,null,null,null,null,null,"",null,null,null,null,null,null,null,null,null,null,null,null,null,null,null,"IMÓVEL "]
["",null,null,null,null,null,null,null,null,null,null,null,null,null,null,null,null,null,null,null,null,null,null,null,null,null,null,null,null,null,null,null,null,null,null,null,null,null,null,null,"",null,null,null,null,null,null,null,null,null,null,null,null,null,null,null,"IMÓVEL "]
["",null,null,null,null,null,null,null,null,null,null,null,null,null,null,null,null,null,null,null,null,null,null,null,null,null,null,null,null,null,null,null,null,null,null,null,null,null,null,null,"",null,null,null,null,null,null,null,null,null,null,null,null,null,null,null,"IMÓVEL "]
["",null,null,null,null,null,null,null,null,null,null,null,null,null,null,null,null,null,null,null,null,null,null,null,null,null,null,null,null,null,null,null,null,null,null,null,null,null,null,null,"",null,null,null,null,null,null,null,null,null,null,null,null,null,null,null,"IMÓVEL "]
["",null,null,null,null,null,null,null,null,null,null,null,null,null,null,null,null,null,null,null,null,null,null,null,null,null,null,null,null,null,null,null,null,null,null,null,null,null,null,null,"",null,null,null,null,null,null,null,null,null,null,null,null,null,null,null,"IMÓVEL "]
["",null,null,null,null,null,null,null,null,null,null,null,null,null,null,null,null,null,null,null,null,null,null,null,null,null,null,null,null,null,null,null,null,null,null,null,null,null,null,null,"",null,null,null,null,null,null,null,null,null,null,null,null,null,null,null,"IMÓVEL "]
["",null,null,null,null,null,null,null,null,null,null,null,null,null,null,null,null,null,null,null,null,null,null,null,null,null,null,null,null,null,null,null,null,null,null,null,null,null,null,null,"",null,null,null,null,null,null,null,null,null,null,null,null,null,null,null,"IMÓVEL "]
["",null,null,null,null,null,null,null,null,null,null,null,null,null,null,null,null,null,null,null,null,null,null,null,null,null,null,null,null,null,null,null,null,null,null,null,null,null,null,null,"",null,null,null,null,null,null,null,null,null,null,null,null,null,null,null,"IMÓVEL "]
["",null,null,null,null,null,null,null,null,null,null,null,null,null,null,null,null,null,null,null,null,null,null,null,null,null,null,null,null,null,null,null,null,null,null,null,null,null,null,null,"",null,null,null,null,null,null,null,null,null,null,null,null,null,null,null,"IMÓVEL "]
["",null,null,null,null,null,null,null,null,null,null,null,null,null,null,null,null,null,null,null,null,null,null,null,null,null,null,null,null,null,null,null,null,null,null,null,null,null,null,null,"",null,null,null,null,null,null,null,null,null,null,null,null,null,null,null,"IMÓVEL "]
["",null,null,null,null,null,null,null,null,null,null,null,null,null,null,null,null,null,null,null,null,null,null,null,null,null,null,null,null,null,null,null,null,null,null,null,null,null,null,null,"",null,null,null,null,null,null,null,null,null,null,null,null,null,null,null,"IMÓVEL "]
["",null,null,null,null,null,null,null,null,null,null,null,null,null,null,null,null,null,null,null,null,null,null,null,null,null,null,null,null,null,null,null,null,null,null,null,null,null,null,null,"",null,null,null,null,null,null,null,null,null,null,null,null,null,null,null,"IMÓVEL "]
["",null,null,null,null,null,null,null,null,null,null,null,null,null,null,null,null,null,null,null,null,null,null,null,null,null,null,null,null,null,null,null,null,null,null,null,null,null,null,null,"",null,null,null,null,null,null,null,null,null,null,null,null,null,null,null,"IMÓVEL "]
["",null,null,null,null,null,null,null,null,null,null,null,null,null,null,null,null,null,null,null,null,null,null,null,null,null,null,null,null,null,null,null,null,null,null,null,null,null,null,null,"",null,null,null,null,null,null,null,null,null,null,null,null,null,null,null,{"$f":"_xlfn.CONCAT(\"IMÓVEL \",A70)","v":"IMÓVEL "}]
["",null,null,null,null,null,null,null,null,null,null,null,null,null,null,null,null,null,null,null,null,null,null,null,null,null,null,null,null,null,null,null,null,null,null,null,null,null,null,null,"",null,null,null,null,null,null,null,null,null,null,null,null,null,null,null,"IMÓVEL "]
["",null,null,null,null,null,null,null,null,null,null,null,null,null,null,null,null,null,null,null,null,null,null,null,null,null,null,null,null,null,null,null,null,null,null,null,null,null,null,null,"",null,null,null,null,null,null,null,null,null,null,null,null,null,null,null,"IMÓVEL "]
["",null,null,null,null,null,null,null,null,null,null,null,null,null,null,null,null,null,null,null,null,null,null,null,null,null,null,null,null,null,null,null,null,null,null,null,null,null,null,null,"",null,null,null,null,null,null,null,null,null,null,null,null,null,null,null,"IMÓVEL "]
["",null,null,null,null,null,null,null,null,null,null,null,null,null,null,null,null,null,null,null,null,null,null,null,null,null,null,null,null,null,null,null,null,null,null,null,null,null,null,null,"",null,null,null,null,null,null,null,null,null,null,null,null,null,null,null,"IMÓVEL "]
["",null,null,null,null,null,null,null,null,null,null,null,null,null,null,null,null,null,null,null,null,null,null,null,null,null,null,null,null,null,null,null,null,null,null,null,null,null,null,null,"",null,null,null,null,null,null,null,null,null,null,null,null,null,null,null,"IMÓVEL "]
[{"$f":"IF(C76<>\"\",1+A75,\"\")","v":""},null,null,null,null,null,null,null,null,null,null,null,null,null,null,null,null,null,null,null,null,null,null,null,null,null,null,null,null,null,null,null,null,null,null,null,null,null,null,null,"",null,null,null,null,null,null,null,null,null,null,null,null,null,null,null,"IMÓVEL "]
["",null,null,null,null,null,null,null,null,null,null,null,null,null,null,null,null,null,null,null,null,null,null,null,null,null,null,null,null,null,null,null,null,null,null,null,null,null,null,null,{"$f":"IF(OR(AH77=\"\",AK77=\"\"),\"\",AK77*AH77)","v":""},null,null,null,null,null,null,null,null,null,null,null,null,null,null,null,"IMÓVEL "]
["",null,null,null,null,null,null,null,null,null,null,null,null,null,null,null,null,null,null,null,null,null,null,null,null,null,null,null,null,null,null,null,null,null,null,null,null,null,null,null,"",null,null,null,null,null,null,null,null,null,null,null,null,null,null,null,"IMÓVEL "]
["",null,null,null,null,null,null,null,null,null,null,null,null,null,null,null,null,null,null,null,null,null,null,null,null,null,null,null,null,null,null,null,null,null,null,null,null,null,null,null,"",null,null,null,null,null,null,null,null,null,null,null,null,null,null,null,"IMÓVEL "]
["",null,null,null,null,null,null,null,null,null,null,null,null,null,null,null,null,null,null,null,null,null,null,null,null,null,null,null,null,null,null,null,null,null,null,null,null,null,null,null,"",null,null,null,null,null,null,null,null,null,null,null,null,null,null,null,"IMÓVEL "]
["",null,null,null,null,null,null,null,null,null,null,null,null,null,null,null,null,null,null,null,null,null,null,null,null,null,null,null,null,null,null,null,null,null,null,null,null,null,null,null,"",null,null,null,null,null,null,null,null,null,null,null,null,null,null,null,"IMÓVEL "]
["",null,null,null,null,null,null,null,null,null,null,null,null,null,null,null,null,null,null,null,null,null,null,null,null,null,null,null,null,null,null,null,null,null,null,null,null,null,null,null,"",null,null,null,null,null,null,null,null,null,null,null,null,null,null,null,"IMÓVEL "]
["",null,null,null,null,null,null,null,null,null,null,null,null,null,null,null,null,null,null,null,null,null,null,null,null,null,null,null,null,null,null,null,null,null,null,null,null,null,null,null,"",null,null,null,null,null,null,null,null,null,null,null,null,null,null,null,"IMÓVEL "]
["",null,null,null,null,null,null,null,null,null,null,null,null,null,null,null,null,null,null,null,null,null,null,null,null,null,null,null,null,null,null,null,null,null,null,null,null,null,null,null,"",null,null,null,null,null,null,null,null,null,null,null,null,null,null,null,"IMÓVEL "]
["",null,null,null,null,null,null,null,null,null,null,null,null,null,null,null,null,null,null,null,null,null,null,null,null,null,null,null,null,null,null,null,null,null,null,null,null,null,null,null,"",null,null,null,null,null,null,null,null,null,null,null,null,null,null,null,"IMÓVEL "]
["",null,null,null,null,null,null,null,null,null,null,null,null,null,null,null,null,null,null,null,null,null,null,null,null,null,null,null,null,null,null,null,null,null,null,null,null,null,null,null,"",null,null,null,null,null,null,null,null,null,null,null,null,null,null,null,"IMÓVEL "]
["",null,null,null,null,null,null,null,null,null,null,null,null,null,null,null,null,null,null,null,null,null,null,null,null,null,null,null,null,null,null,null,null,null,null,null,null,null,null,null,"",null,null,null,null,null,null,null,null,null,null,null,null,null,null,null,"IMÓVEL "]
["",null,null,null,null,null,null,null,null,null,null,null,null,null,null,null,null,null,null,null,null,null,null,null,null,null,null,null,null,null,null,null,null,null,null,null,null,null,null,null,"",null,null,null,null,null,null,null,null,null,null,null,null,null,null,null,"IMÓVEL "]
["",null,null,null,null,null,null,null,null,null,null,null,null,null,null,null,null,null,null,null,null,null,null,null,null,null,null,null,null,null,null,null,null,null,null,null,null,null,null,null,"",null,null,null,null,null,null,null,null,null,null,null,null,null,null,null,"IMÓVEL "]
["",null,null,null,null,null,null,null,null,null,null,null,null,null,null,null,null,null,null,null,null,null,null,null,null,null,null,null,null,null,null,null,null,null,null,null,null,null,null,null,"",null,null,null,null,null,null,null,null,null,null,null,null,null,null,null,"IMÓVEL "]
["",null,null,null,null,null,null,null,null,null,null,null,null,null,null,null,null,null,null,null,null,null,null,null,null,null,null,null,null,null,null,null,null,null,null,null,null,null,null,null,"",null,null,null,null,null,null,null,null,null,null,null,null,null,null,null,"IMÓVEL "]
["",null,null,null,null,null,null,null,null,null,null,null,null,null,null,null,null,null,null,null,null,null,null,null,null,null,null,null,null,null,null,null,null,null,null,null,null,null,null,null,"",null,null,null,null,null,null,null,null,null,null,null,null,null,null,null,"IMÓVEL "]
["",null,null,null,null,null,null,null,null,null,null,null,null,null,null,null,null,null,null,null,null,null,null,null,null,null,null,null,null,null,null,null,null,null,null,null,null,null,null,null,"",null,null,null,null,null,null,null,null,null,null,null,null,null,null,null,"IMÓVEL "]
["",null,null,null,null,null,null,null,null,null,null,null,null,null,null,null,null,null,null,null,null,null,null,null,null,null,null,null,null,null,null,null,null,null,null,null,null,null,null,null,"",null,null,null,null,null,null,null,null,null,null,null,null,null,null,null,"IMÓVEL "]
["",null,null,null,null,null,null,null,null,null,null,null,null,null,null,null,null,null,null,null,null,null,null,null,null,null,null,null,null,null,null,null,null,null,null,null,null,null,null,null,"",null,null,null,null,null,null,null,null,null,null,null,null,null,null,null,"IMÓVEL "]
["",null,null,null,null,null,null,null,null,null,null,null,null,null,null,null,null,null,null,null,null,null,null,null,null,null,null,null,null,null,null,null,null,null,null,null,null,null,null,null,"",null,null,null,null,null,null,null,null,null,null,null,null,null,null,null,{"$f":"_xlfn.CONCAT(\"IMÓVEL \",A96)","v":"IMÓVEL "}]
["",null,null,null,null,null,null,null,null,null,null,null,null,null,null,null,null,null,null,null,null,null,null,null,null,null,null,null,null,null,null,null,null,null,null,null,null,null,null,null,"",null,null,null,null,null,null,null,null,null,null,null,null,null,null,null,"IMÓVEL "]
["",null,null,null,null,null,null,null,null,null,null,null,null,null,null,null,null,null,null,null,null,null,null,null,null,null,null,null,null,null,null,null,null,null,null,null,null,null,null,null,"",null,null,null,null,null,null,null,null,null,null,null,null,null,null,null,"IMÓVEL "]
["",null,null,null,null,null,null,null,null,null,null,null,null,null,null,null,null,null,null,null,null,null,null,null,null,null,null,null,null,null,null,null,null,null,null,null,null,null,null,null,"",null,null,null,null,null,null,null,null,null,null,null,null,null,null,null,"IMÓVEL "]
["",null,null,null,null,null,null,null,null,null,null,null,null,null,null,null,null,null,null,null,null,null,null,null,null,null,null,null,null,null,null,null,null,null,null,null,null,null,null,null,"",null,null,null,null,null,null,null,null,null,null,null,null,null,null,null,"IMÓVEL "]
["",null,null,null,null,null,null,null,null,null,null,null,null,null,null,null,null,null,null,null,null,null,null,null,null,null,null,null,null,null,null,null,null,null,null,null,null,null,null,null,"",null,null,null,null,null,null,null,null,null,null,null,null,null,null,null,"IMÓVEL "]
["",null,null,null,null,null,null,null,null,null,null,null,null,null,null,null,null,null,null,null,null,null,null,null,null,null,null,null,null,null,null,null,null,null,null,null,null,null,null,null,"",null,null,null,null,null,null,null,null,null,null,null,null,null,null,null,"IMÓVEL "]
["",null,null,null,null,null,null,null,null,null,null,null,null,null,null,null,null,null,null,null,null,null,null,null,null,null,null,null,null,null,null,null,null,null,null,null,null,null,null,null,"",null,null,null,null,null,null,null,null,null,null,null,null,null,null,null,"IMÓVEL "]
["",null,null,null,null,null,null,null,null,null,null,null,null,null,null,null,null,null,null,null,null,null,null,null,null,null,null,null,null,null,null,null,null,null,null,null,null,null,null,null,"",null,null,null,null,null,null,null,null,null,null,null,null,null,null,null,"IMÓVEL "]
["",null,null,null,null,null,null,null,null,null,null,null,null,null,null,null,null,null,null,null,null,null,null,null,null,null,null,null,null,null,null,null,null,null,null,null,null,null,null,null,"",null,null,null,null,null,null,null,null,null,null,null,null,null,null,null,"IMÓVEL "]
["",null,null,null,null,null,null,null,null,null,null,null,null,null,null,null,null,null,null,null,null,null,null,null,null,null,null,null,null,null,null,null,null,null,null,null,null,null,null,null,"",null,null,null,null,null,null,null,null,null,null,null,null,null,null,null,"IMÓVEL "]
["",null,null,null,null,null,null,null,null,null,null,null,null,null,null,null,null,null,null,null,null,null,null,null,null,null,null,null,null,null,null,null,null,null,null,null,null,null,null,null,"",null,null,null,null,null,null,null,null,null,null,null,null,null,null,null,"IMÓVEL "]
["",null,null,null,null,null,null,null,null,null,null,null,null,null,null,null,null,null,null,null,null,null,null,null,null,null,null,null,null,null,null,null,null,null,null,null,null,null,null,null,"",null,null,null,null,null,null,null,null,null,null,null,null,null,null,null,"IMÓVEL "]
["",null,null,null,null,null,null,null,null,null,null,null,null,null,null,null,null,null,null,null,null,null,null,null,null,null,null,null,null,null,null,null,null,null,null,null,null,null,null,null,"",null,null,null,null,null,null,null,null,null,null,null,null,null,null,null,"IMÓVEL "]
["TOTAL",null,null,null,null,null,null,null,null,null,null,null,null,null,null,null,null,null,null,null,null,null,null,null,null,null,null,null,null,null,null,null,null,null,null,null,null,null,null,null,{"$f":"IF(SUM(AO10:AS109)=0,\"-\",SUM(AO10:AS109))","v":"-"}]
["BENFEITORIAS"]
["IMÓVEL REF",null,null,null,null,"DESCRIÇÃO",null,null,null,null,null,null,null,null,null,null,null,null,null,null,null,null,null,null,null,null,null,null,null,"QTDE",null,null,null,"VALOR UNITÁRIO (R$)",null,null,null,null,null,"VALOR TOTAL\n(R$)"]
[null,null,null,null,null,null,null,null,null,null,null,null,null,null,null,null,null,null,null,null,null,null,null,null,null,null,null,null,null,null,null,null,null,null,null,null,null,null,null,{"$f":"IF(OR(AD113=\"\",AH113=\"\"),\"\",AH113*AD113)","v":""},null,null,null,null,null,null,{"$f":"SUM(AV113:AV162)","v":1},1]
[null,null,null,null,null,null,null,null,null,null,null,null,null,null,null,null,null,null,null,null,null,null,null,null,null,null,null,null,null,null,null,null,null,null,null,null,null,null,null,{"$f":"IF(OR(AD114=\"\",AH114=\"\"),\"\",AH114*AD114)","v":""}]
[null,null,null,null,null,null,null,null,null,null,null,null,null,null,null,null,null,null,null,null,null,null,null,null,null,null,null,null,null,null,null,null,null,null,null,null,null,null,null,""]
[null,null,null,null,null,null,null,null,null,null,null,null,null,null,null,null,null,null,null,null,null,null,null,null,null,null,null,null,null,null,null,null,null,null,null,null,null,null,null,{"$f":"IF(OR(AD116=\"\",AH116=\"\"),\"\",AH116*AD116)","v":""}]
[null,null,null,null,null,null,null,null,null,null,null,null,null,null,null,null,null,null,null,null,null,null,null,null,null,null,null,null,null,null,null,null,null,null,null,null,null,null,null,""]
[null,null,null,null,null,null,null,null,null,null,null,null,null,null,null,null,null,null,null,null,null,null,null,null,null,null,null,null,null,null,null,null,null,null,null,null,null,null,null,""]
[null,null,null,null,null,null,null,null,null,null,null,null,null,null,null,null,null,null,null,null,null,null,null,null,null,null,null,null,null,null,null,null,null,null,null,null,null,null,null,""]
[null,null,null,null,null,null,null,null,null,null,null,null,null,null,null,null,null,null,null,null,null,null,null,null,null,null,null,null,null,null,null,null,null,null,null,null,null,null,null,""]
[null,null,null,null,null,null,null,null,null,null,null,null,null,null,null,null,null,null,null,null,null,null,null,null,null,null,null,null,null,null,null,null,null,null,null,null,null,null,null,""]
[null,null,null,null,null,null,null,null,null,null,null,null,null,null,null,null,null,null,null,null,null,null,null,null,null,null,null,null,null,null,null,null,null,null,null,null,null,null,null,""]
[null,null,null,null,null,null,null,null,null,null,null,null,null,null,null,null,null,null,null,null,null,null,null,null,null,null,null,null,null,null,null,null,null,null,null,null,null,null,null,""]
[null,null,null,null,null,null,null,null,null,null,null,null,null,null,null,null,null,null,null,null,null,null,null,null,null,null,null,null,null,null,null,null,null,null,null,null,null,null,null,""]
[null,null,null,null,null,null,null,null,null,null,null,null,null,null,null,null,null,null,null,null,null,null,null,null,null,null,null,null,null,null,null,null,null,null,null,null,null,null,null,""]
[null,null,null,null,null,null,null,null,null,null,null,null,null,null,null,null,null,null,null,null,null,null,null,null,null,null,null,null,null,null,null,null,null,null,null,null,null,null,null,""]
[null,null,null,null,null,null,null,null,null,null,null,null,null,null,null,null,null,null,null,null,null,null,null,null,null,null,null,null,null,null,null,null,null,null,null,null,null,null,null,""]
[null,null,null,null,null,null,null,null,null,null,null,null,null,null,null,null,null,null,null,null,null,null,null,null,null,null,null,null,null,null,null,null,null,null,null,null,null,null,null,""]
[null,null,null,null,null,null,null,null,null,null,null,null,null,null,null,null,null,null,null,null,null,null,null,null,null,null,null,null,null,null,null,null,null,null,null,null,null,null,null,""]
[null,null,null,null,null,null,null,null,null,null,null,null,null,null,null,null,null,null,null,null,null,null,null,null,null,null,null,null,null,null,null,null,null,null,null,null,null,null,null,""]
[null,null,null,null,null,null,null,null,null,null,null,null,null,null,null,null,null,null,null,null,null,null,null,null,null,null,null,null,null,null,null,null,null,null,null,null,null,null,null,""]
[null,null,null,null,null,null,null,null,null,null,null,null,null,null,null,null,null,null,null,null,null,null,null,null,null,null,null,null,null,null,null,null,null,null,null,null,null,null,null,""]
[null,null,null,null,null,null,null,null,null,null,null,null,null,null,null,null,null,null,null,null,null,null,null,null,null,null,null,null,null,null,null,null,null,null,null,null,null,null,null,""]
[null,null,null,null,null,null,null,null,null,null,null,null,null,null,null,null,null,null,null,null,null,null,null,null,null,null,null,null,null,null,null,null,null,null,null,null,null,null,null,""]
[null,null,null,null,null,null,null,null,null,null,null,null,null,null,null,null,null,null,null,null,null,null,null,null,null,null,null,null,null,null,null,null,null,null,null,null,null,null,null,""]
[null,null,null,null,null,null,null,null,null,null,null,null,null,null,null,null,null,null,null,null,null,null,null,null,null,null,null,null,null,null,null,null,null,null,null,null,null,null,null,""]
[null,null,null,null,null,null,null,null,null,null,null,null,null,null,null,null,null,null,null,null,null,null,null,null,null,null,null,null,null,null,null,null,null,null,null,null,null,null,null,""]
[null,null,null,null,null,null,null,null,null,null,null,null,null,null,null,null,null,null,null,null,null,null,null,null,null,null,null,null,null,null,null,null,null,null,null,null,null,null,null,""]
[null,null,null,null,null,null,null,null,null,null,null,null,null,null,null,null,null,null,null,null,null,null,null,null,null,null,null,null,null,null,null,null,null,null,null,null,null,null,null,""]
[null,null,null,null,null,null,null,null,null,null,null,null,null,null,null,null,null,null,null,null,null,null,null,null,null,null,null,null,null,null,null,null,null,null,null,null,null,null,null,{"$f":"IF(OR(AD140=\"\",AH140=\"\"),\"\",AH140*AD140)","v":""}]
[null,null,null,null,null,null,null,null,null,null,null,null,null,null,null,null,null,null,null,null,null,null,null,null,null,null,null,null,null,null,null,null,null,null,null,null,null,null,null,""]
[null,null,null,null,null,null,null,null,null,null,null,null,null,null,null,null,null,null,null,null,null,null,null,null,null,null,null,null,null,null,null,null,null,null,null,null,null,null,null,""]
[null,null,null,null,null,null,null,null,null,null,null,null,null,null,null,null,null,null,null,null,null,null,null,null,null,null,null,null,null,null,null,null,null,null,null,null,null,null,null,""]
[null,null,null,null,null,null,null,null,null,null,null,null,null,null,null,null,null,null,null,null,null,null,null,null,null,null,null,null,null,null,null,null,null,null,null,null,null,null,null,""]
[null,null,null,null,null,null,null,null,null,null,null,null,null,null,null,null,null,null,null,null,null,null,null,null,null,null,null,null,null,null,null,null,null,null,null,null,null,null,null,""]
[null,null,null,null,null,null,null,null,null,null,null,null,null,null,null,null,null,null,null,null,null,null,null,null,null,null,null,null,null,null,null,null,null,null,null,null,null,null,null,""]
[null,null,null,null,null,null,null,null,null,null,null,null,null,null,null,null,null,null,null,null,null,null,null,null,null,null,null,null,null,null,null,null,null,null,null,null,null,null,null,""]
[null,null,null,null,null,null,null,null,null,null,null,null,null,null,null,null,null,null,null,null,null,null,null,null,null,null,null,null,null,null,null,null,null,null,null,null,null,null,null,""]
[null,null,null,null,null,null,null,null,null,null,null,null,null,null,null,null,null,null,null,null,null,null,null,null,null,null,null,null,null,null,null,null,null,null,null,null,null,null,null,""]
[null,null,null,null,null,null,null,null,null,null,null,null,null,null,null,null,null,null,null,null,null,null,null,null,null,null,null,null,null,null,null,null,null,null,null,null,null,null,null,""]
[null,null,null,null,null,null,null,null,null,null,null,null,null,null,null,null,null,null,null,null,null,null,null,null,null,null,null,null,null,null,null,null,null,null,null,null,null,null,null,""]
[null,null,null,null,null,null,null,null,null,null,null,null,null,null,null,null,null,null,null,null,null,null,null,null,null,null,null,null,null,null,null,null,null,null,null,null,null,null,null,""]
[null,null,null,null,null,null,null,null,null,null,null,null,null,null,null,null,null,null,null,null,null,null,null,null,null,null,null,null,null,null,null,null,null,null,null,null,null,null,null,""]
[null,null,null,null,null,null,null,null,null,null,null,null,null,null,null,null,null,null,null,null,null,null,null,null,null,null,null,null,null,null,null,null,null,null,null,null,null,null,null,""]
[null,null,null,null,null,null,null,null,null,null,null,null,null,null,null,null,null,null,null,null,null,null,null,null,null,null,null,null,null,null,null,null,null,null,null,null,null,null,null,""]
[null,null,null,null,null,null,null,null,null,null,null,null,null,null,null,null,null,null,null,null,null,null,null,null,null,null,null,null,null,null,null,null,null,null,null,null,null,null,null,""]
[null,null,null,null,null,null,null,null,null,null,null,null,null,null,null,null,null,null,null,null,null,null,null,null,null,null,null,null,null,null,null,null,null,null,null,null,null,null,null,""]
[null,null,null,null,null,null,null,null,null,null,null,null,null,null,null,null,null,null,null,null,null,null,null,null,null,null,null,null,null,null,null,null,null,null,null,null,null,null,null,""]
[null,null,null,null,null,null,null,null,null,null,null,null,null,null,null,null,null,null,null,null,null,null,null,null,null,null,null,null,null,null,null,null,null,null,null,null,null,null,null,""]
[null,null,null,null,null,null,null,null,null,null,null,null,null,null,null,null,null,null,null,null,null,null,null,null,null,null,null,null,null,null,null,null,null,null,null,null,null,null,null,""]
[null,null,null,null,null,null,null,null,null,null,null,null,null,null,null,null,null,null,null,null,null,null,null,null,null,null,null,null,null,null,null,null,null,null,null,null,null,null,null,""]
[null,null,null,null,null,null,null,null,null,null,null,null,null,null,null,null,null,null,null,null,null,null,null,null,null,null,null,null,null,null,null,null,null,null,null,null,null,null,null,""]
["TOTAL",null,null,null,null,null,null,null,null,null,null,null,null,null,null,null,null,null,null,null,null,null,null,null,null,null,null,null,null,null,null,null,null,null,null,null,null,null,null,{"$f":"IF(SUM(AN113:AS162)=0,\"-\",SUM(AN113:AS162))","v":"-"}]
[]
["II - BENS MÓVEIS"]
[" VEÍCULOS, MÁQUINAS E EQUIPAMENTOS"]
["TIPO",null,null,null,null,null,"DESCRIÇÃO",null,null,null,null,null,null,null,null,null,null,null,null,null,null,null,null,null,null,null,null,null,null,null,"QTD",null,null,"VALOR UNITÁRIO (R$)",null,null,null,null,null,"VALOR TOTAL\n(R$)"]
[null,null,null,null,null,null,null,null,null,null,null,null,null,null,null,null,null,null,null,null,null,null,null,null,null,null,null,null,null,null,null,null,null,null,null,null,null,null,null,{"$f":"IF(AH168=\"\",\"\",AE168*AH168)","v":""},null,null,null,null,null,null,{"$f":"SUM(AV168:AV367)","v":1},1]
[null,null,null,null,null,null,null,null,null,null,null,null,null,null,null,null,null,null,null,null,null,null,null,null,null,null,null,null,null,null,null,null,null,null,null,null,null,null,null,{"$f":"IF(AH169=\"\",\"\",AE169*AH169)","v":""}]
[null,null,null,null,null,null,null,null,null,null,null,null,null,null,null,null,null,null,null,null,null,null,null,null,null,null,null,null,null,null,null,null,null,null,null,null,null,null,null,""]
[null,null,null,null,null,null,null,null,null,null,null,null,null,null,null,null,null,null,null,null,null,null,null,null,null,null,null,null,null,null,null,null,null,null,null,null,null,null,null,{"$f":"IF(AH171=\"\",\"\",AE171*AH171)","v":""}]
[null,null,null,null,null,null,null,null,null,null,null,null,null,null,null,null,null,null,null,null,null,null,null,null,null,null,null,null,null,null,null,null,null,null,null,null,null,null,null,""]
[null,null,null,null,null,null,null,null,null,null,null,null,null,null,null,null,null,null,null,null,null,null,null,null,null,null,null,null,null,null,null,null,null,null,null,null,null,null,null,""]
[null,null,null,null,null,null,null,null,null,null,null,null,null,null,null,null,null,null,null,null,null,null,null,null,null,null,null,null,null,null,null,null,null,null,null,null,null,null,null,""]
[null,null,null,null,null,null,null,null,null,null,null,null,null,null,null,null,null,null,null,null,null,null,null,null,null,null,null,null,null,null,null,null,null,null,null,null,null,null,null,""]
[null,null,null,null,null,null,null,null,null,null,null,null,null,null,null,null,null,null,null,null,null,null,null,null,null,null,null,null,null,null,null,null,null,null,null,null,null,null,null,""]
[null,null,null,null,null,null,null,null,null,null,null,null,null,null,null,null,null,null,null,null,null,null,null,null,null,null,null,null,null,null,null,null,null,null,null,null,null,null,null,""]
[null,null,null,null,null,null,null,null,null,null,null,null,null,null,null,null,null,null,null,null,null,null,null,null,null,null,null,null,null,null,null,null,null,null,null,null,null,null,null,""]
[null,null,null,null,null,null,null,null,null,null,null,null,null,null,null,null,null,null,null,null,null,null,null,null,null,null,null,null,null,null,null,null,null,null,null,null,null,null,null,""]
[null,null,null,null,null,null,null,null,null,null,null,null,null,null,null,null,null,null,null,null,null,null,null,null,null,null,null,null,null,null,null,null,null,null,null,null,null,null,null,""]
[null,null,null,null,null,null,null,null,null,null,null,null,null,null,null,null,null,null,null,null,null,null,null,null,null,null,null,null,null,null,null,null,null,null,null,null,null,null,null,""]
[null,null,null,null,null,null,null,null,null,null,null,null,null,null,null,null,null,null,null,null,null,null,null,null,null,null,null,null,null,null,null,null,null,null,null,null,null,null,null,""]
[null,null,null,null,null,null,null,null,null,null,null,null,null,null,null,null,null,null,null,null,null,null,null,null,null,null,null,null,null,null,null,null,null,null,null,null,null,null,null,""]
[null,null,null,null,null,null,null,null,null,null,null,null,null,null,null,null,null,null,null,null,null,null,null,null,null,null,null,null,null,null,null,null,null,null,null,null,null,null,null,""]
[null,null,null,null,null,null,null,null,null,null,null,null,null,null,null,null,null,null,null,null,null,null,null,null,null,null,null,null,null,null,null,null,null,null,null,null,null,null,null,""]
[null,null,null,null,null,null,null,null,null,null,null,null,null,null,null,null,null,null,null,null,null,null,null,null,null,null,null,null,null,null,null,null,null,null,null,null,null,null,null,""]
[null,null,null,null,null,null,null,null,null,null,null,null,null,null,null,null,null,null,null,null,null,null,null,null,null,null,null,null,null,null,null,null,null,null,null,null,null,null,null,""]
[null,null,null,null,null,null,null,null,null,null,null,null,null,null,null,null,null,null,null,null,null,null,null,null,null,null,null,null,null,null,null,null,null,null,null,null,null,null,null,""]
[null,null,null,null,null,null,null,null,null,null,null,null,null,null,null,null,null,null,null,null,null,null,null,null,null,null,null,null,null,null,null,null,null,null,null,null,null,null,null,""]
[null,null,null,null,null,null,null,null,null,null,null,null,null,null,null,null,null,null,null,null,null,null,null,null,null,null,null,null,null,null,null,null,null,null,null,null,null,null,null,""]
[null,null,null,null,null,null,null,null,null,null,null,null,null,null,null,null,null,null,null,null,null,null,null,null,null,null,null,null,null,null,null,null,null,null,null,null,null,null,null,""]
[null,null,null,null,null,null,null,null,null,null,null,null,null,null,null,null,null,null,null,null,null,null,null,null,null,null,null,null,null,null,null,null,null,null,null,null,null,null,null,""]
[null,null,null,null,null,null,null,null,null,null,null,null,null,null,null,null,null,null,null,null,null,null,null,null,null,null,null,null,null,null,null,null,null,null,null,null,null,null,null,""]
[null,null,null,null,null,null,null,null,null,null,null,null,null,null,null,null,null,null,null,null,null,null,null,null,null,null,null,null,null,null,null,null,null,null,null,null,null,null,null,""]
[null,null,null,null,null,null,null,null,null,null,null,null,null,null,null,null,null,null,null,null,null,null,null,null,null,null,null,null,null,null,null,null,null,null,null,null,null,null,null,""]
[null,null,null,null,null,null,null,null,null,null,null,null,null,null,null,null,null,null,null,null,null,null,null,null,null,null,null,null,null,null,null,null,null,null,null,null,null,null,null,""]
[null,null,null,null,null,null,null,null,null,null,null,null,null,null,null,null,null,null,null,null,null,null,null,null,null,null,null,null,null,null,null,null,null,null,null,null,null,null,null,""]
[null,null,null,null,null,null,null,null,null,null,null,null,null,null,null,null,null,null,null,null,null,null,null,null,null,null,null,null,null,null,null,null,null,null,null,null,null,null,null,""]
[null,null,null,null,null,null,null,null,null,null,null,null,null,null,null,null,null,null,null,null,null,null,null,null,null,null,null,null,null,null,null,null,null,null,null,null,null,null,null,""]
[null,null,null,null,null,null,null,null,null,null,null,null,null,null,null,null,null,null,null,null,null,null,null,null,null,null,null,null,null,null,null,null,null,null,null,null,null,null,null,""]
[null,null,null,null,null,null,null,null,null,null,null,null,null,null,null,null,null,null,null,null,null,null,null,null,null,null,null,null,null,null,null,null,null,null,null,null,null,null,null,""]
[null,null,null,null,null,null,null,null,null,null,null,null,null,null,null,null,null,null,null,null,null,null,null,null,null,null,null,null,null,null,null,null,null,null,null,null,null,null,null,""]
[null,null,null,null,null,null,null,null,null,null,null,null,null,null,null,null,null,null,null,null,null,null,null,null,null,null,null,null,null,null,null,null,null,null,null,null,null,null,null,""]
[null,null,null,null,null,null,null,null,null,null,null,null,null,null,null,null,null,null,null,null,null,null,null,null,null,null,null,null,null,null,null,null,null,null,null,null,null,null,null,""]
[null,null,null,null,null,null,null,null,null,null,null,null,null,null,null,null,null,null,null,null,null,null,null,null,null,null,null,null,null,null,null,null,null,null,null,null,null,null,null,""]
[null,null,null,null,null,null,null,null,null,null,null,null,null,null,null,null,null,null,null,null,null,null,null,null,null,null,null,null,null,null,null,null,null,null,null,null,null,null,null,""]
[null,null,null,null,null,null,null,null,null,null,null,null,null,null,null,null,null,null,null,null,null,null,null,null,null,null,null,null,null,null,null,null,null,null,null,null,null,null,null,""]
[null,null,null,null,null,null,null,null,null,null,null,null,null,null,null,null,null,null,null,null,null,null,null,null,null,null,null,null,null,null,null,null,null,null,null,null,null,null,null,""]
[null,null,null,null,null,null,null,null,null,null,null,null,null,null,null,null,null,null,null,null,null,null,null,null,null,null,null,null,null,null,null,null,null,null,null,null,null,null,null,""]
[null,null,null,null,null,null,null,null,null,null,null,null,null,null,null,null,null,null,null,null,null,null,null,null,null,null,null,null,null,null,null,null,null,null,null,null,null,null,null,""]
[null,null,null,null,null,null,null,null,null,null,null,null,null,null,null,null,null,null,null,null,null,null,null,null,null,null,null,null,null,null,null,null,null,null,null,null,null,null,null,""]
[null,null,null,null,null,null,null,null,null,null,null,null,null,null,null,null,null,null,null,null,null,null,null,null,null,null,null,null,null,null,null,null,null,null,null,null,null,null,null,""]
[null,null,null,null,null,null,null,null,null,null,null,null,null,null,null,null,null,null,null,null,null,null,null,null,null,null,null,null,null,null,null,null,null,null,null,null,null,null,null,""]
[null,null,null,null,null,null,null,null,null,null,null,null,null,null,null,null,null,null,null,null,null,null,null,null,null,null,null,null,null,null,null,null,null,null,null,null,null,null,null,""]
[null,null,null,null,null,null,null,null,null,null,null,null,null,null,null,null,null,null,null,null,null,null,null,null,null,null,null,null,null,null,null,null,null,null,null,null,null,null,null,""]
[null,null,null,null,null,null,null,null,null,null,null,null,null,null,null,null,null,null,null,null,null,null,null,null,null,null,null,null,null,null,null,null,null,null,null,null,null,null,null,""]
[null,null,null,null,null,null,null,null,null,null,null,null,null,null,null,null,null,null,null,null,null,null,null,null,null,null,null,null,null,null,null,null,null,null,null,null,null,null,null,""]
[null,null,null,null,null,null,null,null,null,null,null,null,null,null,null,null,null,null,null,null,null,null,null,null,null,null,null,null,null,null,null,null,null,null,null,null,null,null,null,""]
[null,null,null,null,null,null,null,null,null,null,null,null,null,null,null,null,null,null,null,null,null,null,null,null,null,null,null,null,null,null,null,null,null,null,null,null,null,null,null,""]
[null,null,null,null,null,null,null,null,null,null,null,null,null,null,null,null,null,null,null,null,null,null,null,null,null,null,null,null,null,null,null,null,null,null,null,null,null,null,null,""]
[null,null,null,null,null,null,null,null,null,null,null,null,null,null,null,null,null,null,null,null,null,null,null,null,null,null,null,null,null,null,null,null,null,null,null,null,null,null,null,""]
[null,null,null,null,null,null,null,null,null,null,null,null,null,null,null,null,null,null,null,null,null,null,null,null,null,null,null,null,null,null,null,null,null,null,null,null,null,null,null,""]
[null,null,null,null,null,null,null,null,null,null,null,null,null,null,null,null,null,null,null,null,null,null,null,null,null,null,null,null,null,null,null,null,null,null,null,null,null,null,null,""]
[null,null,null,null,null,null,null,null,null,null,null,null,null,null,null,null,null,null,null,null,null,null,null,null,null,null,null,null,null,null,null,null,null,null,null,null,null,null,null,""]
[null,null,null,null,null,null,null,null,null,null,null,null,null,null,null,null,null,null,null,null,null,null,null,null,null,null,null,null,null,null,null,null,null,null,null,null,null,null,null,""]
[null,null,null,null,null,null,null,null,null,null,null,null,null,null,null,null,null,null,null,null,null,null,null,null,null,null,null,null,null,null,null,null,null,null,null,null,null,null,null,""]
[null,null,null,null,null,null,null,null,null,null,null,null,null,null,null,null,null,null,null,null,null,null,null,null,null,null,null,null,null,null,null,null,null,null,null,null,null,null,null,""]
[null,null,null,null,null,null,null,null,null,null,null,null,null,null,null,null,null,null,null,null,null,null,null,null,null,null,null,null,null,null,null,null,null,null,null,null,null,null,null,""]
[null,null,null,null,null,null,null,null,null,null,null,null,null,null,null,null,null,null,null,null,null,null,null,null,null,null,null,null,null,null,null,null,null,null,null,null,null,null,null,""]
[null,null,null,null,null,null,null,null,null,null,null,null,null,null,null,null,null,null,null,null,null,null,null,null,null,null,null,null,null,null,null,null,null,null,null,null,null,null,null,""]
[null,null,null,null,null,null,null,null,null,null,null,null,null,null,null,null,null,null,null,null,null,null,null,null,null,null,null,null,null,null,null,null,null,null,null,null,null,null,null,""]
[null,null,null,null,null,null,null,null,null,null,null,null,null,null,null,null,null,null,null,null,null,null,null,null,null,null,null,null,null,null,null,null,null,null,null,null,null,null,null,""]
[null,null,null,null,null,null,null,null,null,null,null,null,null,null,null,null,null,null,null,null,null,null,null,null,null,null,null,null,null,null,null,null,null,null,null,null,null,null,null,""]
[null,null,null,null,null,null,null,null,null,null,null,null,null,null,null,null,null,null,null,null,null,null,null,null,null,null,null,null,null,null,null,null,null,null,null,null,null,null,null,""]
[null,null,null,null,null,null,null,null,null,null,null,null,null,null,null,null,null,null,null,null,null,null,null,null,null,null,null,null,null,null,null,null,null,null,null,null,null,null,null,{"$f":"IF(AH235=\"\",\"\",AE235*AH235)","v":""}]
[null,null,null,null,null,null,null,null,null,null,null,null,null,null,null,null,null,null,null,null,null,null,null,null,null,null,null,null,null,null,null,null,null,null,null,null,null,null,null,""]
[null,null,null,null,null,null,null,null,null,null,null,null,null,null,null,null,null,null,null,null,null,null,null,null,null,null,null,null,null,null,null,null,null,null,null,null,null,null,null,""]
[null,null,null,null,null,null,null,null,null,null,null,null,null,null,null,null,null,null,null,null,null,null,null,null,null,null,null,null,null,null,null,null,null,null,null,null,null,null,null,""]
[null,null,null,null,null,null,null,null,null,null,null,null,null,null,null,null,null,null,null,null,null,null,null,null,null,null,null,null,null,null,null,null,null,null,null,null,null,null,null,""]
[null,null,null,null,null,null,null,null,null,null,null,null,null,null,null,null,null,null,null,null,null,null,null,null,null,null,null,null,null,null,null,null,null,null,null,null,null,null,null,""]
[null,null,null,null,null,null,null,null,null,null,null,null,null,null,null,null,null,null,null,null,null,null,null,null,null,null,null,null,null,null,null,null,null,null,null,null,null,null,null,""]
[null,null,null,null,null,null,null,null,null,null,null,null,null,null,null,null,null,null,null,null,null,null,null,null,null,null,null,null,null,null,null,null,null,null,null,null,null,null,null,""]
[null,null,null,null,null,null,null,null,null,null,null,null,null,null,null,null,null,null,null,null,null,null,null,null,null,null,null,null,null,null,null,null,null,null,null,null,null,null,null,""]
[null,null,null,null,null,null,null,null,null,null,null,null,null,null,null,null,null,null,null,null,null,null,null,null,null,null,null,null,null,null,null,null,null,null,null,null,null,null,null,""]
[null,null,null,null,null,null,null,null,null,null,null,null,null,null,null,null,null,null,null,null,null,null,null,null,null,null,null,null,null,null,null,null,null,null,null,null,null,null,null,""]
[null,null,null,null,null,null,null,null,null,null,null,null,null,null,null,null,null,null,null,null,null,null,null,null,null,null,null,null,null,null,null,null,null,null,null,null,null,null,null,""]
[null,null,null,null,null,null,null,null,null,null,null,null,null,null,null,null,null,null,null,null,null,null,null,null,null,null,null,null,null,null,null,null,null,null,null,null,null,null,null,""]
[null,null,null,null,null,null,null,null,null,null,null,null,null,null,null,null,null,null,null,null,null,null,null,null,null,null,null,null,null,null,null,null,null,null,null,null,null,null,null,""]
[null,null,null,null,null,null,null,null,null,null,null,null,null,null,null,null,null,null,null,null,null,null,null,null,null,null,null,null,null,null,null,null,null,null,null,null,null,null,null,""]
[null,null,null,null,null,null,null,null,null,null,null,null,null,null,null,null,null,null,null,null,null,null,null,null,null,null,null,null,null,null,null,null,null,null,null,null,null,null,null,""]
[null,null,null,null,null,null,null,null,null,null,null,null,null,null,null,null,null,null,null,null,null,null,null,null,null,null,null,null,null,null,null,null,null,null,null,null,null,null,null,""]
[null,null,null,null,null,null,null,null,null,null,null,null,null,null,null,null,null,null,null,null,null,null,null,null,null,null,null,null,null,null,null,null,null,null,null,null,null,null,null,""]
[null,null,null,null,null,null,null,null,null,null,null,null,null,null,null,null,null,null,null,null,null,null,null,null,null,null,null,null,null,null,null,null,null,null,null,null,null,null,null,""]
[null,null,null,null,null,null,null,null,null,null,null,null,null,null,null,null,null,null,null,null,null,null,null,null,null,null,null,null,null,null,null,null,null,null,null,null,null,null,null,""]
[null,null,null,null,null,null,null,null,null,null,null,null,null,null,null,null,null,null,null,null,null,null,null,null,null,null,null,null,null,null,null,null,null,null,null,null,null,null,null,""]
[null,null,null,null,null,null,null,null,null,null,null,null,null,null,null,null,null,null,null,null,null,null,null,null,null,null,null,null,null,null,null,null,null,null,null,null,null,null,null,""]
[null,null,null,null,null,null,null,null,null,null,null,null,null,null,null,null,null,null,null,null,null,null,null,null,null,null,null,null,null,null,null,null,null,null,null,null,null,null,null,""]
[null,null,null,null,null,null,null,null,null,null,null,null,null,null,null,null,null,null,null,null,null,null,null,null,null,null,null,null,null,null,null,null,null,null,null,null,null,null,null,""]
[null,null,null,null,null,null,null,null,null,null,null,null,null,null,null,null,null,null,null,null,null,null,null,null,null,null,null,null,null,null,null,null,null,null,null,null,null,null,null,""]
[null,null,null,null,null,null,null,null,null,null,null,null,null,null,null,null,null,null,null,null,null,null,null,null,null,null,null,null,null,null,null,null,null,null,null,null,null,null,null,""]
[null,null,null,null,null,null,null,null,null,null,null,null,null,null,null,null,null,null,null,null,null,null,null,null,null,null,null,null,null,null,null,null,null,null,null,null,null,null,null,""]
[null,null,null,null,null,null,null,null,null,null,null,null,null,null,null,null,null,null,null,null,null,null,null,null,null,null,null,null,null,null,null,null,null,null,null,null,null,null,null,""]
[null,null,null,null,null,null,null,null,null,null,null,null,null,null,null,null,null,null,null,null,null,null,null,null,null,null,null,null,null,null,null,null,null,null,null,null,null,null,null,""]
[null,null,null,null,null,null,null,null,null,null,null,null,null,null,null,null,null,null,null,null,null,null,null,null,null,null,null,null,null,null,null,null,null,null,null,null,null,null,null,""]
[null,null,null,null,null,null,null,null,null,null,null,null,null,null,null,null,null,null,null,null,null,null,null,null,null,null,null,null,null,null,null,null,null,null,null,null,null,null,null,""]
[null,null,null,null,null,null,null,null,null,null,null,null,null,null,null,null,null,null,null,null,null,null,null,null,null,null,null,null,null,null,null,null,null,null,null,null,null,null,null,""]
[null,null,null,null,null,null,null,null,null,null,null,null,null,null,null,null,null,null,null,null,null,null,null,null,null,null,null,null,null,null,null,null,null,null,null,null,null,null,null,""]
[null,null,null,null,null,null,null,null,null,null,null,null,null,null,null,null,null,null,null,null,null,null,null,null,null,null,null,null,null,null,null,null,null,null,null,null,null,null,null,""]
[null,null,null,null,null,null,null,null,null,null,null,null,null,null,null,null,null,null,null,null,null,null,null,null,null,null,null,null,null,null,null,null,null,null,null,null,null,null,null,""]
[null,null,null,null,null,null,null,null,null,null,null,null,null,null,null,null,null,null,null,null,null,null,null,null,null,null,null,null,null,null,null,null,null,null,null,null,null,null,null,""]
[null,null,null,null,null,null,null,null,null,null,null,null,null,null,null,null,null,null,null,null,null,null,null,null,null,null,null,null,null,null,null,null,null,null,null,null,null,null,null,""]
[null,null,null,null,null,null,null,null,null,null,null,null,null,null,null,null,null,null,null,null,null,null,null,null,null,null,null,null,null,null,null,null,null,null,null,null,null,null,null,""]
[null,null,null,null,null,null,null,null,null,null,null,null,null,null,null,null,null,null,null,null,null,null,null,null,null,null,null,null,null,null,null,null,null,null,null,null,null,null,null,""]
[null,null,null,null,null,null,null,null,null,null,null,null,null,null,null,null,null,null,null,null,null,null,null,null,null,null,null,null,null,null,null,null,null,null,null,null,null,null,null,""]
[null,null,null,null,null,null,null,null,null,null,null,null,null,null,null,null,null,null,null,null,null,null,null,null,null,null,null,null,null,null,null,null,null,null,null,null,null,null,null,""]
[null,null,null,null,null,null,null,null,null,null,null,null,null,null,null,null,null,null,null,null,null,null,null,null,null,null,null,null,null,null,null,null,null,null,null,null,null,null,null,""]
[null,null,null,null,null,null,null,null,null,null,null,null,null,null,null,null,null,null,null,null,null,null,null,null,null,null,null,null,null,null,null,null,null,null,null,null,null,null,null,""]
[null,null,null,null,null,null,null,null,null,null,null,null,null,null,null,null,null,null,null,null,null,null,null,null,null,null,null,null,null,null,null,null,null,null,null,null,null,null,null,""]
[null,null,null,null,null,null,null,null,null,null,null,null,null,null,null,null,null,null,null,null,null,null,null,null,null,null,null,null,null,null,null,null,null,null,null,null,null,null,null,""]
[null,null,null,null,null,null,null,null,null,null,null,null,null,null,null,null,null,null,null,null,null,null,null,null,null,null,null,null,null,null,null,null,null,null,null,null,null,null,null,""]
[null,null,null,null,null,null,null,null,null,null,null,null,null,null,null,null,null,null,null,null,null,null,null,null,null,null,null,null,null,null,null,null,null,null,null,null,null,null,null,""]
[null,null,null,null,null,null,null,null,null,null,null,null,null,null,null,null,null,null,null,null,null,null,null,null,null,null,null,null,null,null,null,null,null,null,null,null,null,null,null,""]
[null,null,null,null,null,null,null,null,null,null,null,null,null,null,null,null,null,null,null,null,null,null,null,null,null,null,null,null,null,null,null,null,null,null,null,null,null,null,null,""]
[null,null,null,null,null,null,null,null,null,null,null,null,null,null,null,null,null,null,null,null,null,null,null,null,null,null,null,null,null,null,null,null,null,null,null,null,null,null,null,""]
[null,null,null,null,null,null,null,null,null,null,null,null,null,null,null,null,null,null,null,null,null,null,null,null,null,null,null,null,null,null,null,null,null,null,null,null,null,null,null,""]
[null,null,null,null,null,null,null,null,null,null,null,null,null,null,null,null,null,null,null,null,null,null,null,null,null,null,null,null,null,null,null,null,null,null,null,null,null,null,null,""]
[null,null,null,null,null,null,null,null,null,null,null,null,null,null,null,null,null,null,null,null,null,null,null,null,null,null,null,null,null,null,null,null,null,null,null,null,null,null,null,""]
[null,null,null,null,null,null,null,null,null,null,null,null,null,null,null,null,null,null,null,null,null,null,null,null,null,null,null,null,null,null,null,null,null,null,null,null,null,null,null,""]
[null,null,null,null,null,null,null,null,null,null,null,null,null,null,null,null,null,null,null,null,null,null,null,null,null,null,null,null,null,null,null,null,null,null,null,null,null,null,null,""]
[null,null,null,null,null,null,null,null,null,null,null,null,null,null,null,null,null,null,null,null,null,null,null,null,null,null,null,null,null,null,null,null,null,null,null,null,null,null,null,""]
[null,null,null,null,null,null,null,null,null,null,null,null,null,null,null,null,null,null,null,null,null,null,null,null,null,null,null,null,null,null,null,null,null,null,null,null,null,null,null,""]
[null,null,null,null,null,null,null,null,null,null,null,null,null,null,null,null,null,null,null,null,null,null,null,null,null,null,null,null,null,null,null,null,null,null,null,null,null,null,null,""]
[null,null,null,null,null,null,null,null,null,null,null,null,null,null,null,null,null,null,null,null,null,null,null,null,null,null,null,null,null,null,null,null,null,null,null,null,null,null,null,""]
[null,null,null,null,null,null,null,null,null,null,null,null,null,null,null,null,null,null,null,null,null,null,null,null,null,null,null,null,null,null,null,null,null,null,null,null,null,null,null,""]
[null,null,null,null,null,null,null,null,null,null,null,null,null,null,null,null,null,null,null,null,null,null,null,null,null,null,null,null,null,null,null,null,null,null,null,null,null,null,null,""]
[null,null,null,null,null,null,null,null,null,null,null,null,null,null,null,null,null,null,null,null,null,null,null,null,null,null,null,null,null,null,null,null,null,null,null,null,null,null,null,""]
[null,null,null,null,null,null,null,null,null,null,null,null,null,null,null,null,null,null,null,null,null,null,null,null,null,null,null,null,null,null,null,null,null,null,null,null,null,null,null,""]
[null,null,null,null,null,null,null,null,null,null,null,null,null,null,null,null,null,null,null,null,null,null,null,null,null,null,null,null,null,null,null,null,null,null,null,null,null,null,null,""]
[null,null,null,null,null,null,null,null,null,null,null,null,null,null,null,null,null,null,null,null,null,null,null,null,null,null,null,null,null,null,null,null,null,null,null,null,null,null,null,{"$f":"IF(AH299=\"\",\"\",AE299*AH299)","v":""}]
[null,null,null,null,null,null,null,null,null,null,null,null,null,null,null,null,null,null,null,null,null,null,null,null,null,null,null,null,null,null,null,null,null,null,null,null,null,null,null,""]
[null,null,null,null,null,null,null,null,null,null,null,null,null,null,null,null,null,null,null,null,null,null,null,null,null,null,null,null,null,null,null,null,null,null,null,null,null,null,null,""]
[null,null,null,null,null,null,null,null,null,null,null,null,null,null,null,null,null,null,null,null,null,null,null,null,null,null,null,null,null,null,null,null,null,null,null,null,null,null,null,""]
[null,null,null,null,null,null,null,null,null,null,null,null,null,null,null,null,null,null,null,null,null,null,null,null,null,null,null,null,null,null,null,null,null,null,null,null,null,null,null,""]
[null,null,null,null,null,null,null,null,null,null,null,null,null,null,null,null,null,null,null,null,null,null,null,null,null,null,null,null,null,null,null,null,null,null,null,null,null,null,null,""]
[null,null,null,null,null,null,null,null,null,null,null,null,null,null,null,null,null,null,null,null,null,null,null,null,null,null,null,null,null,null,null,null,null,null,null,null,null,null,null,""]
[null,null,null,null,null,null,null,null,null,null,null,null,null,null,null,null,null,null,null,null,null,null,null,null,null,null,null,null,null,null,null,null,null,null,null,null,null,null,null,""]
[null,null,null,null,null,null,null,null,null,null,null,null,null,null,null,null,null,null,null,null,null,null,null,null,null,null,null,null,null,null,null,null,null,null,null,null,null,null,null,""]
[null,null,null,null,null,null,null,null,null,null,null,null,null,null,null,null,null,null,null,null,null,null,null,null,null,null,null,null,null,null,null,null,null,null,null,null,null,null,null,""]
[null,null,null,null,null,null,null,null,null,null,null,null,null,null,null,null,null,null,null,null,null,null,null,null,null,null,null,null,null,null,null,null,null,null,null,null,null,null,null,""]
[null,null,null,null,null,null,null,null,null,null,null,null,null,null,null,null,null,null,null,null,null,null,null,null,null,null,null,null,null,null,null,null,null,null,null,null,null,null,null,""]
[null,null,null,null,null,null,null,null,null,null,null,null,null,null,null,null,null,null,null,null,null,null,null,null,null,null,null,null,null,null,null,null,null,null,null,null,null,null,null,""]
[null,null,null,null,null,null,null,null,null,null,null,null,null,null,null,null,null,null,null,null,null,null,null,null,null,null,null,null,null,null,null,null,null,null,null,null,null,null,null,""]
[null,null,null,null,null,null,null,null,null,null,null,null,null,null,null,null,null,null,null,null,null,null,null,null,null,null,null,null,null,null,null,null,null,null,null,null,null,null,null,""]
[null,null,null,null,null,null,null,null,null,null,null,null,null,null,null,null,null,null,null,null,null,null,null,null,null,null,null,null,null,null,null,null,null,null,null,null,null,null,null,""]
[null,null,null,null,null,null,null,null,null,null,null,null,null,null,null,null,null,null,null,null,null,null,null,null,null,null,null,null,null,null,null,null,null,null,null,null,null,null,null,""]
[null,null,null,null,null,null,null,null,null,null,null,null,null,null,null,null,null,null,null,null,null,null,null,null,null,null,null,null,null,null,null,null,null,null,null,null,null,null,null,""]
[null,null,null,null,null,null,null,null,null,null,null,null,null,null,null,null,null,null,null,null,null,null,null,null,null,null,null,null,null,null,null,null,null,null,null,null,null,null,null,""]
[null,null,null,null,null,null,null,null,null,null,null,null,null,null,null,null,null,null,null,null,null,null,null,null,null,null,null,null,null,null,null,null,null,null,null,null,null,null,null,""]
[null,null,null,null,null,null,null,null,null,null,null,null,null,null,null,null,null,null,null,null,null,null,null,null,null,null,null,null,null,null,null,null,null,null,null,null,null,null,null,""]
[null,null,null,null,null,null,null,null,null,null,null,null,null,null,null,null,null,null,null,null,null,null,null,null,null,null,null,null,null,null,null,null,null,null,null,null,null,null,null,""]
[null,null,null,null,null,null,null,null,null,null,null,null,null,null,null,null,null,null,null,null,null,null,null,null,null,null,null,null,null,null,null,null,null,null,null,null,null,null,null,""]
[null,null,null,null,null,null,null,null,null,null,null,null,null,null,null,null,null,null,null,null,null,null,null,null,null,null,null,null,null,null,null,null,null,null,null,null,null,null,null,""]
[null,null,null,null,null,null,null,null,null,null,null,null,null,null,null,null,null,null,null,null,null,null,null,null,null,null,null,null,null,null,null,null,null,null,null,null,null,null,null,""]
[null,null,null,null,null,null,null,null,null,null,null,null,null,null,null,null,null,null,null,null,null,null,null,null,null,null,null,null,null,null,null,null,null,null,null,null,null,null,null,""]
[null,null,null,null,null,null,null,null,null,null,null,null,null,null,null,null,null,null,null,null,null,null,null,null,null,null,null,null,null,null,null,null,null,null,null,null,null,null,null,""]
[null,null,null,null,null,null,null,null,null,null,null,null,null,null,null,null,null,null,null,null,null,null,null,null,null,null,null,null,null,null,null,null,null,null,null,null,null,null,null,""]
[null,null,null,null,null,null,null,null,null,null,null,null,null,null,null,null,null,null,null,null,null,null,null,null,null,null,null,null,null,null,null,null,null,null,null,null,null,null,null,""]
[null,null,null,null,null,null,null,null,null,null,null,null,null,null,null,null,null,null,null,null,null,null,null,null,null,null,null,null,null,null,null,null,null,null,null,null,null,null,null,""]
[null,null,null,null,null,null,null,null,null,null,null,null,null,null,null,null,null,null,null,null,null,null,null,null,null,null,null,null,null,null,null,null,null,null,null,null,null,null,null,""]
[null,null,null,null,null,null,null,null,null,null,null,null,null,null,null,null,null,null,null,null,null,null,null,null,null,null,null,null,null,null,null,null,null,null,null,null,null,null,null,""]
[null,null,null,null,null,null,null,null,null,null,null,null,null,null,null,null,null,null,null,null,null,null,null,null,null,null,null,null,null,null,null,null,null,null,null,null,null,null,null,""]
[null,null,null,null,null,null,null,null,null,null,null,null,null,null,null,null,null,null,null,null,null,null,null,null,null,null,null,null,null,null,null,null,null,null,null,null,null,null,null,""]
[null,null,null,null,null,null,null,null,null,null,null,null,null,null,null,null,null,null,null,null,null,null,null,null,null,null,null,null,null,null,null,null,null,null,null,null,null,null,null,""]
[null,null,null,null,null,null,null,null,null,null,null,null,null,null,null,null,null,null,null,null,null,null,null,null,null,null,null,null,null,null,null,null,null,null,null,null,null,null,null,""]
[null,null,null,null,null,null,null,null,null,null,null,null,null,null,null,null,null,null,null,null,null,null,null,null,null,null,null,null,null,null,null,null,null,null,null,null,null,null,null,""]
[null,null,null,null,null,null,null,null,null,null,null,null,null,null,null,null,null,null,null,null,null,null,null,null,null,null,null,null,null,null,null,null,null,null,null,null,null,null,null,""]
[null,null,null,null,null,null,null,null,null,null,null,null,null,null,null,null,null,null,null,null,null,null,null,null,null,null,null,null,null,null,null,null,null,null,null,null,null,null,null,""]
[null,null,null,null,null,null,null,null,null,null,null,null,null,null,null,null,null,null,null,null,null,null,null,null,null,null,null,null,null,null,null,null,null,null,null,null,null,null,null,""]
[null,null,null,null,null,null,null,null,null,null,null,null,null,null,null,null,null,null,null,null,null,null,null,null,null,null,null,null,null,null,null,null,null,null,null,null,null,null,null,""]
[null,null,null,null,null,null,null,null,null,null,null,null,null,null,null,null,null,null,null,null,null,null,null,null,null,null,null,null,null,null,null,null,null,null,null,null,null,null,null,""]
[null,null,null,null,null,null,null,null,null,null,null,null,null,null,null,null,null,null,null,null,null,null,null,null,null,null,null,null,null,null,null,null,null,null,null,null,null,null,null,""]
[null,null,null,null,null,null,null,null,null,null,null,null,null,null,null,null,null,null,null,null,null,null,null,null,null,null,null,null,null,null,null,null,null,null,null,null,null,null,null,""]
[null,null,null,null,null,null,null,null,null,null,null,null,null,null,null,null,null,null,null,null,null,null,null,null,null,null,null,null,null,null,null,null,null,null,null,null,null,null,null,""]
[null,null,null,null,null,null,null,null,null,null,null,null,null,null,null,null,null,null,null,null,null,null,null,null,null,null,null,null,null,null,null,null,null,null,null,null,null,null,null,""]
[null,null,null,null,null,null,null,null,null,null,null,null,null,null,null,null,null,null,null,null,null,null,null,null,null,null,null,null,null,null,null,null,null,null,null,null,null,null,null,""]
[null,null,null,null,null,null,null,null,null,null,null,null,null,null,null,null,null,null,null,null,null,null,null,null,null,null,null,null,null,null,null,null,null,null,null,null,null,null,null,""]
[null,null,null,null,null,null,null,null,null,null,null,null,null,null,null,null,null,null,null,null,null,null,null,null,null,null,null,null,null,null,null,null,null,null,null,null,null,null,null,""]
[null,null,null,null,null,null,null,null,null,null,null,null,null,null,null,null,null,null,null,null,null,null,null,null,null,null,null,null,null,null,null,null,null,null,null,null,null,null,null,""]
[null,null,null,null,null,null,null,null,null,null,null,null,null,null,null,null,null,null,null,null,null,null,null,null,null,null,null,null,null,null,null,null,null,null,null,null,null,null,null,""]
[null,null,null,null,null,null,null,null,null,null,null,null,null,null,null,null,null,null,null,null,null,null,null,null,null,null,null,null,null,null,null,null,null,null,null,null,null,null,null,""]
[null,null,null,null,null,null,null,null,null,null,null,null,null,null,null,null,null,null,null,null,null,null,null,null,null,null,null,null,null,null,null,null,null,null,null,null,null,null,null,""]
[null,null,null,null,null,null,null,null,null,null,null,null,null,null,null,null,null,null,null,null,null,null,null,null,null,null,null,null,null,null,null,null,null,null,null,null,null,null,null,""]
[null,null,null,null,null,null,null,null,null,null,null,null,null,null,null,null,null,null,null,null,null,null,null,null,null,null,null,null,null,null,null,null,null,null,null,null,null,null,null,""]
[null,null,null,null,null,null,null,null,null,null,null,null,null,null,null,null,null,null,null,null,null,null,null,null,null,null,null,null,null,null,null,null,null,null,null,null,null,null,null,""]
[null,null,null,null,null,null,null,null,null,null,null,null,null,null,null,null,null,null,null,null,null,null,null,null,null,null,null,null,null,null,null,null,null,null,null,null,null,null,null,""]
[null,null,null,null,null,null,null,null,null,null,null,null,null,null,null,null,null,null,null,null,null,null,null,null,null,null,null,null,null,null,null,null,null,null,null,null,null,null,null,""]
[null,null,null,null,null,null,null,null,null,null,null,null,null,null,null,null,null,null,null,null,null,null,null,null,null,null,null,null,null,null,null,null,null,null,null,null,null,null,null,""]
[null,null,null,null,null,null,null,null,null,null,null,null,null,null,null,null,null,null,null,null,null,null,null,null,null,null,null,null,null,null,null,null,null,null,null,null,null,null,null,""]
[null,null,null,null,null,null,null,null,null,null,null,null,null,null,null,null,null,null,null,null,null,null,null,null,null,null,null,null,null,null,null,null,null,null,null,null,null,null,null,""]
[null,null,null,null,null,null,null,null,null,null,null,null,null,null,null,null,null,null,null,null,null,null,null,null,null,null,null,null,null,null,null,null,null,null,null,null,null,null,null,""]
[null,null,null,null,null,null,null,null,null,null,null,null,null,null,null,null,null,null,null,null,null,null,null,null,null,null,null,null,null,null,null,null,null,null,null,null,null,null,null,""]
[null,null,null,null,null,null,null,null,null,null,null,null,null,null,null,null,null,null,null,null,null,null,null,null,null,null,null,null,null,null,null,null,null,null,null,null,null,null,null,""]
[null,null,null,null,null,null,null,null,null,null,null,null,null,null,null,null,null,null,null,null,null,null,null,null,null,null,null,null,null,null,null,null,null,null,null,null,null,null,null,{"$f":"IF(AH363=\"\",\"\",AE363*AH363)","v":""}]
[null,null,null,null,null,null,null,null,null,null,null,null,null,null,null,null,null,null,null,null,null,null,null,null,null,null,null,null,null,null,null,null,null,null,null,null,null,null,null,""]
[null,null,null,null,null,null,null,null,null,null,null,null,null,null,null,null,null,null,null,null,null,null,null,null,null,null,null,null,null,null,null,null,null,null,null,null,null,null,null,""]
[null,null,null,null,null,null,null,null,null,null,null,null,null,null,null,null,null,null,null,null,null,null,null,null,null,null,null,null,null,null,null,null,null,null,null,null,null,null,null,""]
[null,null,null,null,null,null,null,null,null,null,null,null,null,null,null,null,null,null,null,null,null,null,null,null,null,null,null,null,null,null,null,null,null,null,null,null,null,null,null,""]
["TOTAL",null,null,null,null,null,null,null,null,null,null,null,null,null,null,null,null,null,null,null,null,null,null,null,null,null,null,null,null,null,null,null,null,null,null,null,null,null,null,{"$f":"IF(SUM(AN168:AS367)=0,\"-\",SUM(AN168:AS367))","v":"-"}]
[]
["III - SEMOVENTES"]
["BOVINOS"]
["TIPO DE ANIMAL",null,null,null,null,null,null,"IDADE MÉDIA\n(MESES)",null,null,null,null,null,"RAÇA:",null,null,null,null,null,"COR PREDOMINANTE",null,null,null,null,null,null,"QUANTIDADE \n(Nº CABEÇAS)",null,null,null,null,null,null,"VALOR  UN.\n (R$)",null,null,null,null,null,"VALOR \nTOTAL (R$)"]
[null,null,null,null,null,null,null,null,null,null,null,null,null,null,null,null,null,null,null,null,null,null,null,null,null,null,null,null,null,null,null,null,null,null,null,null,null,null,null,{"$f":"IF(OR(AH373=\"\",AA373=\"\"),\"\",AH373*AA373)","v":""},null,null,null,null,null,null,{"$f":"SUM(AV373:AV422)","v":1},1]
[null,null,null,null,null,null,null,null,null,null,null,null,null,null,null,null,null,null,null,null,null,null,null,null,null,null,null,null,null,null,null,null,null,null,null,null,null,null,null,{"$f":"IF(OR(AH374=\"\",AA374=\"\"),\"\",AH374*AA374)","v":""}]
[null,null,null,null,null,null,null,null,null,null,null,null,null,null,null,null,null,null,null,null,null,null,null,null,null,null,null,null,null,null,null,null,null,null,null,null,null,null,null,{"$f":"IF(OR(AH375=\"\",AA375=\"\"),\"\",AH375*AA375)","v":""}]
[null,null,null,null,null,null,null,null,null,null,null,null,null,null,null,null,null,null,null,null,null,null,null,null,null,null,null,null,null,null,null,null,null,null,null,null,null,null,null,""]
[null,null,null,null,null,null,null,null,null,null,null,null,null,null,null,null,null,null,null,null,null,null,null,null,null,null,null,null,null,null,null,null,null,null,null,null,null,null,null,""]
[null,null,null,null,null,null,null,null,null,null,null,null,null,null,null,null,null,null,null,null,null,null,null,null,null,null,null,null,null,null,null,null,null,null,null,null,null,null,null,""]
[null,null,null,null,null,null,null,null,null,null,null,null,null,null,null,null,null,null,null,null,null,null,null,null,null,null,null,null,null,null,null,null,null,null,null,null,null,null,null,""]
[null,null,null,null,null,null,null,null,null,null,null,null,null,null,null,null,null,null,null,null,null,null,null,null,null,null,null,null,null,null,null,null,null,null,null,null,null,null,null,""]
[null,null,null,null,null,null,null,null,null,null,null,null,null,null,null,null,null,null,null,null,null,null,null,null,null,null,null,null,null,null,null,null,null,null,null,null,null,null,null,""]
[null,null,null,null,null,null,null,null,null,null,null,null,null,null,null,null,null,null,null,null,null,null,null,null,null,null,null,null,null,null,null,null,null,null,null,null,null,null,null,""]
[null,null,null,null,null,null,null,null,null,null,null,null,null,null,null,null,null,null,null,null,null,null,null,null,null,null,null,null,null,null,null,null,null,null,null,null,null,null,null,""]
[null,null,null,null,null,null,null,null,null,null,null,null,null,null,null,null,null,null,null,null,null,null,null,null,null,null,null,null,null,null,null,null,null,null,null,null,null,null,null,""]
[null,null,null,null,null,null,null,null,null,null,null,null,null,null,null,null,null,null,null,null,null,null,null,null,null,null,null,null,null,null,null,null,null,null,null,null,null,null,null,""]
[null,null,null,null,null,null,null,null,null,null,null,null,null,null,null,null,null,null,null,null,null,null,null,null,null,null,null,null,null,null,null,null,null,null,null,null,null,null,null,""]
[null,null,null,null,null,null,null,null,null,null,null,null,null,null,null,null,null,null,null,null,null,null,null,null,null,null,null,null,null,null,null,null,null,null,null,null,null,null,null,""]
[null,null,null,null,null,null,null,null,null,null,null,null,null,null,null,null,null,null,null,null,null,null,null,null,null,null,null,null,null,null,null,null,null,null,null,null,null,null,null,""]
[null,null,null,null,null,null,null,null,null,null,null,null,null,null,null,null,null,null,null,null,null,null,null,null,null,null,null,null,null,null,null,null,null,null,null,null,null,null,null,""]
[null,null,null,null,null,null,null,null,null,null,null,null,null,null,null,null,null,null,null,null,null,null,null,null,null,null,null,null,null,null,null,null,null,null,null,null,null,null,null,""]
[null,null,null,null,null,null,null,null,null,null,null,null,null,null,null,null,null,null,null,null,null,null,null,null,null,null,null,null,null,null,null,null,null,null,null,null,null,null,null,""]
[null,null,null,null,null,null,null,null,null,null,null,null,null,null,null,null,null,null,null,null,null,null,null,null,null,null,null,null,null,null,null,null,null,null,null,null,null,null,null,""]
[null,null,null,null,null,null,null,null,null,null,null,null,null,null,null,null,null,null,null,null,null,null,null,null,null,null,null,null,null,null,null,null,null,null,null,null,null,null,null,""]
[null,null,null,null,null,null,null,null,null,null,null,null,null,null,null,null,null,null,null,null,null,null,null,null,null,null,null,null,null,null,null,null,null,null,null,null,null,null,null,""]
[null,null,null,null,null,null,null,null,null,null,null,null,null,null,null,null,null,null,null,null,null,null,null,null,null,null,null,null,null,null,null,null,null,null,null,null,null,null,null,""]
[null,null,null,null,null,null,null,null,null,null,null,null,null,null,null,null,null,null,null,null,null,null,null,null,null,null,null,null,null,null,null,null,null,null,null,null,null,null,null,""]
[null,null,null,null,null,null,null,null,null,null,null,null,null,null,null,null,null,null,null,null,null,null,null,null,null,null,null,null,null,null,null,null,null,null,null,null,null,null,null,""]
[null,null,null,null,null,null,null,null,null,null,null,null,null,null,null,null,null,null,null,null,null,null,null,null,null,null,null,null,null,null,null,null,null,null,null,null,null,null,null,""]
[null,null,null,null,null,null,null,null,null,null,null,null,null,null,null,null,null,null,null,null,null,null,null,null,null,null,null,null,null,null,null,null,null,null,null,null,null,null,null,""]
[null,null,null,null,null,null,null,null,null,null,null,null,null,null,null,null,null,null,null,null,null,null,null,null,null,null,null,null,null,null,null,null,null,null,null,null,null,null,null,""]
[null,null,null,null,null,null,null,null,null,null,null,null,null,null,null,null,null,null,null,null,null,null,null,null,null,null,null,null,null,null,null,null,null,null,null,null,null,null,null,""]
[null,null,null,null,null,null,null,null,null,null,null,null,null,null,null,null,null,null,null,null,null,null,null,null,null,null,null,null,null,null,null,null,null,null,null,null,null,null,null,""]
[null,null,null,null,null,null,null,null,null,null,null,null,null,null,null,null,null,null,null,null,null,null,null,null,null,null,null,null,null,null,null,null,null,null,null,null,null,null,null,""]
[null,null,null,null,null,null,null,null,null,null,null,null,null,null,null,null,null,null,null,null,null,null,null,null,null,null,null,null,null,null,null,null,null,null,null,null,null,null,null,""]
[null,null,null,null,null,null,null,null,null,null,null,null,null,null,null,null,null,null,null,null,null,null,null,null,null,null,null,null,null,null,null,null,null,null,null,null,null,null,null,""]
[null,null,null,null,null,null,null,null,null,null,null,null,null,null,null,null,null,null,null,null,null,null,null,null,null,null,null,null,null,null,null,null,null,null,null,null,null,null,null,""]
[null,null,null,null,null,null,null,null,null,null,null,null,null,null,null,null,null,null,null,null,null,null,null,null,null,null,null,null,null,null,null,null,null,null,null,null,null,null,null,""]
[null,null,null,null,null,null,null,null,null,null,null,null,null,null,null,null,null,null,null,null,null,null,null,null,null,null,null,null,null,null,null,null,null,null,null,null,null,null,null,""]
[null,null,null,null,null,null,null,null,null,null,null,null,null,null,null,null,null,null,null,null,null,null,null,null,null,null,null,null,null,null,null,null,null,null,null,null,null,null,null,""]
[null,null,null,null,null,null,null,null,null,null,null,null,null,null,null,null,null,null,null,null,null,null,null,null,null,null,null,null,null,null,null,null,null,null,null,null,null,null,null,""]
[null,null,null,null,null,null,null,null,null,null,null,null,null,null,null,null,null,null,null,null,null,null,null,null,null,null,null,null,null,null,null,null,null,null,null,null,null,null,null,""]
[null,null,null,null,null,null,null,null,null,null,null,null,null,null,null,null,null,null,null,null,null,null,null,null,null,null,null,null,null,null,null,null,null,null,null,null,null,null,null,""]
[null,null,null,null,null,null,null,null,null,null,null,null,null,null,null,null,null,null,null,null,null,null,null,null,null,null,null,null,null,null,null,null,null,null,null,null,null,null,null,""]
[null,null,null,null,null,null,null,null,null,null,null,null,null,null,null,null,null,null,null,null,null,null,null,null,null,null,null,null,null,null,null,null,null,null,null,null,null,null,null,""]
[null,null,null,null,null,null,null,null,null,null,null,null,null,null,null,null,null,null,null,null,null,null,null,null,null,null,null,null,null,null,null,null,null,null,null,null,null,null,null,""]
[null,null,null,null,null,null,null,null,null,null,null,null,null,null,null,null,null,null,null,null,null,null,null,null,null,null,null,null,null,null,null,null,null,null,null,null,null,null,null,""]
[null,null,null,null,null,null,null,null,null,null,null,null,null,null,null,null,null,null,null,null,null,null,null,null,null,null,null,null,null,null,null,null,null,null,null,null,null,null,null,""]
[null,null,null,null,null,null,null,null,null,null,null,null,null,null,null,null,null,null,null,null,null,null,null,null,null,null,null,null,null,null,null,null,null,null,null,null,null,null,null,""]
[null,null,null,null,null,null,null,null,null,null,null,null,null,null,null,null,null,null,null,null,null,null,null,null,null,null,null,null,null,null,null,null,null,null,null,null,null,null,null,""]
[null,null,null,null,null,null,null,null,null,null,null,null,null,null,null,null,null,null,null,null,null,null,null,null,null,null,null,null,null,null,null,null,null,null,null,null,null,null,null,""]
[null,null,null,null,null,null,null,null,null,null,null,null,null,null,null,null,null,null,null,null,null,null,null,null,null,null,null,null,null,null,null,null,null,null,null,null,null,null,null,""]
[null,null,null,null,null,null,null,null,null,null,null,null,null,null,null,null,null,null,null,null,null,null,null,null,null,null,null,null,null,null,null,null,null,null,null,null,null,null,null,""]
["TOTAL",null,null,null,null,null,null,null,null,null,null,null,null,null,null,null,null,null,null,null,null,null,null,null,null,null,null,null,null,null,null,null,null,null,null,null,null,null,null,{"$f":"IF(SUM(AN373:AS422)=0,\"-\",SUM(AN373:AS422))","v":"-"}]
["OUTROS ANIMAIS"]
["TIPO DE ANIMAL",null,null,null,null,null,null,"DESCRIÇÃO",null,null,null,null,null,null,null,null,null,null,null,null,null,null,null,null,null,null,null,null,null,null,"QTDE",null,null,"VALOR \nUNITÁRIO (R$)",null,null,null,null,null,"VALOR \nTOTAL (R$)"]
[null,null,null,null,null,null,null,null,null,null,null,null,null,null,null,null,null,null,null,null,null,null,null,null,null,null,null,null,null,null,null,null,null,null,null,null,null,null,null,{"$f":"IF(OR(AH426=\"\",AE426=\"\"),\"\",AE426*AH426)","v":""},null,null,null,null,null,null,{"$f":"SUM(AV426:AV475)","v":1},1]
[null,null,null,null,null,null,null,null,null,null,null,null,null,null,null,null,null,null,null,null,null,null,null,null,null,null,null,null,null,null,null,null,null,null,null,null,null,null,null,{"$f":"IF(OR(AH427=\"\",AE427=\"\"),\"\",AE427*AH427)","v":""}]
[null,null,null,null,null,null,null,null,null,null,null,null,null,null,null,null,null,null,null,null,null,null,null,null,null,null,null,null,null,null,null,null,null,null,null,null,null,null,null,""]
[null,null,null,null,null,null,null,null,null,null,null,null,null,null,null,null,null,null,null,null,null,null,null,null,null,null,null,null,null,null,null,null,null,null,null,null,null,null,null,""]
[null,null,null,null,null,null,null,null,null,null,null,null,null,null,null,null,null,null,null,null,null,null,null,null,null,null,null,null,null,null,null,null,null,null,null,null,null,null,null,""]
[null,null,null,null,null,null,null,null,null,null,null,null,null,null,null,null,null,null,null,null,null,null,null,null,null,null,null,null,null,null,null,null,null,null,null,null,null,null,null,""]
[null,null,null,null,null,null,null,null,null,null,null,null,null,null,null,null,null,null,null,null,null,null,null,null,null,null,null,null,null,null,null,null,null,null,null,null,null,null,null,""]
[null,null,null,null,null,null,null,null,null,null,null,null,null,null,null,null,null,null,null,null,null,null,null,null,null,null,null,null,null,null,null,null,null,null,null,null,null,null,null,""]
[null,null,null,null,null,null,null,null,null,null,null,null,null,null,null,null,null,null,null,null,null,null,null,null,null,null,null,null,null,null,null,null,null,null,null,null,null,null,null,""]
[null,null,null,null,null,null,null,null,null,null,null,null,null,null,null,null,null,null,null,null,null,null,null,null,null,null,null,null,null,null,null,null,null,null,null,null,null,null,null,""]
[null,null,null,null,null,null,null,null,null,null,null,null,null,null,null,null,null,null,null,null,null,null,null,null,null,null,null,null,null,null,null,null,null,null,null,null,null,null,null,""]
[null,null,null,null,null,null,null,null,null,null,null,null,null,null,null,null,null,null,null,null,null,null,null,null,null,null,null,null,null,null,null,null,null,null,null,null,null,null,null,""]
[null,null,null,null,null,null,null,null,null,null,null,null,null,null,null,null,null,null,null,null,null,null,null,null,null,null,null,null,null,null,null,null,null,null,null,null,null,null,null,""]
[null,null,null,null,null,null,null,null,null,null,null,null,null,null,null,null,null,null,null,null,null,null,null,null,null,null,null,null,null,null,null,null,null,null,null,null,null,null,null,""]
[null,null,null,null,null,null,null,null,null,null,null,null,null,null,null,null,null,null,null,null,null,null,null,null,null,null,null,null,null,null,null,null,null,null,null,null,null,null,null,""]
[null,null,null,null,null,null,null,null,null,null,null,null,null,null,null,null,null,null,null,null,null,null,null,null,null,null,null,null,null,null,null,null,null,null,null,null,null,null,null,""]
[null,null,null,null,null,null,null,null,null,null,null,null,null,null,null,null,null,null,null,null,null,null,null,null,null,null,null,null,null,null,null,null,null,null,null,null,null,null,null,""]
[null,null,null,null,null,null,null,null,null,null,null,null,null,null,null,null,null,null,null,null,null,null,null,null,null,null,null,null,null,null,null,null,null,null,null,null,null,null,null,""]
[null,null,null,null,null,null,null,null,null,null,null,null,null,null,null,null,null,null,null,null,null,null,null,null,null,null,null,null,null,null,null,null,null,null,null,null,null,null,null,""]
[null,null,null,null,null,null,null,null,null,null,null,null,null,null,null,null,null,null,null,null,null,null,null,null,null,null,null,null,null,null,null,null,null,null,null,null,null,null,null,""]
[null,null,null,null,null,null,null,null,null,null,null,null,null,null,null,null,null,null,null,null,null,null,null,null,null,null,null,null,null,null,null,null,null,null,null,null,null,null,null,""]
[null,null,null,null,null,null,null,null,null,null,null,null,null,null,null,null,null,null,null,null,null,null,null,null,null,null,null,null,null,null,null,null,null,null,null,null,null,null,null,""]
[null,null,null,null,null,null,null,null,null,null,null,null,null,null,null,null,null,null,null,null,null,null,null,null,null,null,null,null,null,null,null,null,null,null,null,null,null,null,null,""]
[null,null,null,null,null,null,null,null,null,null,null,null,null,null,null,null,null,null,null,null,null,null,null,null,null,null,null,null,null,null,null,null,null,null,null,null,null,null,null,""]
[null,null,null,null,null,null,null,null,null,null,null,null,null,null,null,null,null,null,null,null,null,null,null,null,null,null,null,null,null,null,null,null,null,null,null,null,null,null,null,""]
[null,null,null,null,null,null,null,null,null,null,null,null,null,null,null,null,null,null,null,null,null,null,null,null,null,null,null,null,null,null,null,null,null,null,null,null,null,null,null,""]
[null,null,null,null,null,null,null,null,null,null,null,null,null,null,null,null,null,null,null,null,null,null,null,null,null,null,null,null,null,null,null,null,null,null,null,null,null,null,null,""]
[null,null,null,null,null,null,null,null,null,null,null,null,null,null,null,null,null,null,null,null,null,null,null,null,null,null,null,null,null,null,null,null,null,null,null,null,null,null,null,""]
[null,null,null,null,null,null,null,null,null,null,null,null,null,null,null,null,null,null,null,null,null,null,null,null,null,null,null,null,null,null,null,null,null,null,null,null,null,null,null,""]
[null,null,null,null,null,null,null,null,null,null,null,null,null,null,null,null,null,null,null,null,null,null,null,null,null,null,null,null,null,null,null,null,null,null,null,null,null,null,null,""]
[null,null,null,null,null,null,null,null,null,null,null,null,null,null,null,null,null,null,null,null,null,null,null,null,null,null,null,null,null,null,null,null,null,null,null,null,null,null,null,""]
[null,null,null,null,null,null,null,null,null,null,null,null,null,null,null,null,null,null,null,null,null,null,null,null,null,null,null,null,null,null,null,null,null,null,null,null,null,null,null,""]
[null,null,null,null,null,null,null,null,null,null,null,null,null,null,null,null,null,null,null,null,null,null,null,null,null,null,null,null,null,null,null,null,null,null,null,null,null,null,null,""]
[null,null,null,null,null,null,null,null,null,null,null,null,null,null,null,null,null,null,null,null,null,null,null,null,null,null,null,null,null,null,null,null,null,null,null,null,null,null,null,""]
[null,null,null,null,null,null,null,null,null,null,null,null,null,null,null,null,null,null,null,null,null,null,null,null,null,null,null,null,null,null,null,null,null,null,null,null,null,null,null,""]
[null,null,null,null,null,null,null,null,null,null,null,null,null,null,null,null,null,null,null,null,null,null,null,null,null,null,null,null,null,null,null,null,null,null,null,null,null,null,null,""]
[null,null,null,null,null,null,null,null,null,null,null,null,null,null,null,null,null,null,null,null,null,null,null,null,null,null,null,null,null,null,null,null,null,null,null,null,null,null,null,""]
[null,null,null,null,null,null,null,null,null,null,null,null,null,null,null,null,null,null,null,null,null,null,null,null,null,null,null,null,null,null,null,null,null,null,null,null,null,null,null,""]
[null,null,null,null,null,null,null,null,null,null,null,null,null,null,null,null,null,null,null,null,null,null,null,null,null,null,null,null,null,null,null,null,null,null,null,null,null,null,null,""]
[null,null,null,null,null,null,null,null,null,null,null,null,null,null,null,null,null,null,null,null,null,null,null,null,null,null,null,null,null,null,null,null,null,null,null,null,null,null,null,""]
[null,null,null,null,null,null,null,null,null,null,null,null,null,null,null,null,null,null,null,null,null,null,null,null,null,null,null,null,null,null,null,null,null,null,null,null,null,null,null,""]
[null,null,null,null,null,null,null,null,null,null,null,null,null,null,null,null,null,null,null,null,null,null,null,null,null,null,null,null,null,null,null,null,null,null,null,null,null,null,null,""]
[null,null,null,null,null,null,null,null,null,null,null,null,null,null,null,null,null,null,null,null,null,null,null,null,null,null,null,null,null,null,null,null,null,null,null,null,null,null,null,""]
[null,null,null,null,null,null,null,null,null,null,null,null,null,null,null,null,null,null,null,null,null,null,null,null,null,null,null,null,null,null,null,null,null,null,null,null,null,null,null,""]
[null,null,null,null,null,null,null,null,null,null,null,null,null,null,null,null,null,null,null,null,null,null,null,null,null,null,null,null,null,null,null,null,null,null,null,null,null,null,null,""]
[null,null,null,null,null,null,null,null,null,null,null,null,null,null,null,null,null,null,null,null,null,null,null,null,null,null,null,null,null,null,null,null,null,null,null,null,null,null,null,""]
[null,null,null,null,null,null,null,null,null,null,null,null,null,null,null,null,null,null,null,null,null,null,null,null,null,null,null,null,null,null,null,null,null,null,null,null,null,null,null,""]
[null,null,null,null,null,null,null,null,null,null,null,null,null,null,null,null,null,null,null,null,null,null,null,null,null,null,null,null,null,null,null,null,null,null,null,null,null,null,null,""]
[null,null,null,null,null,null,null,null,null,null,null,null,null,null,null,null,null,null,null,null,null,null,null,null,null,null,null,null,null,null,null,null,null,null,null,null,null,null,null,""]
[null,null,null,null,null,null,null,null,null,null,null,null,null,null,null,null,null,null,null,null,null,null,null,null,null,null,null,null,null,null,null,null,null,null,null,null,null,null,null,{"$f":"IF(OR(AH475=\"\",AE475=\"\"),\"\",AE475*AH475)","v":""}]
["TOTAL",null,null,null,null,null,null,null,null,null,null,null,null,null,null,null,null,null,null,null,null,null,null,null,null,null,null,null,null,null,null,null,null,null,null,null,null,null,null,{"$f":"IF(SUM(AN426:AS475)=0,\"-\",SUM(AN426:AS475))","v":"-"}]
[]
[null,null,null,null,null,null,null,null,null,null,null,"PATRIMÔNIO TOTAL"]
[null,null,null,null,null,null,null,null,null,null,null,{"$f":"A7","v":"I - BENS IMÓVEIS"},null,null,null,null,null,null,null,null,null,null,null,null,null,null,null,null,{"$f":"SUM(AC480:AH482)","v":0}]
[null,null,null,null,null,null,null,null,null,null,null,"RURAIS",null,null,null,null,null,null,null,null,null,null,null,null,null,null,null,null,{"$f":"SUMIF(C10:E109,\"RURAL\",AO10:AS109)","v":0}]
[null,null,null,null,null,null,null,null,null,null,null,"URBANOS",null,null,null,null,null,null,null,null,null,null,null,null,null,null,null,null,{"$f":"SUMIF(C10:E109,\"URBANO\",AO10:AS109)","v":0}]
[null,null,null,null,null,null,null,null,null,null,null,"BENFEITORIAS",null,null,null,null,null,null,null,null,null,null,null,null,null,null,null,null,{"$f":"SUM(AN113:AS162)","v":0}]
[null,null,null,null,null,null,null,null,null,null,null,{"$f":"A165","v":"II - BENS MÓVEIS"},null,null,null,null,null,null,null,null,null,null,null,null,null,null,null,null,{"$f":"SUM(AN168:AS367)","v":0}]
[null,null,null,null,null,null,null,null,null,null,null,"VEÍCULOS",null,null,null,null,null,null,null,null,null,null,null,null,null,null,null,null,{"$f":"SUMIF(A168:F367,\"VEÍCULO\",AN168:AS367)","v":0}]
[null,null,null,null,null,null,null,null,null,null,null,"MÁQUINAS",null,null,null,null,null,null,null,null,null,null,null,null,null,null,null,null,{"$f":"SUMIF(A168:F367,\"MÁQUINA\",AN168:AS367)","v":0}]
[null,null,null,null,null,null,null,null,null,null,null,"EQUIPAMENTOS",null,null,null,null,null,null,null,null,null,null,null,null,null,null,null,null,{"$f":"SUMIF(A168:F367,\"EQUIPAMENTO\",AN168:AS367)","v":0}]
[null,null,null,null,null,null,null,null,null,null,null,{"$f":"A370","v":"III - SEMOVENTES"},null,null,null,null,null,null,null,null,null,null,null,null,null,null,null,null,{"$f":"SUM(AC488:AH489)","v":0}]
[null,null,null,null,null,null,null,null,null,null,null,"BOVINOS",null,null,null,null,null,null,null,null,null,null,null,null,null,null,null,null,{"$f":"SUM(AN373:AS422)","v":0}]
[null,null,null,null,null,null,null,null,null,null,null,"OUTROS ANIMAIS",null,null,null,null,null,null,null,null,null,null,null,null,null,null,null,null,{"$f":"SUM(AN426:AS475)","v":0}]
[null,null,null,null,null,null,null,null,null,null,null,"TOTAL",null,null,null,null,null,null,null,null,null,null,null,null,null,null,null,null,{"$f":"PAT_IMOVEIS+PAT_MOVEIS+PAT_SEMOVENTES","v":0}]
[]
[]
[]
["________________________________________",null,null,null,null,null,null,null,null,null,null,null,null,null,null,null,null,null,null,null,null,null,null,null,null,"________________________________________"]
[{"$f":"UPPER('INFORMAÇÕES GERAIS'!F19)","v":""},null,null,null,null,null,null,null,null,null,null,null,null,null,null,null,null,null,null,null,null,null,null,null,null,{"$f":"UPPER('INFORMAÇÕES GERAIS'!H15)","v":""}]
["Proponente",null,null,null,null,null,null,null,null,null,null,null,null,null,null,null,null,null,null,null,null,null,null,null,null,"Responsável Técnico"]

{"sheet":"REGRAS","index":11,"n_rows":29,"n_cols":5,"rows_kept":29,"cut":false,"hidden":true,"merged":[]}
[null,null,null,null,{"$f":"COUNTIF(B:B,\"OK\")","v":19}]
["DESCRIÇÃO","SITUAÇÃO","PÁGINA"]
["INFORMAÇÕES OBRIGATÓRIAS DA EMPRESA ELABORADORA - AUSENTES",{"$f":"'INFORMAÇÕES GERAIS'!AT7","v":"AUSENTE"},"EMPREENDIMENTO"]
["INFORMAÇÕES OBRIGATÓRIAS DE IDENTIFICAÇÃO DO PROPONENTE  - AUSENTES",{"$f":"'INFORMAÇÕES GERAIS'!AT17","v":"AUSENTE"},"EMPREENDIMENTO"]
["DADOS DE IDENTIFICAÇÃO DO IMÓVEL 1 - AUSENTES",{"$f":"'INFORMAÇÕES GERAIS'!AT29","v":"AUSENTE"},"EMPREENDIMENTO"]
["DADOS DE IDENTIFICAÇÃO DO IMÓVEL 2 - AUSENTES",{"$f":"IF('INFORMAÇÕES GERAIS'!K27<2,\"OK\",'INFORMAÇÕES GERAIS'!AT37)","v":"OK"},"EMPREENDIMENTO"]
["DADOS DE IDENTIFICAÇÃO DO IMÓVEL 3 - AUSENTES",{"$f":"IF('INFORMAÇÕES GERAIS'!K27<3,\"OK\",'INFORMAÇÕES GERAIS'!AT45)","v":"OK"},"EMPREENDIMENTO"]
["EXISTEM CAMPOS NAS INFORMAÇÕES SOBRE O EMPREENDIMENTO QUE NÃO FORAM PREENCHIDOS",{"$f":"'INFORMAÇÕES GERAIS'!AT53","v":"AUSENTE"},"EMPREENDIMENTO"]
["VALOR ORÇADO DEVE TER UM VALOR MAIOR QUE ZERO",{"$f":"IF(VALOR_ORÇADO<=0,\"NÃO\",\"OK\")","v":"NÃO"},"ORÇAMENTO"]
["VALOR FINANCIADO DEVE TER UM VALOR MAIOR QUE ZERO",{"$f":"IF(VALOR_FINANCIADO<=0,\"NÃO\",\"OK\")","v":"NÃO"},"ORÇAMENTO"]
["VALOR FINANCIADO NÃO PODE SER MAIOR QUE VALOR ORÇADO",{"$f":"IF(VALOR_ORÇADO<VALOR_FINANCIADO,\"NÃO\",\"OK\")","v":"OK"},"ORÇAMENTO"]
["UMA OU MAIS LINHAS NA TABELA \"PREPARO DO SOLO - INSUMOS\" SEM CAMPOS PREENCHIDOS",{"$f":"IF(Tabela1[[#Totals],[EM BRANCO]]>0,\"AUSENTE\",\"OK\")","v":"OK"},"ORÇAMENTO"]
["UMA OU MAIS LINHAS NA TABELA \"PREPARO DO SOLO - SERVIÇOS\" SEM CAMPOS PREENCHIDOS",{"$f":"IF(Tabela116[[#Totals],[EM BRANCO]]>0,\"AUSENTE\",\"OK\")","v":"OK"},"ORÇAMENTO"]
["UMA OU MAIS LINHAS NA TABELA \"TRATOS CULTURAIS - INSUMOS\" SEM CAMPOS PREENCHIDOS",{"$f":"IF(Tabela11617[[#Totals],[EM BRANCO]]>0,\"AUSENTE\",\"OK\")","v":"OK"},"ORÇAMENTO"]
["UMA OU MAIS LINHAS NA TABELA \"TRATOS CULTURAIS - SERVIÇOS\" SEM CAMPOS PREENCHIDOS",{"$f":"IF(Tabela1161718[[#Totals],[EM BRANCO]]>0,\"AUSENTE\",\"OK\")","v":"OK"},"ORÇAMENTO"]
["UMA OU MAIS LINHAS NA TABELA \"COLHEITA - INSUMOS\" SEM CAMPOS PREENCHIDOS",{"$f":"IF(Tabela116171821[[#Totals],[EM BRANCO]]>0,\"AUSENTE\",\"OK\")","v":"OK"},"ORÇAMENTO"]
["UMA OU MAIS LINHAS NA TABELA \"COLHEITA - INSUMOS\" SEM PREENCHIDOS",{"$f":"IF(Tabela11617182122[[#Totals],[EM BRANCO]]>0,\"AUSENTE\",\"OK\")","v":"OK"},"ORÇAMENTO"]
["A RENTABILIDADE DO EMPREENDIMENTO DEVE SER POSITIVA",{"$f":"IF('DEMONSTRATIVO DE VIABILIDADE'!G15<=0,\"ERRO\",\"OK\")","v":"ERRO"},"VIABILIDADE"]
["COORDENADAS DO IMÓVEL 1 AUSENTES","OK","IMÓVEIS"]
["COORDENADAS DO IMÓVEL 2 AUSENTES","OK","IMÓVEIS"]
["COORDENADAS DO IMÓVEL 3 AUSENTES","OK","IMÓVEIS"]
["É NECESSÁRIO JUSTIFICATIVA QUANDO NÃO HOUVER A PRODUÇÃO DE 3 ANOS",{"$f":"IF(AND(OR('INFORMAÇÕES GERAIS'!AD89=\"\",'INFORMAÇÕES GERAIS'!AD90=\"\",'INFORMAÇÕES GERAIS'!AD91=\"\"),'INFORMAÇÕES GERAIS'!A93=\"\"),\"AUSENTE\",\"OK\")","v":"AUSENTE"},"EMPREENDIMENTO"]
["É NECESSÁRIO JUSTIFICAR VARIAÇÕES DE PRODUTIVDADE MAIORES QUE 10%","OK","EMPREENDIMENTO"]
["EXISTE UMA OU MAIS LINHAS DE ATIVIDADES AGRÍCOLAS SEM TODOS OS CAMPOS PREENCHIDOS",{"$f":"IF(AND(('CAPACIDADE DE PAGAMENTO'!K9+'CAPACIDADE DE PAGAMENTO'!K31)>('CAPACIDADE DE PAGAMENTO'!M9+'CAPACIDADE DE PAGAMENTO'!M31),'CAPACIDADE DE PAGAMENTO'!K9>=2),\"AUSENTE\",\"OK\")","v":"OK"},"CAPACIDADE GLOBAL"]
["EXISTE UMA OU MAIS LINHAS DE ATIVIDADES PECUÁRIAS SEM TODOS OS CAMPOS PREENCHIDOS",{"$f":"IF(AND(('CAPACIDADE DE PAGAMENTO'!K55+'CAPACIDADE DE PAGAMENTO'!K77>'CAPACIDADE DE PAGAMENTO'!M77+'CAPACIDADE DE PAGAMENTO'!M55),'CAPACIDADE DE PAGAMENTO'!K55>=2),\"AUSENTE\",\"OK\")","v":"OK"},"CAPACIDADE GLOBAL"]
["SOMATÓRIO DAS ÁREAS DOS IMÓVEIS DEVE SER IGUAL À AREA FINANCIADA TOTAL",{"$f":"IF(('INFORMAÇÕES GERAIS'!AP35+'INFORMAÇÕES GERAIS'!AP43+'INFORMAÇÕES GERAIS'!AP51)=ÁREA_FINANCIADA,\"OK\",\"ERRO\")","v":"OK"},"EMPREENDIMENTO"]
["ROTEIRO DE ACESSO DO IMÓVEL 1","OK","IMÓVEIS"]
["ROTEIRO DE ACESSO DO IMÓVEL 2","OK","IMÓVEIS"]
["ROTEIRO DE ACESSO DO IMÓVEL 3","OK","IMÓVEIS"]